{"text_format":"1","workbook":"xlsx","n_sheets":4,"sheets":["Read Me","Effects Code","VLOOKUP","Effects Code Array Order"],"not_rendered":{"charts":0,"images":0,"macros":1,"external_links":0,"defined_names":1,"comments":0,"pivot_tables":0},"unopened":[],"bounds":{"document_bytes":16777216,"sheet_cells":100000,"rows_first":2000,"rows_last":500,"rows_between":2000,"halvings":0,"cell_chars":16384,"cell_head_chars":4096},"cells_cut":0,"cells_raw":0,"read":"whole","date_system":"1900"}

{"sheet":"Read Me","index":0,"n_rows":59,"n_cols":16,"rows_kept":59,"cut":false,"hidden":false,"merged":[[0,0,0,12]]}
["Data Array Builder v 1.0"]
[]
["This tool will generate data arrays based on formatted ECOTOX data reports."]
["The following are instructions on how to use this tool."]
[]
["Step 1. Import your ECOTOX data table into the tool.",null,null,null,null,null,null,null,null,null,null,null,null,null,null,"  "]
["   1. Open your Excel ECOTOX file and the data array builder v 1.0.xlsm"]
["   2. Select \"Move or Copy…\" from the worksheet tab in your ECOTOX file."]
["   3. This will open a dialog box. Select your worksheet, the To book: should read data array builder v 1.0.xlsm"]
["        and the Copy checkbox should be checked. This will make sure you only copy the data to the worksheet."]
[]
["Step 2. Insert VLOOKUP COLUMN (This function converts the measurement endpoint acronyms to words)"]
["   1.  Insert a column in the same location as shown in the sample VLOOKUP worksheet (between the \"Effect\" and \"Meas\" columns) in your data."]
["   2. Copy the first two lines (The column title and first cell) from \"Measured Endpoint\" column in the VLOOKUP worksheet into your new inserted column"]
["   3. Copy the cell all the way down the column for as many rows of data you have"]
[]
["Note: If VLOOKUP cannot find the acronym in the effects code list, it just returns the original acronym."]
[]
["Step 3. Run Data Array Generator"]
["   1. In the newly imported worksheet, hit Ctl-q. This will start the data array builder."]
["   2. A pop-up box should appear that asks you for the following information"]
["   - Class column - select the column that has the information on the various taxa"]
["   - Family checkbox and column - if you want to also refine your analyses to include family level data, select the column that has the information on the various families"]
["   - Effects endpoint columns - select the 3 columns that have the information on the various effects codes. The first two columns will be used as the y-axis,"]
["      while the third level of effects is incorporated into the data label."]
["   - Endpoint descriptor - select the column that has the information on the various endpoints (e.g., NOAECs, LOAECs, LC50s, etc)"]
["   - Endpoint value - select the column that has the information on the various endpoints"]
["   - Endpoint Units - select the column that has the information on the various endpoint units"]
["   - Endpoint Duration - select the column that has the duration of the endpoint. This will be displayed as a data label for the endpoint. The user is"]
["      advised to standardize the duration to days before running the data array generator."]
["   - Trial IDs - select the column that has the information on the various trial ids. This will be used to try and link LOAECs and NOAECs."]
["   - Reference # column - - select the column that has the information on the various reference numbers. "]
["   - Remove duplicates checkbox - this allows you to automatically remove any duplicates that may appear in the data, based on Reference #, Effect, and Endpoint value."]
["   Note: It's easiest to click on the Column letter, than to highlight all of the cells in the column."]
["If your LOAECs and NOAECs are in separate columns, click on the \"Are secondary endpoints (e.g., LOAELS) in a separate column?\" checkbox"]
["and you can select a second set of columns for the additional data."]
[]
["Once you've entered the appropriate information, click on the Run Analysis button and the data arrays should automatically generate."]
[]
["Notes:"]
["1. When selecting columns for Effects Descriptors, they should be right next to each other, with the more general descriptor to the left."]
["2. If you have registrant submitted studies, start the Reference # with \"MRID\". These studies will appear with a red marker in the generated data arrays."]
["3. If you need to change the scale of the x-axis, follow these instructions:"]
["  a. Click on the chart and select Chart Tools, Format menu tab."]
["  b. On the far left of the Ribbon, select Horizontal (Value) Axis and click Format Selection."]
["  c. Make appropriate revisions to x-axis parameters and select Ok."]
["  d. On the far left of the Ribbon, select Secondary Horizontal (Value) Axis and click Format Selection."]
["  e. Make appropriate revisions to secondary x-axis parameters and select Ok."]
["  f. If your chart has divider lines in it, you will need to go into the appropriate data worksheet (usually it is the sheet just to the right of your chart)"]
["      and fix the Value and Dif values in the worksheet to match your chart revisions so that the line goes across the chart."]
["4. If you have a significant amount of data being displayed on the data array, you can copy the chart and paste it into an empty spreadsheet,"]
["    which will allow you to lengthen the chart in the empty spreadsheet and view the presentation of the data array a little easier."]
["5. If you wish to see a subset of the data displayed in a data array, go to the worksheet that the array references and use the Filter feature in Excel. Allow time for "]
["    the Height column to update before trying to review the data array."]
["6. Although data labels are displayed on the data arrays, they cannot be updated by changing the underlying data. To change a data label, the user"]
["    will have to change the label on the data array itself, or change the original data and rerun the data array builder."]
["7. If you filter your data to refine your data array, this may affect the presentation of the summary arrays. Make sure to turn filters"]
["    off before reviewing the different summary charts."]
["8. The tool uses the Trial IDs to link NOAECs and LOAECs. Any  NOAEC that is not associated with a LOAEC via the Trial ID is not displayed in the data array."]

{"sheet":"Effects Code","index":1,"n_rows":2732,"n_cols":7,"rows_kept":2732,"cut":false,"hidden":true,"merged":[]}
["Effect Code","Code 2","Code","Definition"]
["ACC",null,"ASML","Assimilation efficiency"]
["ACC",null,"BDBN","Body burden"]
["ACC",null,"BDCN","Body concentration"]
["ACC",null,"ELIM","Elimination"]
["ACC",null,"GACC","Accumulation, general"]
["ACC",null,"LBCN","Lethal body concentration"]
["ACC",null,"RATO","Ratio"]
["ACC",null,"RSDE","Residue"]
["ACC",null,"TSLC","Translocation"]
["ACC",null,"UPTK","Uptake"]
["BEH","AVO","CHEM","Chemical avoidance"]
["BEH","AVO","FOOD","Food avoidance"]
["BEH","AVO","GAVO","Avoidance, general"]
["BEH","AVO","STIM","Stimulus avoidance"]
["BEH","AVO","WATR","Water avoidance"]
["BEH","BEH","ACTP","Accuracy of learned task, performance"]
["BEH","BEH","ACTV","Activity, general"]
["BEH","BEH","ADOT","Adopt/Adoption"]
["BEH","BEH","AGCL","Aggregation/Clumping"]
["BEH","BEH","AGGT","Aggression"]
["BEH","BEH","ALRT","Alert"]
["BEH","BEH","APCH","Approach"]
["BEH","BEH","ATCL","Antennal cleaning"]
["BEH","BEH","ATSK","Acquired task"]
["BEH","BEH","ATTK","Attack"]
["BEH","BEH","BATH","Bathing"]
["BEH","BEH","BBBH","Burrowing behavior, burrowing length"]
["BEH","BEH","BITE","Bite or biting"]
["BEH","BEH","BOBB","Bob, bobbing"]
["BEH","BEH","BOWW","Bow, bowing"]
["BEH","BEH","BWAX","Bees wax produced"]
["BEH","BEH","CASE","Case Leaving Behavior"]
["BEH","BEH","CMST","Compactness of swimming track"]
["BEH","BEH","CNBL","Cannibalism"]
["BEH","BEH","COMA","Colony maintenance (bees)"]
["BEH","BEH","COMB","Comb built"]
["BEH","BEH","CRDN","Coordination"]
["BEH","BEH","CRTP","Continual reinforcement task performed"]
["BEH","BEH","DHST","Diameter of helix of swimming track"]
["BEH","BEH","DIGG","Dig/digging"]
["BEH","BEH","DPLY","Displaying behavior"]
["BEH","BEH","DRMT","Dormant, adverse condition response"]
["BEH","BEH","DTCH","Ability to detach from substrate"]
["BEH","BEH","DUMV","Diurnal movements"]
["BEH","BEH","ECMB","Empty combs"]
["BEH","BEH","Code","Definition"]
["BEH","BEH","EQUL","Equilibrium"]
["BEH","BEH","ERRR","Errors in trained behavior"]
["BEH","BEH","EXTN","Extinction"]
["BEH","BEH","FLHM","Flehmen response"]
["BEH","BEH","FLIT","Flight"]
["BEH","BEH","FLTR","Filtration rate"]
["BEH","BEH","FLYG","Flying behavior"]
["BEH","BEH","FOOT","Foot retraction"]
["BEH","BEH","FRTP","Fixed ratio task performed"]
["BEH","BEH","FRZG","Freezing behavior"]
["BEH","BEH","FTTR","Flutter"]
["BEH","BEH","GBHV","Behavioral changes, general"]
["BEH","BEH","GPST","Grip strength"]
["BEH","BEH","GRAB","Grab, grabbing"]
["BEH","BEH","GROM","Grooming"]
["BEH","BEH","HDLF","Head lift"]
["BEH","BEH","HMVT","Horizontal movements"]
["BEH","BEH","HONY","Honey produced"]
["BEH","BEH","INST","Sleeping time, induced"]
["BEH","BEH","JUMP","Jumping"]
["BEH","BEH","KILL","Kill"]
["BEH","BEH","LOCO","Distance moved, change in direct movement"]
["BEH","BEH","MIGR","Migration"]
["BEH","BEH","MOTL","Motility"]
["BEH","BEH","NACT","Non-social activity"]
["BEH","BEH","NCMV","Nocturnal movements"]
["BEH","BEH","NGRX","Negative geotaxis reflex"]
["BEH","BEH","NMVM","Movements, number of"]
["BEH","BEH","NRES","No response"]
["BEH","BEH","NRSP","Neuroresponse"]
["BEH","BEH","NVOC","Vocalizations, number of"]
["BEH","BEH","ORNT","Orientation"]
["BEH","BEH","PALR","Palmar grasp"]
["BEH","BEH","PHTR","Phototactic response"]
["BEH","BEH","PLAR","Placing reflex"]
["BEH","BEH","PNPY","Prey penetration"]
["BEH","BEH","POLC","Pollen collected"]
["BEH","BEH","POST","Posture"]
["BEH","BEH","PRVU","Predator vulnerability"]
["BEH","BEH","REST","Rest"]
["BEH","BEH","RRSP","Righting response"]
["BEH","BEH","RSNR","Resting and not ruminating"]
["BEH","BEH","RSPT","Response time to a stimulus"]
["BEH","BEH","RSRU","Resting and ruminating"]
["BEH","BEH","RUBB","Rub"]
["BEH","BEH","RUNN","Run"]
["BEH","BEH","RVSE","Reversals"]
["BEH","BEH","SACT","Social activity"]
["BEH","BEH","SCRT","Scratch"]
["BEH","BEH","SDNR","Standing and not ruminating"]
["BEH","BEH","SDRU","Standing and ruminating"]
["BEH","BEH","Code","Definition"]
["BEH","BEH","SEBH","Search/explore/forage behavior"]
["BEH","BEH","SLEP","Sleeping"]
["BEH","BEH","SMEL","Smell/Sniff"]
["BEH","BEH","SRCH","Stretch"]
["BEH","BEH","SRED","Spread, spreading"]
["BEH","BEH","STLT","Startle"]
["BEH","BEH","STPY","Stereotypy"]
["BEH","BEH","STRS","Observed stress"]
["BEH","BEH","SURF","Surfacing"]
["BEH","BEH","SWIM","Swimming"]
["BEH","BEH","THML","Temperature tolerance"]
["BEH","BEH","TUBE","Tube Building"]
["BEH","BEH","VACL","Valve closure"]
["BEH","BEH","VCLF","Visual cliff"]
["BEH","BEH","VIBR","Vibrissea placing"]
["BEH","BEH","VISP","Visual placing"]
["BEH","BEH","VMVT","Vertical or rearing movements"]
["BEH","BEH","VRTP","Variable Interval Reinforcement Task\nPerformed"]
["BEH","BEH","WALK","Walk"]
["BEH","BEH","WINK","Nictitation"]
["BEH","BEH","WTCH","Watch, watching"]
["BEH","BEH","YAWN","Yawn"]
["BEH","FDB","BGNG","Begging behavior"]
["BEH","FDB","FCNS","Food consumption"]
["BEH","FDB","FDNG","Feeding behavior"]
["BEH","FDB","FECL","Fecal production"]
["BEH","FDB","FEFF","Feeding efficiency"]
["BEH","FDB","FSTR","Food storage"]
["BEH","FDB","FTIM","Feeding time"]
["BEH","FDB","GFDB","Feeding behavior, general"]
["BEH","FDB","LTBD","Litter breakdown"]
["BEH","FDB","PRBE","Predatory behavior"]
["BEH","FDB","STRK","Strikes (number of times food source was hit)"]
["BEH","FDB","WCON","Water consumption"]
["BCM","ENZ","15B7","15 beta/7alpha-hydroxylases"]
["BCM","ENZ","17BH","17beta-hydroxysteroid dehydrogenase"]
["BCM","ENZ","1A12","Cytochrome P450 1A1/2"]
["BCM","ENZ","2B10","Cytochrome P450 2B10 (CYP2B10)"]
["BCM","ENZ","2B12","Cytochrome P450 2B1/2"]
["BCM","ENZ","2C11","Cytochrome P450 2C11 (CYP2C11)"]
["BCM","ENZ","2OHB","2-OH biphenyl hydroxylase"]
["BCM","ENZ","3A21","Cytochrome P450 3A2/1"]
["BCM","ENZ","3HAO","3-Hydroxyanthranilate oxygenase"]
["BCM","ENZ","3HBD","3-hydroxybutyrate dehydrogenase"]
["BCM","ENZ","3HCD","3-hydroxyacyl-CoA dehydrogenase"]
["BCM","ENZ","450R","NADPH-cytochrome p-450 reductase"]
["BCM","ENZ","4CBH","4-chlorobiphenyl hydroxylase"]
["BCM","ENZ","4OHB","4-OH biphenyl hydroxylase"]
["BCM","ENZ","5ARD","5alpha-reductase"]
["BCM","ENZ","5AVS","5-aminolevulinate synthase"]
["BCM","ENZ","5NLT","5-Nucleotidase activity"]
["BCM","ENZ","6PGD","6-Phosphogluconate dehydrogenase"]
["BCM","ENZ","A712","7,12-dimethylbenz(a)anthracene hydroxylase"]
["BCM","ENZ","AAGP","aspartate aminotransferase to glutamate pyruvate transaminase ratio"]
["BCM","ENZ","AAPT","Alanine aminopeptidase"]
["BCM","ENZ","AASY","Acetolactate synthase"]
["BCM","ENZ","AATA","Acyl coenzyme A:testosterone acyltransferase"]
["BCM","ENZ","AATT","Alanine transaminase (ALT)"]
["BCM","ENZ","ACAC","Acetyl-CoA carboxylase"]
["BCM","ENZ","ACCO","Acyl-CoA oxidase"]
["BCM","ENZ","ACCS","1-Aminocyclopropane-1-carboxylate synthase"]
["BCM","ENZ","ACHE","Acetylcholinesterase"]
["BCM","ENZ","ACOH","Acetanilide-4-hydroxylase"]
["BCM","ENZ","ACPH","Acid phosphatase"]
["BCM","ENZ","ADCY","Adenylate cyclase"]
["BCM","ENZ","ADDM","Adenosine deaminase"]
["BCM","ENZ","ADHE","Alcohol dehydrogenase"]
["BCM","ENZ","ADND","Aldehyde dehydrogenase (NAD)"]
["BCM","ENZ","ADNP","Aldehyde dehydrogenase (NADP)"]
["BCM","ENZ","ADNY","Adenylate"]
["BCM","ENZ","ADPS","ADPase"]
["BCM","ENZ","AEPX","Aldrin epoxidase"]
["BCM","ENZ","AFCD","alpha-Fucosidase"]
["BCM","ENZ","AGCE","Angiotensin converting enzyme"]
["BCM","ENZ","AGCT","alpha-Galactosidase"]
["BCM","ENZ","AGKN","Arginine kinase"]
["BCM","ENZ","AGPD","alpha-glycerol phosphate dehydrogenase"]
["BCM","ENZ","AGPP","ADP glucose pyrophosphorylase"]
["BCM","ENZ","AGSE","alpha-Glucosidase"]
["BCM","ENZ","AGTF","Alanine gamma-glutamyltransferase"]
["BCM","ENZ","AHDX","Aniline hydroxylase"]
["BCM","ENZ","AHHD","Aryl hydrocarbon hydroxylase"]
["BCM","ENZ","AKPT","Alkaline protease"]
["BCM","ENZ","AKPY","Alkaline pyrophosphatase"]
["BCM","ENZ","ALAD","(delta) -aminolevulinic acid dehydrogenase"]
["BCM","ENZ","ALAS","(gamma) -ALA synthetase"]
["BCM","ENZ","ALDH","Aldehyde dehydrogenase (ALDH)"]
["BCM","ENZ","ALDO","Aldolase"]
["BCM","ENZ","ALIE","Ali esterase"]
["BCM","ENZ","ALLN","Allantoinase activity"]
["BCM","ENZ","ALPH","Alkaline phosphatase"]
["BCM","ENZ","AMDC","Adenosylmethionine decarboxylase"]
["BCM","ENZ","AMDM","AMP deaminase (adenosine monophosphate deaminase)"]
["BCM","ENZ","AMLS","Amylase"]
["BCM","ENZ","AMNS","alpha-Mannosidase"]
["BCM","ENZ","AMOX","Amine oxidase"]
["BCM","ENZ","AMPD","Aminopeptidase"]
["BCM","ENZ","AMTR","Arsenite methyltransferase"]
["BCM","ENZ","AMYL","Alpha-amylase"]
["BCM","ENZ","ANAE","A-naphthyl acetate esterase"]
["BCM","ENZ","ANHG","Aniline hydrogenase"]
["BCM","ENZ","APND","Aminopyrine n-demethylase"]
["BCM","ENZ","APRT","Acid Protease"]
["BCM","ENZ","APYR","Acid pyrophosphatase"]
["BCM","ENZ","AREG","Arachidonate epoxygenase"]
["BCM","ENZ","ARES","Arylesterase"]
["BCM","ENZ","ARGN","Arginase"]
["BCM","ENZ","ARHY","Aromatic hydroxylase"]
["BCM","ENZ","ARMT","Aromatase"]
["BCM","ENZ","ASAT","Aspartate aminotransferase"]
["BCM","ENZ","ASCP","Ascorbate peroxidase"]
["BCM","ENZ","ASMT","Arsenite methyl transferase"]
["BCM","ENZ","ASOA","Ascorbic acid oxidase activity"]
["BCM","ENZ","ASPT","Arylsulphatase"]
["BCM","ENZ","ATAS","Alanine aminotransferase Aspartate aminotransferase ratio"]
["BCM","ENZ","ATPA","Adenosine triphosphatase activity"]
["BCM","ENZ","ATRP","Alanine transpeptidase"]
["BCM","ENZ","ATYL","n-Acetylglucosaminidase"]
["BCM","ENZ","AZOR","Azo-reductase"]
["BCM","ENZ","B5P4","b5/P-450"]
["BCM","ENZ","BAMY","Beta-amylase"]
["BCM","ENZ","BAPH","Benzo(a)pyrene hydroxylase"]
["BCM","ENZ","BAPM","Benzo(a)pyrene monooxygenase"]
["BCM","ENZ","BATS","ATP synthase beta chain"]
["BCM","ENZ","BCHE","Buterylcholinesterase"]
["BCM","ENZ","BCOD","Butoxycoumurin O-dealkylase"]
["BCM","ENZ","BGAL","beta-Galactosidase"]
["BCM","ENZ","BGCR","beta-Glucuronidase"]
["BCM","ENZ","BGMD","beta-Glucosaminidase"]
["BCM","ENZ","BGSE","beta-Glucosidase"]
["BCM","ENZ","BHXA","Benzpyrene hydroxylase"]
["BCM","ENZ","BN4H","Bunitrolol 4-hydroxylase"]
["BCM","ENZ","BPND","Benzphetamine-n-demethylase"]
["BCM","ENZ","BROD","Benzylresorufin O-deethylase"]
["BCM","ENZ","C116","Cytochrome P450 2C11/6"]
["BCM","ENZ","C1A2","Cytochrome P-450 1A2"]
["BCM","ENZ","C2D6","Cytochrome p-450 cyp2d6"]
["BCM","ENZ","C2E1","Cytochrome P450 2E1"]
["BCM","ENZ","C2K1","Cytochrome P450 2K1"]
["BCM","ENZ","C2M1","Cytochrome P450 2M1"]
["BCM","ENZ","C3A1","Cytochrome P450 3A1 (CYP3A1)"]
["BCM","ENZ","C7A1","Cholesterol 7-alpha-Hydroxylase"]
["BCM","ENZ","CA27","Cytochrome P450 3A27"]
["BCM","ENZ","CAAH","Carbonic anhydrase"]
["BCM","ENZ","CACA","Choline acetyltransferase"]
["BCM","ENZ","CACP","Ca2+/calmodulin-dependent protein kinase"]
["BCM","ENZ","CAPK","Choline phosphokinase"]
["BCM","ENZ","CATE","Chloramphenicol O-acetyltransferase"]
["BCM","ENZ","CATP","Calcium adenosine triphosphatase\n(ATPase) [calcium ATPase]"]
["BCM","ENZ","CCAT","Calcium carbonate adenosine triphosphotase"]
["BCM","ENZ","CCCS","Cytochrome c oxidase citrate synthase ratio"]
["BCM","ENZ","CCOX","Cytochrome C-oxidase"]
["BCM","ENZ","CECD","3-cyano-7-ethoxycoumarin O- deethylase"]
["BCM","ENZ","CEST","Cholinesterase"]
[null,null,"RCHE","RBC Chloinesterase",null,null,"Not in original ECOTOX list, added for HED data"]
[null,null,"PCHE","Plasma Cholinesterase"]
[null,null,"BCHE","Brain Cholinesterase"]
["BCM","ENZ","CHIT","Chitobiase"]
["BCM","ENZ","CLES","Cholesterol esterase"]
["BCM","ENZ","CLLS","Cellulase"]
["BCM","ENZ","CMYS","Chymotrypsin"]
["BCM","ENZ","CP1A","Cytochrome P1A"]
["BCM","ENZ","CPCY","choline-phosphate cytidylyltransferase"]
["BCM","ENZ","CPDE","Cytochrome P450-dependent O- deethylation activity"]
["BCM","ENZ","CPOD","Cytochrome P450 dependent O- demethylase"]
["BCM","ENZ","CPPO","Coproporphyrinogen oxidase"]
["BCM","ENZ","CPPT","Cholinephosphotransferase"]
["BCM","ENZ","CPSE","Creatine phosphokinase"]
["BCM","ENZ","CRKI","Creatine kinase"]
["BCM","ENZ","CRLP","Ceruloplasmin activity"]
["BCM","ENZ","CSP3","Caspase 3"]
["BCM","ENZ","CSYN","Citrate synthase"]
["BCM","ENZ","CTHB","Cathepsin b"]
["BCM","ENZ","CTHD","Cathepsin d"]
["BCM","ENZ","CTHP","Cathepsin"]
["BCM","ENZ","CTLS","Catalase"]
["BCM","ENZ","CTMT","Catechol o-methyltransferase"]
["BCM","ENZ","CTNS","Chitinase"]
["BCM","ENZ","CY2B","Cytochrome P2B (CYP2B)"]
["BCM","ENZ","CY2C","Cytochrome P-450 CYP2C"]
["BCM","ENZ","CYAA","Cytochrome aa3"]
["BCM","ENZ","CYAM","Cystine aminopeptidase"]
["BCM","ENZ","CYB5","Cytochrome B-5"]
["BCM","ENZ","CYCC","Cytochrome c + c1"]
["BCM","ENZ","CYOX","Chlorpyrifos-oxonase"]
["BCM","ENZ","CYP2","Cytochrome P2"]
["BCM","ENZ","CYP3","Cytochrome P3A"]
["BCM","ENZ","CYST","Cysteine dioxygenase"]
["BCM","ENZ","CYTA","Cytochrome P450A"]
["BCM","ENZ","CYTB","Cytochrome b"]
["BCM","ENZ","CZSD","Copper Zinc superoxide dismutase"]
["BCM","ENZ","D6DS","Delta-6-desaturase"]
["BCM","ENZ","DBHD","delta-5-3-beta hydroxysteroid dehydrogenase"]
["BCM","ENZ","DBHX","Dopamine beta-hydroxylase"]
["BCM","ENZ","DEAS","Dehydroascorbatase"]
["BCM","ENZ","DHAO","dehydroascorbate reductase"]
["BCM","ENZ","DHYD","NADPH dehydrogenase"]
["BCM","ENZ","DHYG","Dehydrogenase"]
["BCM","ENZ","DNSE","Deoxyribonuclease II"]
["BCM","ENZ","DSCA","Diethylsuccinase"]
["BCM","ENZ","DTDP","DT-diaphorase"]
["BCM","ENZ","E20M","Ecdysone 20-monooxygenase"]
["BCM","ENZ","ECOD","Ethoxycoumurin O-deethylase"]
["BCM","ENZ","EMDL","Erythromycin N-demethylase"]
["BCM","ENZ","ENCL","Endocellulase"]
["BCM","ENZ","ENDM","Ethylmorphine-n-demethylase"]
["BCM","ENZ","ENGC","Endoglucanase"]
["BCM","ENZ","EPHY","Epoxide hydrase"]
["BCM","ENZ","EPND","EPN (O-Ethyl-O-p-nitrophenyl phenylphosphonothionate) detoxification"]
["BCM","ENZ","ERKM","Extracellular Signal-Regulated MAP Kinases"]
["BCM","ENZ","EROD","7-Ethoxyresorufin O-deethylase"]
["BCM","ENZ","ESLI","Esterase lipase"]
["BCM","ENZ","ESST","Estradiol sulfotransferase"]
["BCM","ENZ","ESTE","Esterase"]
["BCM","ENZ","ESTS","Elastase"]
["BCM","ENZ","EXCL","Exocellulase"]
["BCM","ENZ","F16D","Fructose 1,6-diphosphatase"]
["BCM","ENZ","F6PD","Fructose-6-phosphate dehydrogenase"]
["BCM","ENZ","FADE","Fatty acyl desaturase"]
["BCM","ENZ","FASC","Fatty acid synthase complex"]
["BCM","ENZ","FDPA","Fructose-diphosphate aldolase"]
["BCM","ENZ","FECH","heme synthetase"]
["BCM","ENZ","FESD","Iron superoxide dismutase"]
["BCM","ENZ","FMOO","Flavin-containing monooxygenase"]
["BCM","ENZ","G6PD","Glucose-6-phosphate dehydrogenase"]
["BCM","ENZ","G6PT","Glucose-6-phosphatase"]
["BCM","ENZ","GAPD","Glyceraldehyde 3-phosphate dehydrogenase"]
["BCM","ENZ","GCOX","Glycolate oxidase"]
["BCM","ENZ","GCTA","Glucosyltransferase"]
["BCM","ENZ","GD6D","Glucose-6-phosphate dehydrogenase :\n6-phosphogluconate dehydrogenase\nratio"]
["BCM","ENZ","GENZ","Enzyme activity"]
["BCM","ENZ","GGCS","gamma-Glutamylcysteine synthetase"]
["BCM","ENZ","GGTP","gamma-glutamyl transpeptidase"]
["BCM","ENZ","GGTR","(gamma) -glutamyl transferase"]
["BCM","ENZ","GLAD","Glutamic acid dehydrogenase"]
["BCM","ENZ","GLKN","Glucokinase"]
["BCM","ENZ","GLMC","Glutamate decarboxylase"]
["BCM","ENZ","GLMD","Glutamate dehydrogenase"]
["BCM","ENZ","GLMS","Glutamine synthetase"]
["BCM","ENZ","GLMT","Glutamate transferase"]
["BCM","ENZ","GLPP","Glycogen phosphorylase"]
["BCM","ENZ","GLPX","Glutathione peroxidase"]
["BCM","ENZ","GLRE","Glutathione reductase"]
["BCM","ENZ","GLTR","Glucuronyl transferase"]
["BCM","ENZ","GLUT","Glutaminase"]
["BCM","ENZ","GLYD","Glyceraldehyde dehydrogenase"]
["BCM","ENZ","GMPP","Cyclic guanylic acid phosphodiesterase"]
["BCM","ENZ","GOPG","Glutamate Oxaloacetate Transaminase to Glutamic Pyruvic Transaminase ratio"]
["BCM","ENZ","GOTR","Glutamic-oxaloacetic transaminase"]
["BCM","ENZ","GPIM","Glucose phosphate isomerase"]
["BCM","ENZ","GPTR","Glutamic pyruvic transaminase"]
["BCM","ENZ","GSTR","Glutathione S-transferase"]
["BCM","ENZ","GTPD","Glutamyl transpeptadase"]
["BCM","ENZ","GTST","Glutathione synthetase"]
["BCM","ENZ","GULO","L-Gulonolactone oxidase"]
["BCM","ENZ","GUPX","Guaiacol peroxidase"]
["BCM","ENZ","HAFS","N-Hydroxy-2-acetylaminofluorene sulfotransferase"]
["BCM","ENZ","HAHY","Hydroxyacylglutathione hydrolase"]
["BCM","ENZ","HATP","H+-transporting ATPase"]
["BCM","ENZ","HBDS","alpha-Hydroxybutyrate dehydrogenase"]
["BCM","ENZ","HCAD","3-hydroxyacyl-CoA dehydrogenase"]
["BCM","ENZ","HCAR","beta-hydroxy-beta-methylglutaryl- CoA reductase"]
["BCM","ENZ","HEPX","Heptachlor epoxidase"]
["BCM","ENZ","HOXY","Heme oxygenase"]
["BCM","ENZ","HPSE","Hydrogen peroxidase"]
["BCM","ENZ","HSHG","3-beta Hydroxysteroid dehydrogenase"]
["BCM","ENZ","HXBH","Hexobarbital hydroxylase"]
["BCM","ENZ","HXKN","Hexokinase"]
["BCM","ENZ","ICDH","Isocitrate dehydrogenase"]
["BCM","ENZ","ICLY","Isocitric lyase"]
["BCM","ENZ","IDND","Isocitrate dehydrogenase (NAD+)"]
["BCM","ENZ","IDNP","Isocitrate dehydrogenase (NADP+)"]
["BCM","ENZ","IPYR","Inorganic pyrophosphate"]
["BCM","ENZ","ITMD","Iodothyronine 5'-monodeiodinase"]
["BCM","ENZ","IVAS","Invertase"]
["BCM","ENZ","KATE","Kynurenine aminotransferase"]
["BCM","ENZ","KYNU","Kynureninase"]
["BCM","ENZ","L3CS","L-3-cyanoalanine synthase"]
["BCM","ENZ","LADH","Lactate dehydrogenase"]
["BCM","ENZ","LAMO","lauric acid monooxygenase"]
["BCM","ENZ","LCDH","Lactic dehydrogenase"]
["BCM","ENZ","LDMD","Lactate dehydrogenase/malic dehydrogenase ratio"]
["BCM","ENZ","LEAM","Leucine aminopeptidase"]
["BCM","ENZ","LGDD","L-Gulonate dehydrogenase and decarboxylase"]
["BCM","ENZ","LGLY","Lactoylglutathione lyase"]
["BCM","ENZ","LIPS","Lipase"]
["BCM","ENZ","LNSE","l-Leucyl-beta-naphthylamide splitting enzyme"]
["BCM","ENZ","LPDH","Lysopine dehydrogenase"]
["BCM","ENZ","LPLP","Lipoprotein lipase"]
["BCM","ENZ","LPPR","Lipperoxidase"]
["BCM","ENZ","LPXG","Lipoxygenase"]
["BCM","ENZ","LTRS","leucine tRNA ligase"]
["BCM","ENZ","LTSE","Lactase"]
["BCM","ENZ","LUCI","Luciferase"]
["BCM","ENZ","LYSO","Lysyl oxidase"]
["BCM","ENZ","LYZM","Lysozyme activity"]
["BCM","ENZ","MADH","Malic dehydrogenase"]
["BCM","ENZ","MALE","Malic enzyme"]
["BCM","ENZ","MAOA","Mono amino oxidase"]
["BCM","ENZ","MAPK","Mitogen-activated protein kinases"]
["BCM","ENZ","MCAT","Magnesium carbonate adenosine triphosphatase"]
["BCM","ENZ","MCOD","Methoxycoumarin O-dealkylase"]
["BCM","ENZ","MDHA","monodehydroascorbate reductase"]
["BCM","ENZ","MFOS","Mixed function oxidases"]
["BCM","ENZ","MG6P","Microsomal glucose 6- phosphatase"]
["BCM","ENZ","MGAT","Magnesium adenosine triphosphatase"]
["BCM","ENZ","MLCB","Malathion carboxyleasterase"]
["BCM","ENZ","MLDA","Malate dehydrogenase"]
["BCM","ENZ","MLTS","Maltase"]
["BCM","ENZ","MM29","Matrix metalloproteinase 2 and Matrix metalloproteinase 9"]
["BCM","ENZ","MMP2","MMP2"]
["BCM","ENZ","MMP9","MMP9"]
["BCM","ENZ","MNSD","Manganese superoxide dismutase\n(MnSOD)"]
["BCM","ENZ","MNSO","Manganese superoxide dismutase\n(MnSOD)"]
["BCM","ENZ","MROD","Methoxyresorufin-o-deethylase"]
["BCM","ENZ","MSRA","Methionine sulfoxide reductase"]
["BCM","ENZ","MUDH","Multiple dehydrogenases (produced by soil microorganisms)"]
["BCM","ENZ","NAAT","Sodium adenosine triphosphatase"]
["BCM","ENZ","NABH","N-acetyl-beta-hexosaminidase"]
["BCM","ENZ","NACR","NADH-cytochrome c reductase"]
["BCM","ENZ","NADG","beta-N-Acetyl-D-glucosaminidase"]
["BCM","ENZ","NADH","Nicotinamide adenine dinucleotide\n(reduced) (NADH)"]
["BCM","ENZ","NADN","Nicotinamide adenine dinucleotide\n(oxidized) (NAD)"]
["BCM","ENZ","NAGD","N-Acetyl-beta-d-glucosamimidase"]
["BCM","ENZ","NAOX","Nicotinamide adenine dinucleotide phosphate oxidase (NADPH) Oxidase"]
["BCM","ENZ","NATT","N-Acetyltransferase"]
["BCM","ENZ","NCB5","NADH cytochrome B5 reductase"]
["BCM","ENZ","NCCR","NADPH cytochrome C reductase"]
["BCM","ENZ","NCTR","Nicotinamide transferase"]
["BCM","ENZ","NDCC","NADH cytochrome C reductase"]
["BCM","ENZ","NDDP","NADH-DT-diaphorase"]
["BCM","ENZ","NDFC","NADH ferricyanide reductase"]
["BCM","ENZ","NDFH","NADPH- ferrihemoprotein reductase"]
["BCM","ENZ","NDFR","NADH ferrichrome reductase"]
["BCM","ENZ","NDMT","N-Demethylase"]
["BCM","ENZ","NDPD","NADPH-Diaphorase (nicotinamide adenine dinucleotide phosphate diaphorase)"]
["BCM","ENZ","NEES","Neurotoxic esterase"]
["BCM","ENZ","NHCR","NADH cytochrome C reductase"]
["BCM","ENZ","NITG","Nitrogenase"]
["BCM","ENZ","NKAT","Sodium potassium ATPase"]
["BCM","ENZ","NNDE","Nitrosamine-N-demethylase"]
["BCM","ENZ","NNTR","NADPH-tetrazolium reductase"]
["BCM","ENZ","NOSZ","Nitric oxide synthase"]
["BCM","ENZ","NPHL","p-Nitrophenol hydroxylase"]
["BCM","ENZ","NRDT","Nitrate reductase"]
["BCM","ENZ","NRED","Nitroreductase"]
["BCM","ENZ","NSES","Non-specific esterases"]
["BCM","ENZ","O1LH","omega-1-Laurate hydroxylase"]
["BCM","ENZ","O2LH","omega-2-Laurate hydroxylase"]
["BCM","ENZ","OAHL","O-acetylhomoserine (thiol)-lyase"]
["BCM","ENZ","OLHD","omega-Laurate hydroxylase"]
["BCM","ENZ","ORCT","Ornithine carbamoyl transferase"]
["BCM","ENZ","ORDC","Ornithine decarboxylase"]
["BCM","ENZ","P1A1","Cytochrome P-450 1A1"]
["BCM","ENZ","P2B1","Cytochrome P450 2B1 (CYP2B1)"]
["BCM","ENZ","P420","Cytochrome P-420"]
["BCM","ENZ","P450","Cytochrome P-450"]
["BCM","ENZ","P6BH","Progesterone 6beta-hydroxylase"]
["BCM","ENZ","PAEA","Palmitoyl-CoA:estradiol acyltransferase"]
["BCM","ENZ","PAPN","Papain"]
["BCM","ENZ","PBES","Phenyl benzoate esterase"]
["BCM","ENZ","PBHD","Pentobarbital hydroxylase"]
["BCM","ENZ","PCCX","Picolinate carboxylase"]
["BCM","ENZ","PCHE","Pseudocholinesterase"]
["BCM","ENZ","PCLX","Picoline carboxylase"]
["BCM","ENZ","PCOD","Propoxycoumarin O-dealkylase"]
["BCM","ENZ","PCTN","Pectinase activity"]
["BCM","ENZ","PDPT","Phosphatidate phosphatase"]
["BCM","ENZ","PDSI","Protein disulfide-isomerase"]
["BCM","ENZ","PFRC","Phosphofructokinase"]
["BCM","ENZ","PGP1","Pyroglutamyl-peptidase I"]
["BCM","ENZ","PGTP","G-protein GTPase, heterotrimeric"]
["BCM","ENZ","PHBG","Porphobilinogen"]
["BCM","ENZ","PHGP","phospholipid-hydroperoxide glutathione peroxidase (PHGPx)"]
["BCM","ENZ","PHLA","Phosphorylase A"]
["BCM","ENZ","PHLB","Phosphorylase B"]
["BCM","ENZ","PHLC","Phospholipase C"]
["BCM","ENZ","PHLD","Phenoloxidase"]
["BCM","ENZ","PHLL","phenylalanine ammonia lyase"]
["BCM","ENZ","PHPD","Phospholipase D"]
["BCM","ENZ","PHTS","Phosphatase"]
["BCM","ENZ","PKSA","Protein kinase A"]
["BCM","ENZ","PKSC","Protein kinase C"]
["BCM","ENZ","PLA2","Phospholipase A2"]
["BCM","ENZ","PNAC","para-Nitrophenyl acetate carboxylesterase"]
["BCM","ENZ","PNAD","P-nitroanisole demethylase"]
["BCM","ENZ","PNOD","para-Nitrophenetole-o-deethylase"]
["BCM","ENZ","PNPP","4-nitrophenylphosphatase"]
["BCM","ENZ","PODA","Peroxidase activity"]
["BCM","ENZ","PPBD","Porphobilinogen deaminase"]
["BCM","ENZ","PPDE","Phosphodiesterase"]
["BCM","ENZ","PPDO","Prolyl hydroxylase"]
["BCM","ENZ","PPHL","Phosphorylase"]
["BCM","ENZ","PPOX","Polyphenol oxidase"]
["BCM","ENZ","PPPA","Phosphoenolpyruvic acid"]
["BCM","ENZ","PPPC","Phosphoenol pyruvate carboxylase"]
["BCM","ENZ","PPSN","Pepsin"]
["BCM","ENZ","PRCE","Protein C (activated)"]
["BCM","ENZ","PROD","Pentylresorufin O-deethylase"]
["BCM","ENZ","PRTA","Proteolytic activity"]
["BCM","ENZ","PRTS","Protease"]
["BCM","ENZ","PSPM","Phosphoamidase"]
["BCM","ENZ","PTCS","Phytochelatin synthase activity"]
["BCM","ENZ","PXPK","Pyridoxal Phosphokinase"]
["BCM","ENZ","PYKN","Pyruvate kinase"]
["BCM","ENZ","PYRC","Pyruvate carboxylase"]
["BCM","ENZ","QNPT","Quinolinate phosphoribosyltransferase"]
["BCM","ENZ","QORD","Quinone oxidoreductase"]
["BCM","ENZ","RBPC","Ribulose-1,5-bisphosphate carboxylase"]
["BCM","ENZ","REHL","Retinyl Ester Hydrolase"]
["BCM","ENZ","RHDS","Rhodanese"]
["BCM","ENZ","RNIN","Renin"]
["BCM","ENZ","RNPH","5'-Ribonucleotide phosphohydrolase"]
["BCM","ENZ","RNSE","RNase"]
["BCM","ENZ","RUBI","Bisphosphate carboxylase/oxygenase\n(Rubisco)"]
["BCM","ENZ","SASE","Arylsulfatase"]
["BCM","ENZ","SBDH","Sorbitol dehydrogenase"]
["BCM","ENZ","SCDH","Succinate dehydrogenase"]
["BCM","ENZ","SCRS","Sucrose synthase"]
["BCM","ENZ","SFTA","Sulfotransferase"]
["BCM","ENZ","SGOT","Serum glutamate oxalo acetate transaminase"]
["BCM","ENZ","SGPT","Serum glutamic pyruvic transaminase"]
["BCM","ENZ","SGPX","Selenium dependent glutathion peroxidase"]
["BCM","ENZ","SODA","Superoxide dismutase (SOD) enzyme activity"]
["BCM","ENZ","SOXE","Sulfite oxidase"]
["BCM","ENZ","SPGX","Selenium dependant glutathione peroxidase"]
["BCM","ENZ","SRDT","Serine dehydratase"]
["BCM","ENZ","SSAR","SGOT & SPGT to ALPH ratio"]
["BCM","ENZ","SSRA","SGOT to SPGT ratio"]
["BCM","ENZ","SSTT","steryl-sulfatase"]
["BCM","ENZ","STCS","Starch synthase"]
["BCM","ENZ","SUPS","Sucrose phosphate synthase"]
["BCM","ENZ","T15A","Testosterone 15-alpha hydroxylase"]
["BCM","ENZ","T16A","Testosterone 16-alpha hydroxylase"]
["BCM","ENZ","T23D","Tryptophan 2,3-dioxygenase"]
["BCM","ENZ","T2BH","Testosterone 2beta-hydroxylase"]
["BCM","ENZ","T3GL","Triiodotyrosine (T3) Glucuronidation"]
["BCM","ENZ","T4GL","L-Thyroxine (T4) Glucuronidation"]
["BCM","ENZ","T5D1","Type I iodothyronine deiodinase"]
["BCM","ENZ","T5D2","Type II iodothyronine deiodinase"]
["BCM","ENZ","T5D3","thyroxine 5-deiodinase"]
["BCM","ENZ","TAMN","Transaminase"]
["BCM","ENZ","TATS","Tyrosine aminotransferase"]
["BCM","ENZ","TBHY","Testosterone 16 beta-hydroxylase"]
["BCM","ENZ","TDPD","Thioredoxin peroxidase"]
["BCM","ENZ","THMN","Thiaminase"]
["BCM","ENZ","THTR","Thiol transferase"]
["BCM","ENZ","TKNS","Tyrosine kinases"]
["BCM","ENZ","TPHX","Tryptophan hydroxylase"]
["BCM","ENZ","TPOX","Tryptophan oxidase"]
["BCM","ENZ","TPSY","Trypsin"]
["BCM","ENZ","TRBA","Tributyrinase"]
["BCM","ENZ","TRIE","Triacetin esterase"]
["BCM","ENZ","TROX","Tryptophan oxygenase"]
["BCM","ENZ","TSHX","Tyrosine hydroxylase"]
["BCM","ENZ","TSKT","Transketolase"]
["BCM","ENZ","TSST","Testosterone sulfotransferase"]
["BCM","ENZ","TT2A","Testosterone 2-alpha hydroxylase"]
["BCM","ENZ","TT6A","Testosterone 6-alpha hydroxylase"]
["BCM","ENZ","TT6B","Testosterone 6-beta hydroxylase"]
["BCM","ENZ","TT7A","Testosterone 7-alphahydroxylase"]
["BCM","ENZ","TTRH","Testosterone hydroxylase"]
["BCM","ENZ","TUOX","Thiourea oxygenase"]
["BCM","ENZ","TYKN","Thymidine kinase"]
["BCM","ENZ","UDGT","UDP glucuronosyltransferase"]
["BCM","ENZ","UDPG","UDP glucose pyrophosphorylase"]
["BCM","ENZ","UDPT","Uridine diphosphate glucuronyl transferase, UDP glucuronyl transferase"]
["BCM","ENZ","UP3S","Uroporphyrinogen III synthase"]
["BCM","ENZ","UPDC","Uroporphyrinogen decarboxylase"]
["BCM","ENZ","UPIS","Uroporphyrinogen I synthetase"]
["BCM","ENZ","URON","Uronolactonase"]
["BCM","ENZ","URSE","Urease activity"]
["BCM","ENZ","VAAM","Valine aminopeptidase"]
["BCM","ENZ","XBME","Xenobiotic metabolizing enzymes"]
["BCM","ENZ","XODA","Xanthine oxidase, XOD"]
["BCM","HRM","11BA","11 beta- hydroxyandrostenedione"]
["BCM","HRM","11BT","11beta - hydroxytestosterone"]
["BCM","HRM","11DC","11-Deoxycortisol"]
["BCM","HRM","15AP","15-alpha-Hydroxyprogesterone"]
["BCM","HRM","15AT","15-alpha-Hydroxytestosterone"]
["BCM","HRM","15BH","15 Beta-hydroxytestosterone"]
["BCM","HRM","16AH","16-alpha-Hydroxytestosterone"]
["BCM","HRM","16AT","16alpha-Testosterone"]
["BCM","HRM","16BH","16 beta-Hydroxytestosterone"]
["BCM","HRM","18HC","18-Hydroxycorticosterone"]
["BCM","HRM","18HD","18-Hydroxy-11- deoxycorticosterone"]
["BCM","HRM","19HD","19-Hydroxytestosterone"]
["BCM","HRM","2AHT","2-alpha-Hydroxytestosterone"]
["BCM","HRM","2BHT","2-beta-Hydroxytestosterone"]
["BCM","HRM","4TO3","L-thyroxine outer ring 5'- monodeiodination"]
["BCM","HRM","5HST","5-Hydroxyindole acetic acid:serotonin"]
["BCM","HRM","6AHT","6-alpha-Hydroxytestosterone"]
["BCM","HRM","6BHT","6-beta-Hydroxytestosterone"]
["BCM","HRM","6BTT","6beta-Testosterone"]
["BCM","HRM","7AHT","7-alpha-Hydroxytestosterone"]
["BCM","HRM","7ATT","7alpha-Testosterone"]
["BCM","HRM","ABBD","4-androstene-3beta,17beta-diol"]
["BCM","HRM","ABPT","Androgen binding protein"]
["BCM","HRM","ABSA","Abscisic acid"]
["BCM","HRM","ACTH","Adrenocorticotropic hormone"]
["BCM","HRM","ADDL","Androstanediol"]
["BCM","HRM","ADDN","Androstenedione"]
["BCM","HRM","AHPG","17 alpha-Hydroxyprogesterone"]
["BCM","HRM","ALDS","Aldosterone"]
["BCM","HRM","AMSH","alpha-Melanocyte stimulating hormone"]
["BCM","HRM","ANDR","Androgen"]
["BCM","HRM","ASTN","Androstenone"]
["BCM","HRM","AUXN","Auxin"]
["BCM","HRM","BDPG","17,20beta-Dihydroxy-4- pregnen-3-one"]
["BCM","HRM","BOES","beta-Oestradiol"]
["BCM","HRM","CORT","Corticosterone (Corticoid)"]
["BCM","HRM","CRCT","Cortisol and Cortisone"]
["BCM","HRM","CRTS","Cortisol"]
["BCM","HRM","CTCL","Catecholamine"]
["BCM","HRM","CYTK","Cytokinin"]
["BCM","HRM","DECL","11-Deoxycortisol glucuronide"]
["BCM","HRM","DHPT","17alpha,20beta- dihydroxyprogesterone"]
["BCM","HRM","DHTR","Dihydrotestosterone"]
["BCM","HRM","DITS","Diiodotyrosine"]
["BCM","HRM","DOCS","Deoxycorticosterone"]
["BCM","HRM","DOPA","Dopamine"]
["BCM","HRM","ECDS","Ecdysteroids"]
["BCM","HRM","ECDY","Ecdysone"]
["BCM","HRM","ELTR","17beta-Estradiol:Testosterone ratio"]
["BCM","HRM","EPIN","Epinephrine"]
["BCM","HRM","EPNO","Epinephrine to norepinephrine ratio"]
["BCM","HRM","ESDL","17-beta Estradiol"]
["BCM","HRM","ESTO","Estrone"]
["BCM","HRM","ESTR","Estrogen (Oestrogen)"]
["BCM","HRM","FHBU","Follicle Stimulating Hormone, beta Subunit"]
["BCM","HRM","FOSH","Follicle stimulating hormone"]
["BCM","HRM","G11K","Glucuronidated 11-Ketotestosterone"]
["BCM","HRM","GAST","Gastrin"]
["BCM","HRM","GBDP","Glucoronidated 17,20beta-Dihydroxy-4- pregnen-3-one"]
["BCM","HRM","GCRT","Glucocorticoid"]
["BCM","HRM","GHAU","Glycoprotein Hormones, alpha Subunit"]
["BCM","HRM","GHRL","Ghrelin"]
["BCM","HRM","GHRM","Hormone, general changes in"]
["BCM","HRM","GIBB","Gibberellin"]
["BCM","HRM","GNTP","Gonadotropin"]
["BCM","HRM","GRHM","Gonadotropin releasing hormone"]
["BCM","HRM","GTHH","Growth hormone"]
["BCM","HRM","HCHH","Hyperglycemic hormone, crustacean"]
["BCM","HRM","HEDS","20-hydroxyecdysone"]
["BCM","HRM","HZ11","(Z)11-Hexadecenal:"]
["BCM","HRM","IAIA","N6(delta2-Isopentenyl)adenine to N6(delta2- Isopentenyl)adenoside ratio"]
["BCM","HRM","INHB","Inhibin B"]
["BCM","HRM","INHI","Inhibin"]
["BCM","HRM","INSL","Insulin"]
["BCM","HRM","IPTH","Immunoreactive parathyroid hormone"]
["BCM","HRM","KTST","11-Ketotestosterone"]
["BCM","HRM","LHBU","Luteinizing Hormone, beta Subunit"]
["BCM","HRM","LPTN","Leptin"]
["BCM","HRM","LUTH","Luteinizing hormone"]
["BCM","HRM","ME4T","Total 4a- methylsterols"]
["BCM","HRM","MELA","Melatonin"]
["BCM","HRM","MITS","Monoiodotyrosine"]
["BCM","HRM","NORD","Noradrenaline"]
["BCM","HRM","NORE","Norepinephrine"]
["BCM","HRM","PNMT","Phenylethanolamine N-methyl transferase"]
["BCM","HRM","PRGN","Pregnenolone"]
["BCM","HRM","PRGS","Progesterone"]
["BCM","HRM","PRLC","Prolactin"]
["BCM","HRM","PTHH","Parathyroid hormone (PTH)"]
["BCM","HRM","S11K","Sulfated 11-Ketotestosterone"]
["BCM","HRM","SBDP","Sulfated 17,20-beta-Dihydroxy-4-pregnen-3- one"]
["BCM","HRM","SMMD","Somatomedins"]
["BCM","HRM","SMTC","Somatomedin C"]
["BCM","HRM","SRIF","Somatostatin"]
["BCM","HRM","SRTN","Serotonin"]
["BCM","HRM","ST5T","Total (delta)5- sterols"]
["BCM","HRM","ST8T","Total (delta)8- sterols"]
["BCM","HRM","STRD","Steroids"]
["BCM","HRM","STST","Sulfated Testosterone"]
["BCM","HRM","T3T4","Triidothyronine (T3) to thyroxine (T4)"]
["BCM","HRM","T4T3","Thyroxine:Triiodothyronine"]
["BCM","HRM","TGLD","Testosterone glucuronide"]
["BCM","HRM","THYR","Thyroxine"]
["BCM","HRM","TRHH","Thyrotropin Releasing Hormone"]
["BCM","HRM","TRII","Triiodothyronine"]
["BCM","HRM","TSHT","Thyrotropin"]
["BCM","HRM","TSTR","Testosterone"]
["BCM","HRM","VASO","Vasopressin"]
["BCM","HRM","ZZRR","Zeatin to Zeatin riboside ratio"]
["GRO","DVP","68CL","6-8 Cell stage"]
["GRO","DVP","AAFR","Age at first reproduction"]
["GRO","DVP","ABNM","Abnormal"]
["GRO","DVP","ANGG","Angiogenesis"]
["GRO","DVP","AOPT","Anophthalmia"]
["GRO","DVP","BSCY","Blastocyst stage"]
["GRO","DVP","CCLV","Cell cleavage"]
["GRO","DVP","CLFT","Cleft palate"]
["GRO","DVP","COAT","Coat development"]
["GRO","DVP","COLR","Color"]
["GRO","DVP","CORK","Cryptorchidism"]
["GRO","DVP","DFRM","Deformation"]
["GRO","DVP","DNSY","Density"]
["GRO","DVP","DVLP","Slowed, Retarded, Delayed or Non- development"]
["GRO","DVP","EARO","Ear opening"]
["GRO","DVP","EARP","Ear pinna detachment"]
["GRO","DVP","EBCN","Effective body concentrations"]
["GRO","DVP","EMRG","Emergence"]
["GRO","DVP","ENDD","Endoderm differentiation"]
["GRO","DVP","EVFO","Envelope formation"]
["GRO","DVP","EYOP","Eye opening"]
["GRO","DVP","FIRM","Firmness"]
["GRO","DVP","FLDG","Fledged/female or /brood"]
["GRO","DVP","FLWD","Duration of Flowering"]
["GRO","DVP","FORM","Organ/tissue formation"]
["GRO","DVP","FURR","Fur Development"]
["GRO","DVP","GDVP","Developmental changes, general"]
["GRO","DVP","GRRT","Growth rate"]
["GRO","DVP","GSTL","Gastrulation"]
["GRO","DVP","INCT","Incubation time"]
["GRO","DVP","LRCF","Loricae formation"]
["GRO","DVP","MATR","Maturity"]
["GRO","DVP","MMPH","Metamorphosis"]
["GRO","DVP","MOLT","Molting"]
["GRO","DVP","MOPT","Microphthalmia"]
["GRO","DVP","MRLA","Morula stage"]
["GRO","DVP","NORM","Normal"]
["GRO","DVP","PHRN","Postharvest character no effect"]
["GRO","DVP","PHRV","Post harvest character influenced"]
["GRO","DVP","PUPA","Pupation"]
["GRO","DVP","RSPN","Resorption"]
["GRO","DVP","STGE","Stage"]
["GRO","DVP","SXDP","Sexual development"]
["GRO","DVP","TEMR","Time to first emergence"]
["GRO","DVP","TERA","Teratogenic measurements"]
["GRO","DVP","TFLW","Time to flower"]
["GRO","DVP","THED","Time to heading"]
["GRO","DVP","TRRA","Transformation ratio"]
["GRO","DVP","WEAN","Weaned"]
["GRO","DVP","WGHT","Weight"]
["GRO","DVP","YLKA","Yolk sac absorption, Yolk sac utilization"]
["GRO","GRO","ABNM","Abnormal"]
["GRO","GRO","AREA","Area"]
["GRO","GRO","BDBN","Body burden"]
["GRO","GRO","BMAS","Biomass"]
["GRO","GRO","COND","Condition index"]
["GRO","GRO","CRCM","Circumference"]
["GRO","GRO","DIST","Distance"]
["GRO","GRO","DMTR","Diameter"]
["GRO","GRO","DNSY","Density"]
["GRO","GRO","DWGT","Dry weight (AQUIRE only)"]
["GRO","GRO","EBCN","Effective body concentrations"]
["GRO","GRO","GAIN","Weight gain"]
["GRO","GRO","GGRO","Growth, general"]
["GRO","GRO","GGRT","General growth rate"]
["GRO","GRO","GREI","Growth efficiency index"]
["GRO","GRO","GRRT","Growth rate"]
["GRO","GRO","HGHT","Height"]
["GRO","GRO","LGTH","Length"]
["GRO","GRO","LINT","Lint"]
["GRO","GRO","NGAN","Net gain"]
["GRO","GRO","NLEF","Number of leaves"]
["GRO","GRO","NNOD","Dry mass / plant roots non-nodulated"]
["GRO","GRO","NODE","Number of nodules/nodulated plant roots"]
["GRO","GRO","NROT","Number of roots"]
["GRO","GRO","PMTR","Perimeter"]
["GRO","GRO","RADI","Radius"]
["GRO","GRO","RGNR","Limb/ body part regeneration"]
["GRO","GRO","RLGR","Relative growth rate"]
["GRO","GRO","SIZE","Size"]
["GRO","GRO","SPGR","Specific growth rate"]
["GRO","GRO","STNT","Stunting"]
["GRO","GRO","THIK","Thickness"]
["GRO","GRO","THRV","Time to harvest"]
["GRO","GRO","VGOR","Vigor"]
["GRO","GRO","VOLU","Volume"]
["GRO","GRO","WDTH","Width"]
["GRO","GRO","WGHT","Weight"]
["GRO","GRO","WWGT","Wet weight (AQUIRE only)"]
["GRO","MPH","ABDS","Apex to base distance"]
["GRO","MPH","ABNM","Abnormal"]
["GRO","MPH","ABST","Absence, absent"]
["GRO","MPH","ANGG","Angiogenesis"]
["GRO","MPH","AREA","Area"]
["GRO","MPH","BVSL","Blood vessels"]
["GRO","MPH","CAWT","Calcium weight"]
["GRO","MPH","COND","Condition index"]
["GRO","MPH","COSC","Caudal ossification center"]
["GRO","MPH","CRCM","Circumference"]
["GRO","MPH","CTTK","Ratio of cortical thickness to diameter"]
["GRO","MPH","DEPO","Shell deposition"]
["GRO","MPH","DMTR","Diameter"]
["GRO","MPH","DNSY","Density"]
["GRO","MPH","FSSR","Fissure"]
["GRO","MPH","GMPH","General morphological changes"]
["GRO","MPH","HGHT","Height"]
["GRO","MPH","IMPS","Imposex, intersex conditions"]
["GRO","MPH","INTS","Intussusception"]
["GRO","MPH","IPOS","Inter-parietal ossification"]
["GRO","MPH","LFLV","Lens focal length variability"]
["GRO","MPH","LGTH","Length"]
["GRO","MPH","MOSC","Metacarpal ossification center"]
["GRO","MPH","NLRG","enlargement"]
["GRO","MPH","NORM","Normal"]
["GRO","MPH","OSSC","Ossification"]
["GRO","MPH","OSTD","Osteoid"]
["GRO","MPH","POSC","Parietal ossification"]
["GRO","MPH","PULP","Pulp"]
["GRO","MPH","QNTY","Quantity"]
["GRO","MPH","RADI","Radius"]
["GRO","MPH","RATO","Ratio"]
["GRO","MPH","RIBS","Number of ribs"]
["GRO","MPH","SFRB","Supernumerary full rib"]
["GRO","MPH","SHPE","Shape"]
["GRO","MPH","SIZE","Size"]
["GRO","MPH","SMIX","Organ weight in relationship to body weight"]
["GRO","MPH","SMTE","Somite"]
["GRO","MPH","SOSC","Sternal ossification center"]
["GRO","MPH","SRIB","Supernumerary ribs"]
["GRO","MPH","SSRB","Short supernumerary rib"]
["GRO","MPH","STBD","Seminiferous tubule diameter"]
["GRO","MPH","STGE","Stage"]
["GRO","MPH","STRC","Structural changes"]
["GRO","MPH","STTO","Strength and tone"]
["GRO","MPH","SVTE","Supernumerary vertebrae"]
["GRO","MPH","THIK","Thickness"]
["GRO","MPH","TKWD","Thickness:width"]
["GRO","MPH","VOLU","Volume"]
["GRO","MPH","WDTH","Width"]
["GRO","MPH","WEAR","Wearing"]
["GRO","MPH","WGHT","Weight"]
["CEL","CEL","AGGR","Aggregation/adhesion"]
["CEL","CEL","AHRC","Aryl Hydrocarbon Receptor"]
["CEL","CEL","ANGR","Androgen Receptors"]
["CEL","CEL","AREA","Area"]
["CEL","CEL","ARGY","Argyophilic cells"]
["CEL","CEL","BADR","Beta-adrenergic receptor"]
["CEL","CEL","BASO","Basophil"]
["CEL","CEL","BCEL","B-cell"]
["CEL","CEL","BPCL","Bipolar cell"]
["CEL","CEL","BSNC","Basophilic normoblast\n(erythroblast)"]
["CEL","CEL","BWDD","Blood-water diffusion distance"]
["CEL","CEL","CCHG","Cell changes"]
["CEL","CEL","CDRT","Cell division rate"]
["CEL","CEL","CESR","Cytosolic Estrogen Receptor"]
["CEL","CEL","CILR","Ciliated type II receptors"]
["CEL","CEL","CIRC","Choline acetyltransferase (ChAT)\nimmunoreactive cells"]
["CEL","CEL","CLCE","Chloride cell"]
["CEL","CEL","CMGR","Cell migration"]
["CEL","CEL","CRCM","Circumference"]
["CEL","CEL","CTRV","Cell turnover"]
["CEL","CEL","CVIA","Cell Viability"]
["CEL","CEL","CYTO","Cytotoxicity"]
["CEL","CEL","DEND","Dendrite receptors"]
["CEL","CEL","DIVC","Dividing cells"]
["CEL","CEL","DMTR","Diameter"]
["CEL","CEL","DNSY","Density"]
["CEL","CEL","DPTH","Depth"]
["CEL","CEL","EOSN","Eosinophil"]
["CEL","CEL","ERTH","Erythroblasts"]
["CEL","CEL","ESRS","Estradiol receptor sites"]
["CEL","CEL","FOCI","Foci"]
["CEL","CEL","GABR","gamma aminobutyric acid receptor"]
["CEL","CEL","GBLT","Goblet cells"]
["CEL","CEL","GLCL","Gland cells"]
["CEL","CEL","GLCR","Glucocorticoid receptor"]
["CEL","CEL","GNDT","Gonadotrophs"]
["CEL","CEL","GRAN","Granulocyte"]
["CEL","CEL","GRCN","Germinal Center"]
["CEL","CEL","GTIM","Generation time"]
["CEL","CEL","HCYT","Hemocyte"]
["CEL","CEL","HGHT","Height"]
["CEL","CEL","HLCR","Heterophil to lymphocyte cell ratio"]
["CEL","CEL","HMPS","Hematopoiesis"]
["CEL","CEL","HSCS","Hematopoietic stem cells"]
["CEL","CEL","HTCY","Heterocyst frequency"]
["CEL","CEL","HTPL","Heterophiles"]
["CEL","CEL","ILDS","Interlamellar distance"]
["CEL","CEL","LEUK","Leukocytes"]
["CEL","CEL","LGTH","Length"]
["CEL","CEL","LMFI","Lamellar fusion index"]
["CEL","CEL","LMPH","Lymphocyte"]
["CEL","CEL","MAST","Mast Cells"]
["CEL","CEL","MONO","Monocyte"]
["CEL","CEL","MPGC","Macrophage"]
["CEL","CEL","MTMC","Metamyelocyte"]
["CEL","CEL","MUCR","Muscarinic cholinergic receptor"]
["CEL","CEL","MYCT","Myocyte"]
["CEL","CEL","MYLO","Myelocyte"]
["CEL","CEL","NCCM","Normochromatic cells, micronucleated"]
["CEL","CEL","NCEL","Number of cells"]
["CEL","CEL","NCPC","Micronucleated Normochromatic cell to micronucleated Polychromatic cell ratio"]
["CEL","CEL","NCRC","Nicotinic receptors"]
["CEL","CEL","NESR","Nuclear Estrogen Receptor"]
["CEL","CEL","NEUT","Neutrophil"]
["CEL","CEL","NLEI","Nuclei"]
["CEL","CEL","NMDR","NMDA Receptor"]
["CEL","CEL","NRBC","Nucleated red blood cells"]
["CEL","CEL","NROD","Rods"]
["CEL","CEL","OCNC","Orthochromatic normoblast (erythroblast)"]
["CEL","CEL","OGNL","Organelle changes"]
["CEL","CEL","OSCT","Osteoclast"]
["CEL","CEL","OSRS","Osmotic resistance/ RBC"]
["CEL","CEL","PCCM","Polychromatic cells, micronucleated"]
["CEL","CEL","PCNC","Ratio of polychromatic to normochromatic micronucleated cells"]
["CEL","CEL","PCRC","Polychromatic cells"]
["CEL","CEL","PGRC","Progesterone Receptor"]
["CEL","CEL","PKNJ","Purkinje cells"]
["CEL","CEL","PKNS","Pyknosis"]
["CEL","CEL","PLAS","Plasmolysis"]
["CEL","CEL","PMNC","Polymorphonuclear cells"]
["CEL","CEL","PNBL","Pronormoblast"]
["CEL","CEL","PRKY","Perikarya"]
["CEL","CEL","PSMC","Plasma cells"]
["CEL","CEL","RATO","Ratio"]
["CEL","CEL","RBCE","Red blood cell"]
["CEL","CEL","RDCP","Relative diffusing capacity"]
["CEL","CEL","RETI","Reticulocytes"]
["CEL","CEL","ROXB","Reactive oxygen species scavenging capacity"]
["CEL","CEL","RSBC","Receptor site binding capacity"]
["CEL","CEL","RTMC","Reticulum cell"]
["CEL","CEL","SGDN","Signal density"]
["CEL","CEL","SIZE","Size"]
["CEL","CEL","SPLO","Splenocytes"]
["CEL","CEL","SRTL","Sertoli cells"]
["CEL","CEL","STCL","Stippled cells"]
["CEL","CEL","STRC","Structural changes"]
["CEL","CEL","TCEL","T-cell"]
["CEL","CEL","TCRA","T-cell receptor ab (TCR)"]
["CEL","CEL","THRM","Thrombocytes"]
["CEL","CEL","TWBC","White blood cell count, total"]
["CEL","CEL","UBWB","White blood cell, undifferentiated blasts"]
["CEL","CEL","VIAB","Viability"]
["CEL","CEL","VOLU","Volume"]
["CEL","CEL","WBCI","White blood cell index"]
["CEL","CEL","WDTH","Width"]
["CEL","GEN","11BR","CYP11beta mRNA"]
["CEL","GEN","1IDM","Type I iodothyronine deiodinase mRNA"]
["CEL","GEN","20BM","20 beta-hydroxysteroid dehydrogenase mRNA"]
["CEL","GEN","2E1R","CYP2E1 mRNA"]
["CEL","GEN","2IDM","Type II iodothyronine deiodinase mRNA"]
["CEL","GEN","2K1R","CYP2K1 mRNA"]
["CEL","GEN","2KMR","Cyp2K mRNA"]
["CEL","GEN","2M1R","CYP2M1 mRNA"]
["CEL","GEN","3A27","CYP3A27 mRNA"]
["CEL","GEN","3HMM","3-Hydroxy-3-methylglutaryl coenzyme A reductase mRNA"]
["CEL","GEN","3IDM","Type III iodothyronine deiodinase mRNA"]
["CEL","GEN","5RMR","5alpha-reductase 1 mRNA"]
["CEL","GEN","AA1R","Adenosine A1 receptor mRNA"]
["CEL","GEN","AAMR","Aromatase A mRNA"]
["CEL","GEN","ABBM","Activin beta B subunit mRNA"]
["CEL","GEN","ACHR","Acetylcholinesterase mRNA"]
["CEL","GEN","ACMR","Actin mRNA"]
["CEL","GEN","ACRD","Abnormal chromosomal distribution"]
["CEL","GEN","AD1M","Aldehyde dehydrogenase 1a1 mRNA"]
["CEL","GEN","AD2M","Aldehyde dehydrogenase 2 mRNA"]
["CEL","GEN","AD3M","Aldehyde dehydrogenase 3a1 mRNA"]
["CEL","GEN","ADBM","Aldehyde dehydrogenase 1b1 mRNA"]
["CEL","GEN","ADHD","Aldehyde dehydrogenase mRNA"]
["CEL","GEN","ADHR","Alcohol dehydrogenase mRNA"]
["CEL","GEN","AHMR","Aryl Hydrocarbon Receptor protein mRNA"]
["CEL","GEN","AHRR","aryl hydrocarbon receptor repressor\n(AhRR) mRNA"]
["CEL","GEN","ALFR","Allele frequency"]
["CEL","GEN","AMHR","amh mRNA"]
["CEL","GEN","AMRN","Cytochrome P450aromB mRNA"]
["CEL","GEN","AMSR","S-adenosylmethionine synthetase mRNA"]
["CEL","GEN","APOP","Apoptosis, programmed cell death, DNA fragmentation"]
["CEL","GEN","ATRN","Alpha-induced tumor necrosis factor mRNA"]
["CEL","GEN","AVMR","alpha vitelline envelope protein mRNA"]
["CEL","GEN","BADF","beta-Actin cDNA fragments"]
["CEL","GEN","BAI2","Brain-specific angiogenesis inhibitor\n2 (BAI2) mRNA"]
["CEL","GEN","BAI3","Brain-specific angiogenesis inhibitor\n3 (BAI3) mRNA"]
["CEL","GEN","BAXR","bax mRNA"]
["CEL","GEN","BHMR","17 beta-hydroxysteroid dehydrogenase mRNA"]
["CEL","GEN","BHTR","betaine homocysteine S- methyltransferase mRNA"]
["CEL","GEN","BNFM","Brain-derived neurotrophic factor mRNA"]
["CEL","GEN","BRAK","Chromosomal breaks"]
["CEL","GEN","BVMR","beta vitelline envelope protein mRNA"]
["CEL","GEN","C19M","CYP19 mRNA"]
["CEL","GEN","C1A1","CYP19A1"]
["CEL","GEN","C212","CYP2B1/2 mRNA"]
["CEL","GEN","C2BR","Cytochrome P-450 2B mRNA"]
["CEL","GEN","C2MR","Cytochrome P4502N2 mRNA"]
["CEL","GEN","C9A2","CYP19A2"]
["CEL","GEN","CA1M","Cyp1A1 mRNA"]
["CEL","GEN","CA2M","Cytochrome P-450 1A2 mRNA"]
["CEL","GEN","CA3M","Cyp1A3 mRNA"]
["CEL","GEN","CAAM","Cytochrome P450 aromatase A\nmRNA"]
["CEL","GEN","CABR","Chromosomal aberrations"]
["CEL","GEN","CALM","Cytochrome P450 c17 alpha hydroxylase/17,20 lyase mRNA"]
["CEL","GEN","CARN","CD36 antigen mRNA"]
["CEL","GEN","CB10","Cyp2b10 mRNA"]
["CEL","GEN","CBMR","Cyclin B mRNA"]
["CEL","GEN","CBP9","CaBP-9K mRNA"]
["CEL","GEN","CCOI","Cytochrome C oxidase chain I mRNA"]
["CEL","GEN","CDNA","Complementary DNA (cDNA)"]
["CEL","GEN","CFSM","c-fos mRNA"]
["CEL","GEN","CGAP","Chromosomal gap"]
["CEL","GEN","CHDF","Choriogenin H cDNA fragments"]
["CEL","GEN","CHLM","Chlorophyll mutation / albina mutants"]
["CEL","GEN","CHMR","Choriogenin H mRNA"]
["CEL","GEN","CKMR","cytokine mRNA"]
["CEL","GEN","CLDF","Choriogenin L cDNA fragments"]
["CEL","GEN","CLMR","Choriogenin L-mRNA"]
["CEL","GEN","CMTN","Chromatin"]
["CEL","GEN","CP3R","Caspase 3 mRNA"]
["CEL","GEN","CPRN","Cytochrome P1A messenger RNA"]
["CEL","GEN","CRFA","Corticotropin releasing factor mRNA to Acidic ribosomal phosphoprotein P0 mRNA ratio"]
["CEL","GEN","CRMR","Corticotropin-releasing factor mRNA"]
["CEL","GEN","CUTR","Copper transporter I mRNA"]
["CEL","GEN","CUZR","Copper zinc superoxide dismutase mRNA"]
["CEL","GEN","CX1R","Cox1 mRNA"]
["CEL","GEN","CYRN","Cyp1b1 mRNA"]
["CEL","GEN","DAMG","Damage"]
["CEL","GEN","DMRT","dmrt1 mRNA"]
["CEL","GEN","DNAB","DNA binding"]
["CEL","GEN","DNAC","DNA concentration"]
["CEL","GEN","DNAD","DNA Adducts"]
["CEL","GEN","DNAS","DNA synthesis rate"]
["CEL","GEN","DNPR","DNA to protein ratio"]
["CEL","GEN","DNRN","DNA to RNA ratio"]
["CEL","GEN","DPLT","Diplotene"]
["CEL","GEN","DPTR","Dopamine Transporter Expression"]
["CEL","GEN","DTMR","Dopamine transporter mRNA"]
["CEL","GEN","EBCN","Effective body concentrations"]
["CEL","GEN","EFMR","Eukaryotic initiation factor 4A1 mRNA"]
["CEL","GEN","EGFR","egfr mRNA"]
["CEL","GEN","EIMR","Eukaryotic initiation factor 2B mRNA"]
["CEL","GEN","ELH3","rtERalphaL mRNA to histone H3 mRNA ratio"]
["CEL","GEN","EMRN","Estrogen mRNA"]
["CEL","GEN","EMRR","Estrogen receptor : estrogen mRNA\nratio"]
["CEL","GEN","ERAM","Estrogen receptor alpha mRNA"]
["CEL","GEN","ERBR","Estrogen receptor beta mRNA"]
["CEL","GEN","ESH3","rtERalphaS mRNA to histone H3 mRNA ratio"]
["CEL","GEN","ESRG","Estrogen receptor gene"]
["CEL","GEN","ETIR","Eukaryotic translation initiation factor\n2 subunit 3 mRNA"]
["CEL","GEN","FARN","Fatty acid binding protein 5 mRNA"]
["CEL","GEN","FSMR","Follicle stimulating hormone beta mRNA"]
["CEL","GEN","G1H3","sGnRH1 mRNA to histone H3 mRNA\nratio"]
["CEL","GEN","G1PN","G1 phase neuclei"]
["CEL","GEN","G2H3","sGnRH2 mRNA to histone H3 mRNA\nratio"]
["CEL","GEN","G65M","Glutamate decarboxylase 65 kDa isoform mRNA"]
["CEL","GEN","G67M","Glutamate decarboxylase 67 kDa isoform mRNA"]
["CEL","GEN","G6MR","G6A11 mRNA"]
["CEL","GEN","GA2R","Type-II gonadotrophin alpha subunit mRNA"]
["CEL","GEN","GASR","Gonadotropin alpha subunit mRNA"]
["CEL","GEN","GB2R","Type-II gonadotrophin beta subunit mRNA"]
["CEL","GEN","GBPR","Gonadotropin beta-like protein mRNA"]
["CEL","GEN","GCRR","Glucocorticoid receptor mRNA"]
["CEL","GEN","GCS3","Colony stimulating factor 3. Granulocyte , mRNA"]
["CEL","GEN","GD67","GAD67 (glutamate decarbosylase)\nmRNA"]
["CEL","GEN","GDRN","Growth arrest and DNA-damage- inducible 45 beta mRNA"]
["CEL","GEN","GEXP","Gene expression"]
["CEL","GEN","GGEN","Genetics, general"]
["CEL","GEN","GGSM","Gamma glutamylcysteine synthetase mRNA"]
["CEL","GEN","GHMR","Growth hormone mRNA"]
["CEL","GEN","GLRR","Glutathione reductase mRNA"]
["CEL","GEN","GLT1","Glucose transporter 1 mRNA"]
["CEL","GEN","GLT3","Glucose transporter 3 mRNA"]
["CEL","GEN","GMC2","Colony stimulating factor 2, Granulocyte-macrophage, mRNA"]
["CEL","GEN","GNRR","gonadotrophin releasing hormone\n(GnRH) receptor mRNA"]
["CEL","GEN","GORN","Glutamate oxaloacetate transaminase 1 mRNA"]
["CEL","GEN","GRHR","gonadotrophin releasing hormone\n(GnRH) mRNA"]
["CEL","GEN","GTPF","Genotype frequencies"]
["CEL","GEN","GVMR","gamma vitelline envelope protein mRNA"]
["CEL","GEN","GZBR","Granzyme B mRNA"]
["CEL","GEN","H23R","HR23B mRNA"]
["CEL","GEN","H4AR","Hepatocyte nuclear factor 4 alpha mRN"]
["CEL","GEN","H70R","HSP70 mRNA"]
["CEL","GEN","H90R","HSP90 (Heat shock protein 90)\nmRNA"]
["CEL","GEN","HC1R","Hemocyanin alpha (or 1) chain mRNA"]
["CEL","GEN","HC2R","Hemocyanin beta (2-like) chain mRNA"]
["CEL","GEN","HH3R","Histone H3 mRNA"]
["CEL","GEN","HHMR","3B-Hydroxysteroid dehydrogenase mRNA"]
["CEL","GEN","HTZY","Heterozygosity"]
["CEL","GEN","I10R","Interleukin 10 mRNA"]
["CEL","GEN","I12A","Interleukin 12a mRNA"]
["CEL","GEN","I12B","Interleukin 12b mRNA"]
["CEL","GEN","I17R","Interleukin 17 mRNA"]
["CEL","GEN","I1AR","Interleukin 1 alpha mRNA"]
["CEL","GEN","I1BR","Interleukin 1 beta mRNA"]
["CEL","GEN","I3MR","Interleukin 3 mRNA"]
["CEL","GEN","I4MR","Interleukin 4 mRNA"]
["CEL","GEN","I6MR","Interleukin 6 mRNA"]
["CEL","GEN","IFGR","Interferon gamma mRNA"]
["CEL","GEN","IL2R","Interleukin-2 mRNA"]
["CEL","GEN","INS3","insl3 (insulin-like peptide 3) mRNA"]
["CEL","GEN","LCTR","Leucine Specific tRNA"]
["CEL","GEN","LDBR","Lactate Dehydrogenase B mRNA"]
["CEL","GEN","LEPT","Leptotene"]
["CEL","GEN","LFNR","lactoferrin mRNA"]
["CEL","GEN","LHAR","Luteinizing hormone alpha-subunit mRNA"]
["CEL","GEN","LHBR","Luteinizing hormone beta-subunit mRNA"]
["CEL","GEN","LHMR","Lutenizing hormone mRNA"]
["CEL","GEN","LLRM","Low-density lipoprotein receptor associated protein mRNA"]
["CEL","GEN","LLRN","Lipoprotein lipase mRNA"]
["CEL","GEN","LPDN","Lipid to DNA ratio"]
["CEL","GEN","M1MR","Metallothionein-I mRNA"]
["CEL","GEN","M2MR","Metallothionein-II mRNA"]
["CEL","GEN","ME1A","Meiotic abnormalities, 1st anaphase"]
["CEL","GEN","ME1M","Meiotic abnormalities, 1st metaphase"]
["CEL","GEN","ME2A","Meiotic abnormalities, 2nd anaphase"]
["CEL","GEN","ME2M","Meiotic abnormalities, 2nd metaphase"]
["CEL","GEN","MEDM","Meiotic abnormalities, diakinesis and\n1st"]
["CEL","GEN","MEIA","Meiotic abnormality"]
["CEL","GEN","MEIR","Meiosis rate"]
["CEL","GEN","MEIX","Meiotic Index"]
["CEL","GEN","MGRN","Magnesium superoxide dismutase mRNA"]
["CEL","GEN","MIAT","Mitotic abnormalities, ana-telophase"]
["CEL","GEN","MIBC","Mitotic abnormalities, binucleate cell"]
["CEL","GEN","MIBG","Mitotic abnormalities, bridge"]
["CEL","GEN","MICL","Mitotic abnormalites, clumping"]
["CEL","GEN","MICY","Mitotic abnormalities, cytomixis"]
["CEL","GEN","MIES","Mitotic abnormalities, early separation"]
["CEL","GEN","MIEX","Mitotic abnormalities, exclusion"]
["CEL","GEN","MIFR","Mitotic abnormalities, fragment"]
["CEL","GEN","MIIN","Mitotic abnormalities, interphase cells"]
["CEL","GEN","MILG","Mitotic abnormalities, laggard"]
["CEL","GEN","MIMN","Mitotic abnormalities, micronuclei"]
["CEL","GEN","MIMT","Mitotic abnormalities, metaphase"]
["CEL","GEN","MINB","Mitotic abnormalities, nuclear budding"]
["CEL","GEN","MINF","Mitotic abnormalities, nuclear fusion"]
["CEL","GEN","MIPO","Mitotic abnormalities, disturbed polarity"]
["CEL","GEN","MIPR","Mitotic abnormalities, prophase"]
["CEL","GEN","MISK","Mitotic abnormalities, stickiness"]
["CEL","GEN","MITA","Mitotic abnormalities"]
["CEL","GEN","MITI","Mitotic index (# mitoses/total cells)"]
["CEL","GEN","MITR","Mitotic rate"]
["CEL","GEN","MMRN","Metallothionein mRNA"]
["CEL","GEN","MNUC","Micronuclei"]
["CEL","GEN","MRMT","Metallothionen mRNA metallothionein ratio"]
["CEL","GEN","MRNA","Messenger RNA"]
["CEL","GEN","MTOS","Mitosis"]
["CEL","GEN","MUTA","Mutation"]
["CEL","GEN","NABN","Nuclear abnormality"]
["CEL","GEN","NAP4","Phospholipase C gamma-binding protein (NAP4) mRNA"]
["CEL","GEN","NCPF","Nuclear phase frequency"]
["CEL","GEN","NGRN","Notch gene homolog 1 mRNA"]
["CEL","GEN","NLMR","Nucleolin mRNA"]
["CEL","GEN","NOSR","nitric oxide synthase mRNA"]
["CEL","GEN","NQO1","Nqo1 mRNA"]
["CEL","GEN","OAP8","OsAPx8 mRNA"]
["CEL","GEN","OCHM","omChgH mRNA"]
["CEL","GEN","OCLM","omChgL mRNA"]
["CEL","GEN","OXNR","Orexin mRNA"]
["CEL","GEN","P3AM","Cytochrome P450 3A mRNA"]
["CEL","GEN","P4MR","P450scc mRNA"]
["CEL","GEN","PACH","Pachytene"]
["CEL","GEN","PAMR","P450-17alpha mRNA"]
["CEL","GEN","PARK","Parkin"]
["CEL","GEN","PCNA","PCNA Index"]
["CEL","GEN","PCRN","Phosphoenolpyruvate carboxykinase 1 mRNA"]
["CEL","GEN","PHFQ","Phenotype frequencies"]
["CEL","GEN","PLMR","Prolactin mRNA"]
["CEL","GEN","POLY","Chromosomal polyploidy"]
["CEL","GEN","PONR","Peroxinectin mRNA"]
["CEL","GEN","PR2M","Progestin membrane receptor component 2 mRNA"]
["CEL","GEN","PRDN","Protein to DNA ratio"]
["CEL","GEN","PRMR","Progesterone receptor mRNA"]
["CEL","GEN","PRRN","Protein to RNA ratio"]
["CEL","GEN","PSMR","Pituitary specific transcription factor mRNA"]
["CEL","GEN","RASO","RAS Oncogene"]
["CEL","GEN","RBPR","Retinol-binding protein mRNA"]
["CEL","GEN","RNAC","RNA concentration"]
["CEL","GEN","RNAS","RNA synthesis rate"]
["CEL","GEN","RNDN","RNA to DNA ratio"]
["CEL","GEN","RNGT","Glutathione S-transferase mRNA"]
["CEL","GEN","RNPR","RNA to protein ratio"]
["CEL","GEN","RNRD","NAD(P)H dehydrogenanse, quinone 1 mRNA"]
["CEL","GEN","S3MR","Stromelysin-3 mRNA"]
["CEL","GEN","SCEX","sister chromatid exchange"]
["CEL","GEN","SDF1","Steroidogenic factor-1 expression"]
["CEL","GEN","SEXE","Sex expression change"]
["CEL","GEN","SHR2","SpSHR2 mRNA"]
["CEL","GEN","SRBR","sterol regulatory element binding protein 1 mRNA"]
["CEL","GEN","SRRN","Steroidogenic Acute Regulatory protein mRNA"]
["CEL","GEN","TAMR","Thyroid Stimulating Hormone alpha mRNA"]
["CEL","GEN","TB1R","Tubulin-beta-1-chain mRNA"]
["CEL","GEN","TBMR","Thyroid Stimulating Hormone beta mRNA"]
["CEL","GEN","TFNR","Transferrin mRNA"]
["CEL","GEN","THRA","Thyroid hormone receptor alpha mRNA"]
["CEL","GEN","TP1R","Trypsin 1 mRNA"]
["CEL","GEN","TRAB","Thyroid hormone receptor alpha mRNA to Thyroid hormone receptor beta mRNA ratio"]
["CEL","GEN","TRBM","Thyroid Hormone Receptor beta mRNA"]
["CEL","GEN","TSLE","Translocation efficiency"]
["CEL","GEN","TTRR","Transthyrethin mRNA"]
["CEL","GEN","U1MR","UGT1a1 mRNA"]
["CEL","GEN","U6MR","UGT1a6 mRNA"]
["CEL","GEN","U7MR","UGT1a7 mRNA"]
["CEL","GEN","UCER","Ubiquitin-conjugating enzyme E2-17 kDa mRNA"]
["CEL","GEN","UCHR","Ubiquitin carboxyl terminal hydrolase isozyme L5 mRNA"]
["CEL","GEN","UDMR","UDP-glucuronosyltransferase\nMessenger RNA"]
["CEL","GEN","UGRN","UDP-glucose dehydrogenase mRNA"]
["CEL","GEN","UIAP","Urotensin I mRNA to Acidic ribosomal phosphoprotein P0 mRNA ratio"]
["CEL","GEN","VDNA","Vitellogenin cDNA"]
["CEL","GEN","VGH3","Vitellogenin mRNA to histone H3 mRNA\nratio"]
["CEL","GEN","VMA2","Vesicular monoamine transporter isoform 2 (VMAT2)"]
["CEL","GEN","VMRN","Vitellogenin mRNA"]
["CEL","GEN","VT1M","Vitellogenin 1 mRNA"]
["CEL","GEN","VT3M","Vitellogenin isoform 3 mRNA"]
["CEL","GEN","VTPM","Vitellogenin precursor mRNA"]
["CEL","GEN","WTDN","Weight to DNA ratio"]
["CEL","GEN","XLRL","X-linked recessive lethal"]
["CEL","GEN","XPAR","XPA mRNA"]
["CEL","GEN","XPCR","XPC mRNA"]
["CEL","GEN","XPDR","XPD mRNA"]
["CEL","GEN","XPFR","XPF mRNA"]
["CEL","GEN","XSLG","Xslug mRNA"]
["CEL","GEN","ZP2M","Zona pellucida protein2 mRNA"]
["CEL","GEN","ZP3M","Zona pellucida glycoprotein3 mRNA"]
["CEL","GEN","ZRMR","Zona radiata mRNA"]
["CEL","GEN","ZYGO","Zygotene"]
["CEL","HIS","ACAP","Arterial cuff atrophy"]
["CEL","HIS","ACTO","Acanthosis"]
["CEL","HIS","ALYS","Autolysis"]
["CEL","HIS","ANAG","Anagen"]
["CEL","HIS","ANSK","Anisokaryosis"]
["CEL","HIS","ARTS","Arteriosclerosis"]
["CEL","HIS","ASCT","Ascites"]
["CEL","HIS","ASLT","Alpha Islets"]
["CEL","HIS","ATPH","Atrophy"]
["CEL","HIS","ATRS","Atresia"]
["CEL","HIS","BLSS","Blue sac syndrome"]
["CEL","HIS","BODS","Bodies"]
["CEL","HIS","BSLT","Beta Islets"]
["CEL","HIS","CATG","Catagen"]
["CEL","HIS","CLFL","Collapsed follicles"]
["CEL","HIS","CLLD","Colloids"]
["CEL","HIS","CLPG","Clumping pigment granules"]
["CEL","HIS","CNGT","Congestion"]
["CEL","HIS","CORN","Cornification"]
["CEL","HIS","CRYT","Crystals"]
["CEL","HIS","CSTD","Cestodiasis"]
["CEL","HIS","CSTS","Cyst"]
["CEL","HIS","CTHN","Colloid thinning"]
["CEL","HIS","CTRT","Cateracts"]
["CEL","HIS","CTYP","Percent cell type"]
["CEL","HIS","CYIN","Cytoplasmic inclusions"]
["CEL","HIS","CYTM","Cytomegaly"]
["CEL","HIS","CYTP","Cytoplasm"]
["CEL","HIS","CYVC","Cytoplasmic vacuoles"]
["CEL","HIS","DBRS","Debris"]
["CEL","HIS","DEGN","Degeneration"]
["CEL","HIS","DISO","Disorganization"]
["CEL","HIS","DLAT","Dilation"]
["CEL","HIS","EDMA","Edema"]
["CEL","HIS","EHYP","Erythroid hyperplasia"]
["CEL","HIS","ENCP","Encephalopathy"]
["CEL","HIS","ENDR","Endarteritis"]
["CEL","HIS","ESPH","Esophagitis"]
["CEL","HIS","EXCS","Extracellular space"]
["CEL","HIS","EXPT","Exophthalmia"]
["CEL","HIS","FBRS","Fibrosis"]
["CEL","HIS","FUSE","Fuse, fused"]
["CEL","HIS","GHIS","Histological changes, general"]
["CEL","HIS","GLSN","Gross lesions"]
["CEL","HIS","GRNM","Granuloma"]
["CEL","HIS","HDPC","Hydropericardium"]
["CEL","HIS","HEMR","Hemorrhage"]
["CEL","HIS","HFLX","Hyperflexion"]
["CEL","HIS","HKTO","Hyperkeratosis"]
["CEL","HIS","HRNA","Hernia"]
["CEL","HIS","HYCE","Hypocellularity"]
["CEL","HIS","HYCR","Hyperchromicity"]
["CEL","HIS","HYDS","Hydropic swelling"]
["CEL","HIS","HYPL","Hyperplasia"]
["CEL","HIS","HYPT","Hypertrophy"]
["CEL","HIS","IFLM","Inflammation"]
["CEL","HIS","IHGT","Increased height"]
["CEL","HIS","IMVL","Increased medullary volume"]
["CEL","HIS","ININ","Intranuclear inclusions"]
["CEL","HIS","IPDY","Increased portal density"]
["CEL","HIS","IPHM","Increased perivenous homogeneity"]
["CEL","HIS","LESI","Lesions"]
["CEL","HIS","LMLL","Lamellae"]
["CEL","HIS","LPHD","Lymphoid depletion"]
["CEL","HIS","MALN","Misalign, misaligned"]
["CEL","HIS","MAPH","Microphthalmia and anophthalmia"]
["CEL","HIS","MELM","Melanomacrophages"]
["CEL","HIS","MHYP","Myeloid hyperplasia"]
["CEL","HIS","MYOP","Myopathy"]
["CEL","HIS","NCRO","Necrosis"]
["CEL","HIS","NCVS","Nuclear vesiculation"]
["CEL","HIS","NPHG","Nephrogenesis"]
["CEL","HIS","NPHR","Nephrosis"]
["CEL","HIS","PKTO","Parakeratosis"]
["CEL","HIS","PNCH","Parenchyma"]
["CEL","HIS","PRLF","Proliferation"]
["CEL","HIS","PRVN","Proventriculitis"]
["CEL","HIS","RCVL","Reduced corticle volume"]
["CEL","HIS","RFSZ","Reduced follicle size"]
["CEL","HIS","RPCD","Reduced periarteriolar lymphocyte sheath cell density"]
["CEL","HIS","SCNG","Sinus congestion"]
["CEL","HIS","SHMT","Sinus haematopoiesis"]
["CEL","HIS","SHYP","Sinus hyperplasia"]
["CEL","HIS","SMLN","Severe misalignment"]
["CEL","HIS","SMMN","Slight to moderate misalignment"]
["CEL","HIS","SNAP","Synapses"]
["CEL","HIS","SOSS","Supernumerary ossification"]
["CEL","HIS","SWEL","Swelling"]
["CEL","HIS","TELG","Telogen"]
["CEL","HIS","TFLR","Tissue fluorescence in UV light"]
["CEL","HIS","USTR","Ultrastructural changes"]
["CEL","HIS","VCLZ","Vacuolization"]
["CEL","HIS","XCPH","Exencephaly"]
["MOR",null,"BDAY","Bird days"]
["MOR",null,"BDCN","Body concentration"]
["MOR",null,"DLMT","Dominant lethal mutations"]
["MOR",null,"DTTM","Death with tumors"]
["MOR",null,"EBCN","Effective body concentrations"]
["MOR",null,"GMOR","Mortality/survival, general"]
["MOR",null,"HTCH","Hatch"]
["MOR",null,"LBCN","Lethal body concentration"]
["MOR",null,"LFSP","Lifespan"]
["MOR",null,"LIFE","Life expectancy"]
["MOR",null,"MDTH","Mean time of death"]
["MOR",null,"MORT","Mortality"]
["MOR",null,"PSUR","Probability of Survival"]
["MOR",null,"SURV","Survival"]
["MOR",null,"SVVS","Survivorship"]
["MOR",null,"TDTH","Time to death"]
["MOR",null,"TKNO","Knockdown"]
["MOR",null,"TLET","Time to 100% mortality"]
["PHY","IMM","ABDT","Antibody titres"]
["PHY","IMM","ABSC","Abscission"]
["PHY","IMM","ABSS","Abscess"]
["PHY","IMM","ASHG","Anti-sheep red blood cell hemaglutinin"]
["PHY","IMM","CTKY","Cytokines"]
["PHY","IMM","DHYP","Delayed type hypersensitivity"]
["PHY","IMM","ENCY","Endocytosis"]
["PHY","IMM","GIMM","Immunity, general"]
["PHY","IMM","HEAL","Healing"]
["PHY","IMM","HMRL","Humoral immunity"]
["PHY","IMM","HTPL","Heterophiles"]
["PHY","IMM","IFCT","Infected"]
["PHY","IMM","IGMA","Immunoglobulin A"]
["PHY","IMM","IGME","immunoglobulin E"]
["PHY","IMM","IGMG","Immunoglobin G"]
["PHY","IMM","IGMM","Immunoglobin M"]
["PHY","IMM","IGMT","Immunoglobulin"]
["PHY","IMM","LKMA","Leukemia"]
["PHY","IMM","LYMP","Lymphocyte activity"]
["PHY","IMM","MCPG","Macrophage activity"]
["PHY","IMM","MPHG","Microphage function, activity"]
["PHY","IMM","MYEL","Myelosis"]
["PHY","IMM","NKCA","Natural killer cell activity"]
["PHY","IMM","PARA","Amount or percent animals infested with parasites"]
["PHY","IMM","PFCR","Plaque forming cell response"]
["PHY","IMM","PHAG","Phagocytosis"]
["PHY","IMM","PNMA","Pneumonia"]
["PHY","IMM","PRNF","Parasitic infection"]
["PHY","IMM","PRTU","Proteuria"]
["PHY","IMM","RBST","Respiratory Burst activity"]
["PHY","IMM","RSTT","Rosette response, rosette forming cell concentration"]
["PHY","IMM","THIK","Thickness"]
["PHY","IMM","THYM","Thymocyte activity"]
["PHY","INJ","ABSN","Abrasion"]
["PHY","INJ","ADNM","Adenoma"]
["PHY","INJ","AMLD","Amyloidosis"]
["PHY","INJ","AUTO","Autotomy"]
["PHY","INJ","BTMR","Benign tumor"]
["PHY","INJ","CLRS","Chlorosis"]
["PHY","INJ","CURV","Curvature"]
["PHY","INJ","DAMG","Damage"]
["PHY","INJ","DESI","Desiccation"]
["PHY","INJ","GINJ","Injury, general"]
["PHY","INJ","HDCP","Hydrocephaly"]
["PHY","INJ","IFLM","Inflammation"]
["PHY","INJ","IFRT","Infarction"]
["PHY","INJ","LYPA","Lymphoma"]
["PHY","INJ","MTMR","Malignant tumor"]
["PHY","INJ","MUTI","Mutigenesis"]
["PHY","INJ","OCTB","Occult blood"]
["PHY","INJ","PLYP","Polyp"]
["PHY","INJ","SYMP","Symptom severity index"]
["PHY","INJ","THMB","Thrombosis"]
["PHY","INJ","TUMR","Tumor induction"]
["PHY","INJ","ULCR","Ulcer"]
["PHY","INJ","VASC","Vascular disruption"]
["PHY","INJ","WART","Papilloma, wart"]
["PHY","ITX","ANOR","Anorexia"]
["PHY","ITX","ATAX","Ataxia"]
["PHY","ITX","CONV","Convulsions"]
["PHY","ITX","GITX","Intoxication, general"]
["PHY","ITX","IMBL","Immobile"]
["PHY","ITX","INCO","Incoordination"]
["PHY","ITX","MBLT","Mobility"]
["PHY","ITX","PARL","Paralysis"]
["PHY","ITX","TINT","Time to signs of intoxication"]
["PHY","PHY","2DOG","2-deoxy-D-glucose"]
["PHY","PHY","AAUP","Amino acid uptake"]
["PHY","PHY","ABSC","Abscission"]
["PHY","PHY","ADPE","Adsorption efficiency"]
["PHY","PHY","ADPO","Oxidative phosphorylation"]
["PHY","PHY","ADTH","Auditory Threshold"]
["PHY","PHY","AECG","Abnormal ECG (electrocardiogram)"]
["PHY","PHY","AECH","Adenylate energy charges (AEC)"]
["PHY","PHY","AEXR","Ammonia excretion"]
["PHY","PHY","AGUP","Silver uptake"]
["PHY","PHY","AHIN","A-H intervals"]
["PHY","PHY","ALAE","Aminolevulinic acid excretion"]
["PHY","PHY","ALEX","Aluminum excretion"]
["PHY","PHY","AMQU","Ammonia Quotient (AQ)"]
["PHY","PHY","ANBC","Aniline binding capability"]
["PHY","PHY","ANUP","Aniline uptake"]
["PHY","PHY","APCT","Aerobic protein catabolism"]
["PHY","PHY","ASML","Assimilation efficiency"]
["PHY","PHY","ASUP","Arsenic uptake"]
["PHY","PHY","ATFL","Aortic flow"]
["PHY","PHY","ATUP","C-14 Acetate uptake"]
["PHY","PHY","AVCD","AtrioVentricular conduction delay"]
["PHY","PHY","AXSS","Axis shift"]
["PHY","PHY","BAAT","rBAT induced amino acid transfer"]
["PHY","PHY","BDFW","Blood flow"]
["PHY","PHY","BDVL","Blood volume"]
["PHY","PHY","BEXC","Boron Excretion"]
["PHY","PHY","BLPR","Blood pressure"]
["PHY","PHY","BLUM","Bioluminescence"]
["PHY","PHY","BNDS","Bending strength"]
["PHY","PHY","BTFT","Butter fat"]
["PHY","PHY","BTMP","Body temperature"]
["PHY","PHY","C14U","C-14 Uptake"]
["PHY","PHY","CAAS","Calcium assimilation"]
["PHY","PHY","CAEX","Calcium excretion"]
["PHY","PHY","CANU","Calcium not excreted"]
["PHY","PHY","CARE","Calcium retained"]
["PHY","PHY","CARU","Calcium retention to utilization ratio"]
["PHY","PHY","CASS","Carbon assimilation"]
["PHY","PHY","CATR","Calcium transfer"]
["PHY","PHY","CATU","Calcium transfer to utilization ratio"]
["PHY","PHY","CAUP","Calcium uptake"]
["PHY","PHY","CCCL","Coccolith formation"]
["PHY","PHY","CDEX","Cadmium excretion"]
["PHY","PHY","CDIN","Cardiac index"]
["PHY","PHY","CDOP","Cardiac output"]
["PHY","PHY","CDUP","Cadmium uptake"]
["PHY","PHY","CEBS","Cytosolic estrogen binding site"]
["PHY","PHY","CFIX","Carbon fixation"]
["PHY","PHY","CFLW","Coronary flow"]
["PHY","PHY","CLCL","Chloride clearance"]
["PHY","PHY","CLEX","Chloride excretion"]
["PHY","PHY","CLFX","Chloride flux"]
["PHY","PHY","CLNC","Clearance"]
["PHY","PHY","CLRC","Caloric content"]
["PHY","PHY","CLUP","Chloride uptake"]
["PHY","PHY","CMPS","Compression strength"]
["PHY","PHY","CMRB","Cholinergic muscarinic receptor binding"]
["PHY","PHY","CNVY","Conductivity"]
["PHY","PHY","CO2A","Carbon dioxide assimilation"]
["PHY","PHY","CO2F","CO2 Fixation"]
["PHY","PHY","CO2T","Carbon dioxide tension"]
["PHY","PHY","COCE","Coupling coefficient"]
["PHY","PHY","COEX","Cobalt excretion"]
["PHY","PHY","COGH","Cough"]
["PHY","PHY","COLD","Cold hardiness"]
["PHY","PHY","COUP","Cobalt uptake"]
["PHY","PHY","CPCT","Capacitance"]
["PHY","PHY","CRAT","Contraction rate"]
["PHY","PHY","CREX","Chromium excretion"]
["PHY","PHY","CRSP","Cellular respiration"]
["PHY","PHY","CRUP","Chromium uptake"]
["PHY","PHY","CTIM","Clotting time"]
["PHY","PHY","CTSL","Carbon translocation"]
["PHY","PHY","CUEX","Copper excretion"]
["PHY","PHY","CUUP","Copper uptake"]
["PHY","PHY","CYSU","Cystine uptake"]
["PHY","PHY","DCRG","Discharge"]
["PHY","PHY","DFIX","Dark fixation"]
["PHY","PHY","DGST","Digestion"]
["PHY","PHY","DORB","Dormancy break change, plants"]
["PHY","PHY","DORI","Dormancy induction, plants"]
["PHY","PHY","DPAU","Dopamine uptake"]
["PHY","PHY","DPUP","2,4-Dichlorophenol uptake"]
["PHY","PHY","DRRH","Diarrhea"]
["PHY","PHY","DSPS","Diastolic pressure"]
["PHY","PHY","ECPT","Energy charge potential"]
["PHY","PHY","ECTG","Electrocorticogram"]
["PHY","PHY","ECYC","Estrous cycle"]
["PHY","PHY","EECG","Electroencephalogram"]
["PHY","PHY","EEUR","Endogenous excreted urea"]
["PHY","PHY","EFFC","Efficiency"]
["PHY","PHY","EMCN","Emaciation, emaciated"]
["PHY","PHY","ENST","Encystment"]
["PHY","PHY","EOCL","Electro-oculography"]
["PHY","PHY","EPYR","Electrophysiological response"]
["PHY","PHY","ERLD","Electroretinography light peak/dark ratio"]
["PHY","PHY","ERWA","Electroretinography wave amplitude"]
["PHY","PHY","ERWI","Electroretinography wave implicit time"]
["PHY","PHY","ERWL","Electroretinography wave latent time"]
["PHY","PHY","ERWV","Electroretinography wave"]
["PHY","PHY","ESGM","Estrogen metabolism"]
["PHY","PHY","ESUP","Eosin uptake"]
["PHY","PHY","ETSA","Electron transfer system activity"]
["PHY","PHY","EXCR","Excretion rate"]
["PHY","PHY","EYTH","Erythema"]
["PHY","PHY","FATT","Obese"]
["PHY","PHY","FDAR","Food absorption rate"]
["PHY","PHY","FDCV","Food conversion efficiency"]
["PHY","PHY","FECL","Fecal production"]
["PHY","PHY","FEEX","Iron excretion"]
["PHY","PHY","FEPP","Fecal production"]
["PHY","PHY","FEUP","Iron uptake"]
["PHY","PHY","FLUX","Flux, across membranes"]
["PHY","PHY","FVOL","Fluid volume"]
["PHY","PHY","GAEX","Glycolic acid excretion"]
["PHY","PHY","GCBN","Gap charge balance"]
["PHY","PHY","GFRT","Glomerular filtration rate"]
["PHY","PHY","GLFO","Galactocele formation"]
["PHY","PHY","GLGN","Glucogenesis"]
["PHY","PHY","GLSY","Glycogen synthesis"]
["PHY","PHY","GLUP","Glucose uptake"]
["PHY","PHY","GLYU","Glycine uptake"]
["PHY","PHY","GPHY","Physiology, general"]
["PHY","PHY","GRAU","Granule/grain creation"]
["PHY","PHY","GSTF","Gas transfer"]
["PHY","PHY","GYCU","Glycerol uptake"]
["PHY","PHY","GYEX","Glycolate excretion"]
["PHY","PHY","H3BD","Hemicholium-3 binding"]
["PHY","PHY","H3UP","H-3 uptake"]
["PHY","PHY","HCFX","Hydrogen Carbonate flux"]
["PHY","PHY","HGUP","Mercury uptake"]
["PHY","PHY","HLSS","Alopecia, Hair loss"]
["PHY","PHY","HNPH","Hydronephrosis"]
["PHY","PHY","HPRR","Heat production rate"]
["PHY","PHY","HPSR","High pressure"]
["PHY","PHY","HTDP","Heart double product (heart rate*cardiac output)"]
["PHY","PHY","HTRT","Heart rate"]
["PHY","PHY","HYDR","Hydration"]
["PHY","PHY","HYPR","Hyperactivity"]
["PHY","PHY","HYTN","Hypertension"]
["PHY","PHY","INRE","Input resistance"]
["PHY","PHY","IOUP","Ion uptake"]
["PHY","PHY","IRAX","Cell Migration Inhibition (Immune\nResponse Activity)"]
["PHY","PHY","IRRI","Irritation"]
["PHY","PHY","IUPT","Iodine uptake"]
["PHY","PHY","IVCD","Intraventricular conduction defects"]
["PHY","PHY","JRAC","Junctional resistance (AC)"]
["PHY","PHY","JRDC","Junctional resistance (DC)"]
["PHY","PHY","KEXC","Potassium excretion"]
["PHY","PHY","KPCL","Potassium clearance"]
["PHY","PHY","KUPT","Potassium uptake"]
["PHY","PHY","LABS","Leucine absorption"]
["PHY","PHY","LDGT","Lipid digestion"]
["PHY","PHY","LDMT","Lipid metabolism"]
["PHY","PHY","LDPX","Lipid peroxidation"]
["PHY","PHY","LEUT","Leucine Transport"]
["PHY","PHY","LPBS","Lipid biosynthesis"]
["PHY","PHY","LTPT","Long-term pontentiation"]
["PHY","PHY","LTSP","Leucine transport"]
["PHY","PHY","MBCR","Metallothionein binding capacity ratio"]
["PHY","PHY","MBPT","Membrane Potential"]
["PHY","PHY","MCCL","Malocclusion"]
["PHY","PHY","MCCN","Microorganism cenosis"]
["PHY","PHY","MCUS","Mucus production"]
["PHY","PHY","MGEX","Magnesium Excretion"]
["PHY","PHY","MGUP","Magnesium uptake"]
["PHY","PHY","MILK","Milk"]
["PHY","PHY","MIOS","Miosis"]
["PHY","PHY","MNER","Minerialization"]
["PHY","PHY","MNEX","Manganese excretion"]
["PHY","PHY","MNTL","Manganese translocation"]
["PHY","PHY","MNUP","Manganese uptake"]
["PHY","PHY","MOEX","Molybdenum excretion"]
["PHY","PHY","MYCO","Mycorrhizal colonization"]
["PHY","PHY","NACL","Sodium clearance"]
["PHY","PHY","NAEX","Sodium Excretion"]
["PHY","PHY","NAFX","Sodium flux"]
["PHY","PHY","NASM","Nitrogen Assimilation"]
["PHY","PHY","NAST","Nastic movements"]
["PHY","PHY","NAUP","Sodium uptake"]
["PHY","PHY","NCOS","Na and Cl osmolality"]
["PHY","PHY","NEXC","Nitrogen excretion"]
["PHY","PHY","NFIX","Nitrogen fixation"]
["PHY","PHY","NHUP","Ammonia uptake"]
["PHY","PHY","NIEX","Nickel excretion"]
["PHY","PHY","NIUP","Nickel uptake"]
["PHY","PHY","NMYC","Non-mycorrhizal colonization"]
["PHY","PHY","NO2U","Nitrite Uptake (NO2-)"]
["PHY","PHY","NO3U","Nitrate Uptake (NO3-)"]
["PHY","PHY","NPRA","Net photosynthetic rate"]
["PHY","PHY","NRGA","Energy assimilation"]
["PHY","PHY","NRGF","Metabolic efficiency"]
["PHY","PHY","NRGI","Energy intake"]
["PHY","PHY","NRGM","Metabolized energy"]
["PHY","PHY","NRGX","Energy excreted"]
["PHY","PHY","NRSP","Neuroresponse"]
["PHY","PHY","NRUP","Neutral red uptake"]
["PHY","PHY","NRXN","Nerve reaction"]
["PHY","PHY","NSCT","neurosecretion"]
["PHY","PHY","NTSL","Nitrogen translocation"]
["PHY","PHY","NUPT","Nitrogen uptake"]
["PHY","PHY","NUUP","Nutrient Uptake"]
["PHY","PHY","NVAR","Nerve absolute refractory period"]
["PHY","PHY","NVCV","Nerve conduction velocity"]
["PHY","PHY","NVRR","Nerve relative refractory period"]
["PHY","PHY","OCCP","Oxygen carrying capacity"]
["PHY","PHY","OSFG","Osmotic fragility"]
["PHY","PHY","OSMO","Osmolality"]
["PHY","PHY","OUPT","Oxygen uptake"]
["PHY","PHY","OXYG","Oxygen consumption"]
["PHY","PHY","OXYT","Oxygen tension"]
["PHY","PHY","PAEX","Primary amine excretion"]
["PHY","PHY","PAMP","P amplitude"]
["PHY","PHY","PBAL","Ponderal balance"]
["PHY","PHY","PBEX","Lead excretion"]
["PHY","PHY","PBUP","Lead uptake"]
["PHY","PHY","PDGT","Protein digestion"]
["PHY","PHY","PERA","Protein efficiency ratio"]
["PHY","PHY","PERM","Permeability, tissue, membrane"]
["PHY","PHY","PEXC","Phosphorus excretion"]
["PHY","PHY","PGPL","Pigment plug ejection"]
["PHY","PHY","PGSY","Prostaglandin synthesis"]
["PHY","PHY","PH2O","Water potential, plant"]
["PHY","PHY","PIGM","Pigmentation"]
["PHY","PHY","PNUT","Phosphorus not excreted"]
["PHY","PHY","PPEX","Phosphate excretion"]
["PHY","PHY","PPUP","Phosphate uptake"]
["PHY","PHY","PRET","Phosphorus retention"]
["PHY","PHY","PRIN","PR intervals"]
["PHY","PHY","PRSY","Protein synthesis"]
["PHY","PHY","PRUT","Phosphorus retention to utilization ratio"]
["PHY","PHY","PSII","Photosystem II (PSII) electron transport activity"]
["PHY","PHY","PSSR","Pressure"]
["PHY","PHY","PSYI","Photosystem I (PSI) Electron Transport\nActivity"]
["PHY","PHY","PSYN","Photosynthesis"]
["PHY","PHY","PTIM","Prothrombin time"]
["PHY","PHY","PTRN","Phosphorus transfer"]
["PHY","PHY","PTUC","Protein utilization coefficient"]
["PHY","PHY","PTUT","Phosphorus transfer to utilization ratio"]
["PHY","PHY","PUPT","Phosphorus uptake"]
["PHY","PHY","QAMP","Q amplitude"]
["PHY","PHY","QRSV","Decreased QRS voltage"]
["PHY","PHY","QTIN","QT interval"]
["PHY","PHY","RAMP","R amplitude"]
["PHY","PHY","RBCD","Relative bradycardia"]
["PHY","PHY","RCRA","Renal clearance ratio"]
["PHY","PHY","RESP","Respiration"]
["PHY","PHY","RESQ","Respiration quotient"]
["PHY","PHY","RFLT","Reflectivity"]
["PHY","PHY","RPRT","Respiratory rate"]
["PHY","PHY","RSNV","Resin volume"]
["PHY","PHY","RSQU","Respiratory Quotient"]
["PHY","PHY","SAMP","S amplitude"]
["PHY","PHY","SBNF","Swim bladder inflation"]
["PHY","PHY","SCGR","Scope for growth"]
["PHY","PHY","SCTN","Secretion"]
["PHY","PHY","SENI","Senescence induced/accelerated"]
["PHY","PHY","SENR","Senescence retarded"]
["PHY","PHY","SEUP","Selenium uptake"]
["PHY","PHY","SIDP","Siderophore production"]
["PHY","PHY","SLVN","Salivation"]
["PHY","PHY","SMTR","Standard Metabolic Rate"]
["PHY","PHY","SOXA","Sulfide oxidation activity"]
["PHY","PHY","SOXG","Superoxide generation"]
["PHY","PHY","SRLO","Spectral reflectance change/shift to long"]
["PHY","PHY","SRSH","Spectral reflectance change/shift to short"]
["PHY","PHY","STAS","Stasis"]
["PHY","PHY","STCG","S-T changes"]
["PHY","PHY","STIN","ST interval"]
["PHY","PHY","STOC","Stomatal conductance"]
["PHY","PHY","STOM","Stomatal aperture"]
["PHY","PHY","STVL","Stroke volume"]
["PHY","PHY","STWK","Stroke work"]
["PHY","PHY","SUPT","Sulfur uptake"]
["PHY","PHY","SUUP","Sucrose uptake"]
["PHY","PHY","SWEL","Swelling"]
["PHY","PHY","SYPS","Systolic pressure"]
["PHY","PHY","SZRE","Seizure"]
["PHY","PHY","T34C","T3/T4 Conversion rate"]
["PHY","PHY","TAMP","T amplitude"]
["PHY","PHY","TCO2","Transpiration Carbon Dioxide assimilation ratio"]
["PHY","PHY","TEAR","Lacrimation, Tearing"]
["PHY","PHY","TEUR","Total excreted urea"]
["PHY","PHY","TEVG","trans-epithelial voltage gradient"]
["PHY","PHY","TEXT","Texture change"]
["PHY","PHY","THBR","Thyroid hormone binding ratio"]
["PHY","PHY","THRG","Thermoregulation"]
["PHY","PHY","THTS","Thermal hysteresis"]
["PHY","PHY","TIRD","Languid,tired, weak"]
["PHY","PHY","TNST","Tensile Strength"]
["PHY","PHY","TO2F","Oxygen transfer factor [TO2]"]
["PHY","PHY","TRAN","Transpiration"]
["PHY","PHY","TRGE","Triglyceride excretion"]
["PHY","PHY","TSUP","L-Tyrosine uptake"]
["PHY","PHY","TTKG","Transtubular potassium gradient"]
["PHY","PHY","URUP","Uranyl uptake"]
["PHY","PHY","VCDT","Vascular conductance"]
["PHY","PHY","VENT","Ventilation"]
["PHY","PHY","VMRS","Vasomotor response"]
["PHY","PHY","VOLU","Volume"]
["PHY","PHY","VSCR","Vascular resistance"]
["PHY","PHY","WATB","Water balance"]
["PHY","PHY","WILT","Wilt"]
["PHY","PHY","WLSS","Water loss"]
["PHY","PHY","WTUP","Water uptake"]
["PHY","PHY","XCPG","Xanthophyll cycle pigments"]
["PHY","PHY","ZNEX","Zinc excretion"]
["PHY","PHY","ZNUP","Zinc uptake"]
["POP",null,"ABND","Abundance"]
["POP",null,"AMNN","Amino nitrogen"]
["POP",null,"APCY","Allophycocyanin"]
["POP",null,"BMAS","Biomass"]
["POP",null,"CARC","Carotenoids"]
["POP",null,"CHAB","Chlorophyll A:Chlorophyll B"]
["POP",null,"CHLA","Chlorophyll A concentration"]
["POP",null,"CHLB","Chlorophyll B concentration"]
["POP",null,"CHLC","Chlorophyll C concentration"]
["POP",null,"CHLO","Chlorophyll"]
["POP",null,"CNTL","Control"]
["POP",null,"COVR","Cover, canopy"]
["POP",null,"CRCA","Carotenoids Chlorophyll A ratio"]
["POP",null,"DBLT","Population doubling time"]
["POP",null,"DBMS","Dry Biomass"]
["POP",null,"DMTR","Diameter"]
["POP",null,"DRFT","Drift"]
["POP",null,"DVRS","Diversity"]
["POP",null,"EBCN","Effective body concentrations"]
["POP",null,"GENT","Generation time"]
["POP",null,"GPOP","Population changes, general"]
["POP",null,"INDX","Index to population size; count, number, abundance"]
["POP",null,"IRIN","Intrinsic rate of increase"]
["POP",null,"LAGT","Lag time"]
["POP",null,"LCON","Length/duration of a chemical effectiveness"]
["POP",null,"LCYC","Lifecycle"]
["POP",null,"NCHG","Population change (change in\nN/change in time)"]
["POP",null,"NGEN","Number of generations"]
["POP",null,"PBMS","Biomass or weight for total population"]
["POP",null,"PBRA","Population biomass turnover ratio"]
["POP",null,"PCBL","Phycobilin"]
["POP",null,"PCCP","Population carrying capacity"]
["POP",null,"PGRT","Population growth rate"]
["POP",null,"PHYC","Phycocyanin"]
["POP",null,"PPYT","Phaeophytin"]
["POP",null,"PRPE","Predator-prey dynamics"]
["POP",null,"PSYN","Photosynthesis"]
["POP",null,"RCLN","Colonization rate"]
["POP",null,"RCPR","Recapture ratio"]
["POP",null,"SEXR","Sex ratio"]
["POP",null,"SRFA","Surface area"]
["POP",null,"STTL","Settling"]
["POP",null,"SURF","Surfacing"]
["POP",null,"SZDS","Size distribution"]
["POP",null,"THCH","Thatch accumulation"]
["POP",null,"TRAP","Trappability"]
["POP",null,"VIDX","Viability index"]
["POP",null,"WGHT","Weight"]
["REP","AEG","ALEG","Albumen:Eggshell Quality\n(Haugh Units)"]
["REP","AEG","BLSP","Blood spots"]
["REP","AEG","BSCP","Basal cap"]
["REP","AEG","CRAK","Cracking"]
["REP","AEG","ESIN","Eggshell index"]
["REP","AEG","FERT","Fertility"]
["REP","AEG","INFT","Infertile"]
["REP","AEG","LGTH","Length"]
["REP","AEG","LSTE","Eggs lost"]
["REP","AEG","MMMC","Mammillary core"]
["REP","AEG","QUAL","Quality"]
["REP","AEG","SHLL","Percent shell"]
["REP","AEG","SIZE","Size"]
["REP","AEG","SOFT","Softness"]
["REP","AEG","STGH","Strength"]
["REP","AEG","THIK","Thickness"]
["REP","AEG","VIAB","Viability"]
["REP","AEG","VOLU","Volume"]
["REP","AEG","WDTH","Width"]
["REP","AEG","WGHT","Weight"]
["REP","AEG","YOLK","Yolk, percent"]
["REP","REP","0RSM","No resorbed embryos"]
["REP","REP","ABNM","Abnormal"]
["REP","REP","ABRT","Abort"]
["REP","REP","AFST","Atretic follicle stage"]
["REP","REP","ARFS","Accessory reproductive fluid"]
["REP","REP","BDEP","Bird day egg production"]
["REP","REP","BMAS","Biomass"]
["REP","REP","BNDG","Pair bonding nesting behavior"]
["REP","REP","BRED","Bred"]
["REP","REP","BTCF","Beat/Cross frequency"]
["REP","REP","CLLT","Clutch length"]
["REP","REP","CLNE","Cloning efficiency"]
["REP","REP","CLPD","Clutch production"]
["REP","REP","CLUB","Clubbing (hydra reproduction)"]
["REP","REP","COUR","Courtship behavior"]
["REP","REP","CRCE","Circular cells"]
["REP","REP","CYNG","Care of young, nest attentiveness"]
["REP","REP","DSTR","Diestrus"]
["REP","REP","EBCN","Effective body concentrations"]
["REP","REP","EGPN","Eggs per nest"]
["REP","REP","EPTT","Epididymal transit time"]
["REP","REP","EREM","Early resorbed embryos"]
["REP","REP","ETRS","Estrus"]
["REP","REP","FCND","Fecundity"]
["REP","REP","FERT","Fertility"]
["REP","REP","FERZ","Fertilization"]
["REP","REP","FIDX","Fertility index"]
["REP","REP","FLOR","Floral induction"]
["REP","REP","FRMS","Frames, bees"]
["REP","REP","FRUH","Percent fruit harvested"]
["REP","REP","FRUT","Fruit, fruiting"]
["REP","REP","FTCC","Fertile cocoons"]
["REP","REP","GCCT","Germ cell count"]
["REP","REP","GERM","Germination"]
["REP","REP","GEST","Gestation rate"]
["REP","REP","GFST","Graafian follicle stage"]
["REP","REP","GIDX","Gestation index"]
["REP","REP","GMEN","Germination energy"]
["REP","REP","GMET","Gamete production"]
["REP","REP","GREP","Reproduction, general"]
["REP","REP","GSTT","Gestation time"]
["REP","REP","HDEP","Hen-day egg production"]
["REP","REP","HHEP","Hen-housed egg production"]
["REP","REP","IFCC","Infertile cocoons"]
["REP","REP","INFL","Inflorescences (number of)"]
["REP","REP","INFT","Infertile"]
["REP","REP","LACG","Lactating"]
["REP","REP","LBIX","Live Birth Index"]
["REP","REP","LHMN","Mean amplitude of lateral head displacement"]
["REP","REP","LHMX","Maximum amplitude of lateral head displacement"]
["REP","REP","LIDX","Lactation index"]
["REP","REP","LNRY","Linearity"]
["REP","REP","LREM","Late resorbed embryos"]
["REP","REP","MIDX","Mating index"]
["REP","REP","MONT","Mounting, copulation, intercourse"]
["REP","REP","MOTL","Motility"]
["REP","REP","MSPW","Mean spawns per female"]
["REP","REP","MSTR","Metestrus"]
["REP","REP","NANT","Nests abandoned"]
["REP","REP","NCLU","Corpus lutea, number of"]
["REP","REP","NDAY","Number of days between eggs laid or litters"]
["REP","REP","NEGI","Number of eggs incubated"]
["REP","REP","NFOL","Number of ovarian follicles"]
["REP","REP","NINC","Number of nests incubated"]
["REP","REP","NMNT","Non-mount"]
["REP","REP","NOIM","Number of implantations"]
["REP","REP","NOPN","Number of organisms per nest"]
["REP","REP","NPOD","Pods, number of"]
["REP","REP","NPRG","Not pregnant"]
["REP","REP","NREP","Non-reproducing organisms"]
["REP","REP","NRPR","Net Reproductive Rate"]
["REP","REP","NSNT","Successful nests"]
["REP","REP","NSPN","Number spawning"]
["REP","REP","NSTI","Nest initiation"]
["REP","REP","NSTS","Number of active nests"]
["REP","REP","NTSZ","Nest size"]
["REP","REP","NUNT","Unsuccessful nests"]
["REP","REP","NVIB","Non-viable"]
["REP","REP","OBRD","Open brood"]
["REP","REP","OEGP","Onset of egg production"]
["REP","REP","OOCY","Fully developed oocytes"]
["REP","REP","OVRT","Ovulation rate"]
["REP","REP","PCNT","Placentation"]
["REP","REP","PFST","Primary follicle stage"]
["REP","REP","PILS","Post-implantation loss"]
["REP","REP","PIPD","Pipped"]
["REP","REP","PLBR","Pairs with litter or brood"]
["REP","REP","PREG","Pregnant, Paris or Gravid"]
["REP","REP","PRFM","Pregnant females in a population"]
["REP","REP","PROG","Progeny counts/numbers"]
["REP","REP","PRPL","Pre-implantation loss"]
["REP","REP","PRTH","Parthenocarpy"]
["REP","REP","PSPG","Pseudopregnancy"]
["REP","REP","PSTG","Stage of pregnancy"]
["REP","REP","PSTR","Proestrus"]
["REP","REP","RBEH","Reproductive behavior changes"]
["REP","REP","RBLM","Repeat bloom"]
["REP","REP","REPO","Reproducing organisms"]
["REP","REP","RPRD","Reproductive capacity"]
["REP","REP","RSEM","Resorbed embryos"]
["REP","REP","RSUC","Reproductive success (general)"]
["REP","REP","SBRD","Sealed brood"]
["REP","REP","SDIX","Seed index"]
["REP","REP","SEED","Seed number"]
["REP","REP","SEPD","Seed or spore production"]
["REP","REP","SFST","Secondary follicle stage"]
["REP","REP","SPCL","Sperm cell counts"]
["REP","REP","SPMC","Spermatocytes"]
["REP","REP","SPMG","Spermatigonia"]
["REP","REP","SPNF","Spawning frequency"]
["REP","REP","SPRD","Sporophyte production"]
["REP","REP","SRTL","Sertoli cells"]
["REP","REP","SSET","Seed set (no. seeds/no. florets)"]
["REP","REP","STRL","Sterility"]
["REP","REP","T50P","Time to 50% production"]
["REP","REP","TFPG","Time to first progeny"]
["REP","REP","TINF","Time to flower"]
["REP","REP","TMNT","Time to mounting"]
["REP","REP","TMSC","Penile Tumescence"]
["REP","REP","TPRD","Total production"]
["REP","REP","TPRG","Time to pregnancy/gravidity"]
["REP","REP","TSPN","Time to spawn"]
["REP","REP","TTPR","Time to peak reproduction"]
["REP","REP","TUPR","Tuber production"]
["REP","REP","USTS","Unknown estrus stage"]
["REP","REP","VAOP","Vaginal opening"]
["REP","REP","VCTY","Velocity"]
["REP","REP","VEGR","Vegetative reproduction"]
["REP","REP","VIAB","Viability"]
["REP","REP","VITG","Vitellogenesis"]
["SYS","PRS","BGCM","Biogeochemical"]
["SYS","PRS","CMIN","Carbon mineralization"]
["SYS","PRS","CO2G","Carbon dioxide generation"]
["SYS","PRS","CO2P","CO2 evolution"]
["SYS","PRS","DCMP","Decomposition"]
["SYS","PRS","GPPR","Gross primary productivity/respiration"]
["SYS","PRS","GPRS","Ecosystem processes, general"]
["SYS","PRS","NITR","Nitrification"]
["SYS","PRS","NMIN","Net mineralization"]
["SYS","PRS","OUPT","Oxygen uptake"]
["SYS","PRS","PPRO","Primary productivity"]
["SYS","PRS","SPRO","Secondary productivity"]
["SYS","PRS","SRES","System respiration"]
["SYS","PRS","TROP","Trophic transfer between different levels in the food chain"]
["NOC",null,"MULT","Multiple effects reported as one result"]
["NOC",null,"NRNR","Endpoint reported without a specific effect"]
["BCM","BCM","1ACC","1-Aminocyclopropane-1-carboxylic acid"]
["BCM","BCM","1CLA","9 trans, 11 cis-conjugated linoleic acid"]
["BCM","BCM","1HPY","1-Hydroxypyrene"]
["BCM","BCM","25HC","25-Hydroxycholecalciferol"]
["BCM","BCM","2AAF","2-Acetylaminofluorene"]
["BCM","BCM","2CLA","10 trans, 12 cis-conjugated linoleic acid"]
["BCM","BCM","3CLA","11 cis, 13 trans-conjugated linoleic acid"]
["BCM","BCM","3IMG","3-Indolymethyl glucosinolate"]
["BCM","BCM","3MDO","3-Methoxytyramine to Dopamine ratio"]
["BCM","BCM","3MTA","3-Methoxytyramine"]
["BCM","BCM","3NTT","3-nitrotyrosine to tyrosine ratio"]
["BCM","BCM","3PPG","3-Phosphoglycerate"]
["BCM","BCM","4ORA","4-Oxo-retinoic acid"]
["BCM","BCM","5HAA","5-Hydroxyindole acetic acid"]
["BCM","BCM","5HSR","5-Hydroxyindole Acetic Acid to\nSerotonin ratio"]
["BCM","BCM","6BHC","6-beta-Hydroxycortisol"]
["BCM","BCM","7BRF","7-Benzyloxyoxyresorufin"]
["BCM","BCM","7ERF","7-Ethoxyresorufin"]
["BCM","BCM","7MRF","7-Methoxyresorufin"]
["BCM","BCM","7PRF","7-Pentoxyresorufin"]
["BCM","BCM","8O2D","8-Oxo-2'-deoxyguanosine"]
["BCM","BCM","8ODG","8-hydroxydeoxyguanosine"]
["BCM","BCM","A2UG","Alpha 2u-globulin"]
["BCM","BCM","AABA","Alpha-aminobutyric acid"]
["BCM","BCM","AAGO","Alanine aminotransferase to glutamate oxaloacetate ratio"]
["BCM","BCM","AAIB","alpha-Aminoisobutyrate"]
["BCM","BCM","AAUR","Aminoaciduria"]
["BCM","BCM","AB12","Aflatoxin B1 and B2"]
["BCM","BCM","ACAH","Acetaldehyde"]
["BCM","BCM","ACAR","alpha-Carotene"]
["BCM","BCM","ACHL","Acetylcholine"]
["BCM","BCM","ACHP","Acid-soluble hydroxyproline"]
["BCM","BCM","ACID","Acid produced"]
["BCM","BCM","ACRR","Acetylene reduction rate/plant roots nodule"]
["BCM","BCM","ACTE","Acetone"]
["BCM","BCM","ACTN","Actin"]
["BCM","BCM","ACTR","delta Aminolevulinic acid creatine ratio"]
["BCM","BCM","ADCD","Adenylic acid"]
["BCM","BCM","ADNA","Adrenic Acid"]
["BCM","BCM","ADOX","Adenosine diphosphate to oxygen ratio"]
["BCM","BCM","ADPT","Adenosine diphosphate (ADP)"]
["BCM","BCM","ADRT","Acid resistant thiol"]
["BCM","BCM","AFB1","Aflatoxin B1"]
["BCM","BCM","AFB2","Aflatoxin B2"]
["BCM","BCM","AFG1","Aflatoxin G1"]
["BCM","BCM","AFG2","Aflatoxin G2"]
["BCM","BCM","AGCO","Silver concentration"]
["BCM","BCM","AGLB","alpha-Globulins"]
["BCM","BCM","AGPT","alpha-glycerophosphate"]
["BCM","BCM","AHDA","Anteisoheptadecanoic acid"]
["BCM","BCM","AIHP","Acid-insoluble hydroxyproline"]
["BCM","BCM","AION","Anions"]
["BCM","BCM","AKLD","Alkoxylipids"]
["BCM","BCM","ALAN","Alanine"]
["BCM","BCM","ALBE","Albumin energy"]
["BCM","BCM","ALBM","Albumin"]
["BCM","BCM","ALCO","Aluminum content"]
["BCM","BCM","ALGL","Albumin to globulin ratio"]
["BCM","BCM","ALLA","Allantoin"]
["BCM","BCM","ALLT","Allantoic acid"]
["BCM","BCM","ALTL","Alternariol"]
["BCM","BCM","ALTN","Alternariol monomethyl ether"]
["BCM","BCM","AMAC","Amino acid(s), general term"]
["BCM","BCM","AMAH","S-adenosylmethionine to S- adenosylhomocysteine ratio"]
["BCM","BCM","AMAN","Amino acid nitrogen"]
["BCM","BCM","AMDT","Adenosine phosphates (AMP+ADP+ATP)"]
["BCM","BCM","AMMO","Ammonia"]
["BCM","BCM","AMNH","P-amino hippurate"]
["BCM","BCM","AMNN","Amino nitrogen"]
["BCM","BCM","AMPP","Amyloid precursor protein"]
["BCM","BCM","AMPT","Adenosine monophosphate (AMP)"]
["BCM","BCM","AMYD","Amyloid"]
["BCM","BCM","AMYS","Amylose"]
["BCM","BCM","ANPY","Antipyrine"]
["BCM","BCM","ANTH","Anthocyanin"]
["BCM","BCM","ANTO","Antioxidant activity"]
["BCM","BCM","AOAR","Ascorbate to oxidized Ascorbate ratio"]
["BCM","BCM","APCY","Allophycocyanin"]
["BCM","BCM","APDA","anteisopentadecanoic acid"]
["BCM","BCM","APHT","Alkaline phosphate"]
["BCM","BCM","APRO","alpha-Proteins"]
["BCM","BCM","ARCA","Arachidic acid"]
["BCM","BCM","ARCH","Arachidonate"]
["BCM","BCM","ARGI","Arginine"]
["BCM","BCM","ASBT","Ascorbate"]
["BCM","BCM","ASCA","Ascorbic acid"]
["BCM","BCM","ASCN","Arsenic to creatinine ratio"]
["BCM","BCM","ASCO","Arsenic content"]
["BCM","BCM","ASHC","Ash content"]
["BCM","BCM","ASPA","Aspartate"]
["BCM","BCM","ASPC","Aspartic Acid"]
["BCM","BCM","ASPR","Asparagine"]
["BCM","BCM","ASRA","AST(reduced):total AST including oxidized glutathione"]
["BCM","BCM","ASYC","Alpha-synuclein"]
["BCM","BCM","ATAD","Adenosine Triphosphate (ATP) to\nAdenosine diphosphate (ADP)"]
["BCM","BCM","ATAM","Adenosine Triphosphate (ATP) to\nAdenosine monophosphate (AMP)"]
["BCM","BCM","ATCO","alpha-Tocopherol concentration"]
["BCM","BCM","ATPP","Adenosine triphosphate to\nPhosphocreatine ratio"]
["BCM","BCM","ATPT","Adenosine triphosphate"]
["BCM","BCM","ATRA","all-trans-retinoic acid"]
["BCM","BCM","ATUB","alpha-Tubulin"]
["BCM","BCM","AVDN","Avidin"]
["BCM","BCM","AVER","Averufin"]
["BCM","BCM","B2MG","beta2-Microglobulin"]
["BCM","BCM","BACO","Barium content"]
["BCM","BCM","BAGA","Bisphenol A glucuronic acid"]
["BCM","BCM","BATP","beta-ATP (beta-Adenosine triphosphate)"]
["BCM","BCM","BCAR","beta-Carotene"]
["BCM","BCM","BCON","Boron content"]
["BCM","BCM","BECO","Beryllium concentration"]
["BCM","BCM","BFCO","Bromoform concentration"]
["BCM","BCM","BGBN","beta globin"]
["BCM","BCM","BGLB","beta-Globulins"]
["BCM","BCM","BGPR","beta- and gamma-Protein"]
["BCM","BCM","BHNC","Behenic acid"]
["BCM","BCM","BICO","Bismuth concentration"]
["BCM","BCM","BILE","Bile"]
["BCM","BCM","BIOT","Biotin content"]
["BCM","BCM","BLAC","Bile Acids"]
["BCM","BCM","BLLB","Bilirubin"]
["BCM","BCM","BPHY","b-Phycoerythrin"]
["BCM","BCM","BRCO","Bromine Concentration"]
["BCM","BCM","BRKN","Bradykinin"]
["BCM","BCM","BTBL","beta-Tubulin"]
["BCM","BCM","BUNT","Blood urea nitrogen"]
["BCM","BCM","C11O","cis-vaccenic acid"]
["BCM","BCM","C12O","cis-12-octadecenoic acid"]
["BCM","BCM","C13O","cis-13-octadecenoic acid"]
["BCM","BCM","C1AB","Cry1Ab protein"]
["BCM","BCM","C4CD","C4 acids"]
["BCM","BCM","C7HD","cis-7-hexadecenoic acid"]
["BCM","BCM","C9BT","Total 9B,19- cyclopropylsterols"]
["BCM","BCM","C9HD","cis-9-heptadecenoic acid"]
["BCM","BCM","CAAL","Calcium to aluminum ratio"]
["BCM","BCM","CABN","Calbindin"]
["BCM","BCM","CACC","Chlorophyll A to Chlorophyll C ratio"]
["BCM","BCM","CACH","Carotene to Chlorophyll A Ratio"]
["BCM","BCM","CACO","Calcium content"]
["BCM","BCM","CAMP","Adenosine 3',5'-cyclic monophosphate"]
["BCM","BCM","CANA","Calcium to sodium ratio"]
["BCM","BCM","CANR","Calcium Nitrogen ratio"]
["BCM","BCM","CAPA","Capric acid"]
["BCM","BCM","CAPH","Calcium/phosphorus ratio"]
["BCM","BCM","CAPR","Calcium to phosphorus ratio"]
["BCM","BCM","CARB","Carbohydrate"]
["BCM","BCM","CARC","Carotenoids"]
["BCM","BCM","CARO","Carotene"]
["BCM","BCM","CARR","Carrageenan"]
["BCM","BCM","CAZN","Calcium to Zinc ratio"]
["BCM","BCM","CBCH","beta-Carotene to Chlorophyll A Ratio"]
["BCM","BCM","CC23","Crustacean calcium-binding protein 23"]
["BCM","BCM","CCON","Carbon content"]
["BCM","BCM","CCTR","Coproprophyrin creatine ratio"]
["BCM","BCM","CDAI","Cadmium accumulation index"]
["BCM","BCM","CDBP","Cadmium binding proteins"]
["BCM","BCM","CDCO","Cadmium content"]
["BCM","BCM","CDPR","Cadmium to phosphorus ratio"]
["BCM","BCM","CDST","Acid soluble thiol"]
["BCM","BCM","CDZN","Cadmium to zinc ratio"]
["BCM","BCM","CFCA","Caffeic Acids"]
["BCM","BCM","CFCX","Coagulation Factor X"]
["BCM","BCM","CGMP","Cyclic guanylic acid"]
["BCM","BCM","CGRP","Calcitonin Gene-Related Peptide"]
["BCM","BCM","CHAB","Chlorophyll A:Chlorophyll B"]
["BCM","BCM","CHAP","Chlorophyll A to Phaeophytin A ratio"]
["BCM","BCM","CHCT","Chlorophyll:Carotenoids"]
["BCM","BCM","CHDS","Chondroitin Sulfate"]
["BCM","BCM","CHES","Cholesteryl ester"]
["BCM","BCM","CHLA","Chlorophyll A concentration"]
["BCM","BCM","CHLB","Chlorophyll B concentration"]
["BCM","BCM","CHLC","Chlorophyll C concentration"]
["BCM","BCM","CHLN","Choline"]
["BCM","BCM","CHLO","Chlorophyll"]
["BCM","BCM","CHLR","Chloride"]
["BCM","BCM","CHOL","Cholesterol"]
["BCM","BCM","CHTN","Chitin"]
["BCM","BCM","CHYM","Chymotrypsinogen"]
["BCM","BCM","CITA","Citric acid"]
["BCM","BCM","CITR","Citrulline"]
["BCM","BCM","CITT","Citrate"]
["BCM","BCM","CJLA","Conjugated Linoleic Acids"]
["BCM","BCM","CLCN","Calcein"]
["BCM","BCM","CLCO","Chlorine concentration"]
["BCM","BCM","CLGA","Chlorogenic acid"]
["BCM","BCM","CLHP","Collagen to hydroxyproline ratio"]
["BCM","BCM","CLLG","Collagen"]
["BCM","BCM","CLMD","Calmodulin"]
["BCM","BCM","CMCA","Coumaric acids"]
["BCM","BCM","CMPH","Camphor Content"]
["BCM","BCM","CNAC","N-acetyl-(S-3-chloroprop-2- enyl)cysteine (3CNAC)"]
["BCM","BCM","CNDN","Conjugated Dienes"]
["BCM","BCM","CNRA","Carbon to nitrogen ratio"]
["BCM","BCM","CO2C","CO2 concentration"]
["BCM","BCM","COAN","Chlorpyrifos-o-analog"]
["BCM","BCM","COCO","Cobalt concentration"]
["BCM","BCM","CODR","9-cis-4-oxo-13,14-dihydro-retinoic acid"]
["BCM","BCM","CP2K","Cytochrome P2K"]
["BCM","BCM","CP3K","Cytochrome P3K"]
["BCM","BCM","CPNI","Cysteine proteinase inhibitors"]
["BCM","BCM","CPRP","Coproporphyrin"]
["BCM","BCM","CPRT","Carbon phosphorus ratio"]
["BCM","BCM","CRBR","Cerebroside"]
["BCM","BCM","CRCA","Carotenoids Chlorophyll A ratio"]
["BCM","BCM","CRCO","Chromium content"]
["BCM","BCM","CREA","Creatinine"]
["BCM","BCM","CREC","Creatine compounds"]
["BCM","BCM","CRLF","Ceroid and Lipofuscin"]
["BCM","BCM","CRMD","Ceramide"]
["BCM","BCM","CRPR","Chromium : Phosphorus"]
["BCM","BCM","CRTN","Creatine"]
["BCM","BCM","CSEN","Casein"]
["BCM","BCM","CSF2","Colony-Stimulating Factor, Granulocyte- Macrophage (CSF2)"]
["BCM","BCM","CSF3","Granulocyte Colony-Stimulating Factor\n(CSF3)"]
["BCM","BCM","CTR1","Copper Transporter 1"]
["BCM","BCM","CUAI","Copper accumulation index"]
["BCM","BCM","CUCD","Copper to cadmium ratio"]
["BCM","BCM","CUCO","Copper (Cu) content"]
["BCM","BCM","CUCR","Copper to Carbon ratio"]
["BCM","BCM","CUMN","Copper to manganese ratio"]
["BCM","BCM","CUMO","Copper to molybdenum ratio"]
["BCM","BCM","CUZN","Copper to zinc ratio"]
["BCM","BCM","CYCB","Cytochalasin B"]
["BCM","BCM","CYSI","Cystine"]
["BCM","BCM","CYTC","Cytochrome c"]
["BCM","BCM","CYTN","Cysteine"]
["BCM","BCM","D11A","Docosenoic acid (C22:1n-11)"]
["BCM","BCM","D6FA","Docosatrienoic acid (C22:3n-6)"]
["BCM","BCM","DABT","Dehydroascorbate"]
["BCM","BCM","DALA","delta-Aminolevulinic acid"]
["BCM","BCM","DAPP","Diaminopropane"]
["BCM","BCM","DASC","Dehydroascorbic acid"]
["BCM","BCM","DATP","Dopamine Transporter Protein"]
["BCM","BCM","DCDA","3,4-Dihydroxyphenylacetic acid to\nDopamine ratio"]
["BCM","BCM","DCHA","Docosahexaenoic acid"]
["BCM","BCM","DCPA","Docosapentaenoic acid"]
["BCM","BCM","DDEC","DDE concentration"]
["BCM","BCM","DDRP","Didehydroretinyl palmitate"]
["BCM","BCM","DDXN","Diadinoxanthin"]
["BCM","BCM","DGCR","Diglyceride"]
["BCM","BCM","DGDG","Digalactosyl diglyceride (glycolipid)"]
["BCM","BCM","DHAP","Dihydroxyacetone-P"]
["BCM","BCM","DHCA","1,25-Dihydrocholecalciferol"]
["BCM","BCM","DHLA","Dihomo-gamma-Linolenic Acid"]
["BCM","BCM","DHPG","Dihydroxyphenylethylene glycol"]
["BCM","BCM","DHRT","Dehydroretinol"]
["BCM","BCM","DISC","Diethylsuccinate hydrolysis"]
["BCM","BCM","DMCA","Domoic Acid"]
["BCM","BCM","DOP1","Dopa"]
["BCM","BCM","DOPC","3,4-Dihydroxyphenylacetic acid"]
["BCM","BCM","DOVL","Deoxynivalenol"]
["BCM","BCM","DPHG","Diphosphatidylglycerol"]
["BCM","BCM","DPHZ","1,1-Diphenyl-2-picryl hydrazyl"]
["BCM","BCM","DPPA","2,3-Diphosphoglyceric acid"]
["BCM","BCM","DRYM","Dry matter"]
["BCM","BCM","DSMN","Desmosine"]
["BCM","BCM","DTBL","Direct bilirubin (conjugated)"]
["BCM","BCM","DTXN","Diatoxanthin"]
["BCM","BCM","E11A","Eicosenoic acid (C20:1n-11)"]
["BCM","BCM","ECCR","Echinochrome"]
["BCM","BCM","ECDA","Eicosadienoic acid"]
["BCM","BCM","ECFC","Esterified cholesterol free cholesterol ratio"]
["BCM","BCM","ECOA","Eicosenoic acid"]
["BCM","BCM","ECSA","Eicosatrienoic acid"]
["BCM","BCM","ECSP","Eicosapentaenoate"]
["BCM","BCM","EICN","Ethyl isocyanide"]
["BCM","BCM","ELDA","Elaidic acid"]
["BCM","BCM","ELST","Elastin"]
["BCM","BCM","ELYT","Electrolytes"]
["BCM","BCM","ENDP","Endorphin"]
["BCM","BCM","ENKP","Enkephalin"]
["BCM","BCM","EPNP","O-Ethyl-O-p- nitrophenylbenzenethionophosphate"]
["BCM","BCM","ERGL","Ergosterol"]
["BCM","BCM","ERUC","Erucic acid"]
["BCM","BCM","ESAA","Amino acids, essential"]
["BCM","BCM","ESGM","Estrogen metabolism"]
["BCM","BCM","ETCO","epsillon-Tocopherol concentration"]
["BCM","BCM","ETHL","Ethylene"]
["BCM","BCM","ETSR","Erythrocyte sedimentation rate"]
["BCM","BCM","ETST","Esters of Sterins"]
["BCM","BCM","ETXN","Endotoxin"]
["BCM","BCM","EZIN","Enzyme inhibitors"]
["BCM","BCM","F2IP","F2-Isoprostanes"]
["BCM","BCM","FAAN","Free amino acid Nitrogen ratio"]
["BCM","BCM","FADH","Formaldehyde"]
["BCM","BCM","FAME","Fatty acid methyl ester"]
["BCM","BCM","FATL","Fatty acid, total"]
["BCM","BCM","FATS","Fatty acids"]
["BCM","BCM","FBNT","Fibronectin"]
["BCM","BCM","FBRG","Fibrinogen"]
["BCM","BCM","FCIX","Coagulation Factor IX"]
["BCM","BCM","FEAI","Iron accumulation index"]
["BCM","BCM","FECO","Iron content"]
["BCM","BCM","FEMN","Iron to manganese ratio"]
["BCM","BCM","FENR","Fenretinide (4-Hydroxy-retinoic acid)"]
["BCM","BCM","FEZN","Iron to zinc ratio"]
["BCM","BCM","FFTA","Fatty acids, free"]
["BCM","BCM","FIBR","Fiber"]
["BCM","BCM","FLCA","Folic acid"]
["BCM","BCM","FLCO","Fluoride concentration"]
["BCM","BCM","FLRS","Fluorescence"]
["BCM","BCM","FLVN","Flavin"]
["BCM","BCM","FRCT","Fructose"]
["BCM","BCM","FRLA","Ferulic acid"]
["BCM","BCM","FRTN","Ferritin"]
["BCM","BCM","FSPP","Female specific proteins"]
["BCM","BCM","FTIX","Free thyroxine index"]
["BCM","BCM","FUB1","Fumonisin B1"]
["BCM","BCM","FUB2","Fumonisin B2"]
["BCM","BCM","FUMO","Fumonisins"]
["BCM","BCM","FVII","Coagulation Factor VII"]
["BCM","BCM","FXTN","Fucoxanthin"]
["BCM","BCM","G5DP","guanosine 5'-diphosphate"]
["BCM","BCM","G5TP","guanosine 5'-triphosphate"]
["BCM","BCM","GABA","gamma-Aminobutyric acid"]
["BCM","BCM","GAX4","Gonyautoxin 4"]
["BCM","BCM","GBCM","General biochemical effect"]
["BCM","BCM","GBTN","Glycine betaine"]
["BCM","BCM","GBTR","gamma-Globulin to Transferrin ratio"]
["BCM","BCM","GCBN","Gap charge balance"]
["BCM","BCM","GCLL","Glyceollin"]
["BCM","BCM","GD1A","Ganglioside GD1a"]
["BCM","BCM","GD1B","Ganglioside GD1b"]
["BCM","BCM","GERA","Geranyl acetate"]
["BCM","BCM","GERN","Geraniol"]
["BCM","BCM","GESM","Geosmin"]
["BCM","BCM","GGGH","Glutathione disulfide to glutathione ratio\n(oxidized to reduced)"]
["BCM","BCM","GGLB","gamma-Globulins"]
["BCM","BCM","GGM1","Ganglioside GM1"]
["BCM","BCM","GGT1","Ganglioside GT1"]
["BCM","BCM","GINS","Ginsenosides"]
["BCM","BCM","GLAF","gamma-Linolenic acid"]
["BCM","BCM","GLCA","Gallic acid"]
["BCM","BCM","GLCN","Glycine"]
["BCM","BCM","GLOB","Globulin"]
["BCM","BCM","GLPS","Glucagon-Like Peptides"]
["BCM","BCM","GLTH","Glutathione (reduced glutathione)"]
["BCM","BCM","GLTL","Galactolipid"]
["BCM","BCM","GLTT","Glutamate"]
["BCM","BCM","GLUC","Glucose"]
["BCM","BCM","GLYA","Glycoalkaloid"]
["BCM","BCM","GLYC","Glycogen"]
["BCM","BCM","GLYP","Glycoprotein composition"]
["BCM","BCM","GLYT","Total glycolipid content"]
["BCM","BCM","GMIN","Glutamine"]
["BCM","BCM","GNGL","Ganglioside"]
["BCM","BCM","GPRO","Glial fibrillary acidic protein"]
["BCM","BCM","GRHP","Gonadotropin releasing hormone to protein content ratio"]
["BCM","BCM","GRMN","Gramine"]
["BCM","BCM","GSGS","Reduced Glutathione to Glutathione disulfide"]
["BCM","BCM","GSPL","Gossypol"]
["BCM","BCM","GSSG","Glutathione disulfide (oxidized glutathione)"]
["BCM","BCM","GTAS","Glutamine and asparagine"]
["BCM","BCM","GTCO","gamma-Tocopherol concentration"]
["BCM","BCM","GTMA","Glutamic acid"]
["BCM","BCM","GTP1","Glucose Transporter Type 1"]
["BCM","BCM","GYCL","Glycerol content"]
["BCM","BCM","H108","Heat shock protein 108"]
["BCM","BCM","H2O2","Hydrogen peroxide"]
["BCM","BCM","H89A","Heat Shock Protein 89 alpha"]
["BCM","BCM","HBZA","Hydroxybenzoic acids"]
["BCM","BCM","HCO3","Bicarbonate (HCO3-) concentration"]
["BCM","BCM","HCTN","Homocysteine"]
["BCM","BCM","HD12","12-hydroxydodecanoic acid"]
["BCM","BCM","HDCB","Hydrocarbons"]
["BCM","BCM","HDCH","High density lipoprotein cholesterol:total cholesterol"]
["BCM","BCM","HDLC","High density lipoprotein cholesterol"]
["BCM","BCM","HEME","Heme content"]
["BCM","BCM","HEMT","Hematological parameters (Temporary\nAQUIRE code)"]
["BCM","BCM","HEXS","Hexose"]
["BCM","BCM","HGCO","Mercury concentration"]
["BCM","BCM","HIFT","Hypoxia inducible factor-1 alpha-Tubulin ratio"]
["BCM","BCM","HIHT","5-HIAA/5-HT Ratio"]
["BCM","BCM","HIST","Histidine"]
["BCM","BCM","HITY","Histidine to tyrosine ratio"]
["BCM","BCM","HMCT","Hematocrit (anemia)"]
["BCM","BCM","HMCY","Hemocyanin"]
["BCM","BCM","HMDP","Homovanillic acid to Dopamine Ratio"]
["BCM","BCM","HMGL","Hemoglobin"]
["BCM","BCM","HMGT","Hemagglutinin"]
["BCM","BCM","HMLS","Hemolysin"]
["BCM","BCM","HMPG","4-Hydroxy-3-methoxyphenylglycol"]
["BCM","BCM","HMPR","Hemoglobin to protein ratio"]
["BCM","BCM","HMSN","Hemosiderin"]
["BCM","BCM","HNMS","N[3H-methyl]scopolamine"]
["BCM","BCM","HP16","Heat shock protein 16"]
["BCM","BCM","HP20","Heat shock protein 20"]
["BCM","BCM","HP26","Heat Shock Protein 26 (HSP26)"]
["BCM","BCM","HP30","Heat shock protein 30"]
["BCM","BCM","HP32","Heat shock protein 32"]
["BCM","BCM","HP40","Heat shock protein 40"]
["BCM","BCM","HP42","Heat shock protein 42"]
["BCM","BCM","HP52","Heat shock protein 52"]
["BCM","BCM","HP60","Heat shock protein 60 (HSP60)"]
["BCM","BCM","HP70","Heat shock protein 70 (HSP70)"]
["BCM","BCM","HP71","Heat shock protein 71"]
["BCM","BCM","HP72","Heat shock protein 72"]
["BCM","BCM","HP73","Heat shock protein 73"]
["BCM","BCM","HP75","Heat shock protein 75"]
["BCM","BCM","HP90","Heat shock protein 90"]
["BCM","BCM","HP96","Heat shock protein 96"]
["BCM","BCM","HPCN","Hypericin"]
["BCM","BCM","HPLN","Hydroxyproline"]
["BCM","BCM","HPSS","Heat Shock Proteins, small"]
["BCM","BCM","HPXN","Hemopexin"]
["BCM","BCM","HS78","Heat shock protein 78"]
["BCM","BCM","HSPS","Heat Shock Protein"]
["BCM","BCM","HSTM","Histamine"]
["BCM","BCM","HVLA","Homovanillic acid"]
["BCM","BCM","HXBT","Hexobarbital"]
["BCM","BCM","HXDC","Hexadecenoate"]
["BCM","BCM","HYLA","Hyaluronic Acid"]
["BCM","BCM","IBIL","Indirect bilirubin (free)"]
["BCM","BCM","ICON","Iodine concentration"]
["BCM","BCM","IDAA","Indole Acetic Acid"]
["BCM","BCM","IDMN","Isodesmosine + Desmonine"]
["BCM","BCM","IHDA","isoheptadecanoic acid"]
["BCM","BCM","IL10","Interleukin-10"]
["BCM","BCM","IL12","Interleukin-12"]
["BCM","BCM","IL17","Interleukin 17"]
["BCM","BCM","IL1A","Interleukin-1alpha"]
["BCM","BCM","IL1B","Interleukin-1 beta"]
["BCM","BCM","ILEU","Isoleucine"]
["BCM","BCM","ILK3","Interleukin-3"]
["BCM","BCM","ILK4","Interleukin-4"]
["BCM","BCM","ILK6","Interleukin-6"]
["BCM","BCM","IMNT","Iso-menthone"]
["BCM","BCM","IN1P","Inositol 1-phosphate"]
["BCM","BCM","IODA","Iso-octadecanoic acid"]
["BCM","BCM","IP40","Interleukin-12 subunit p40"]
["BCM","BCM","IPDA","Isopentadecanoic acid"]
["BCM","BCM","IPLM","Isopalmitic acid"]
["BCM","BCM","ISDM","Isodesmosine"]
["BCM","BCM","ISPT","Isoprostane"]
["BCM","BCM","ITFG","Interferon-gamma"]
["BCM","BCM","ITL2","Interleukin-2"]
["BCM","BCM","KCDR","Potassium Cadmium Ratio"]
["BCM","BCM","KCON","Potassium content"]
["BCM","BCM","KCUR","Potassium Copper Ratio"]
["BCM","BCM","KGTA","alpha-ketoglutarate"]
["BCM","BCM","KNAR","Potassium Sodium Ratio"]
["BCM","BCM","KNO3","Potassium nitrate"]
["BCM","BCM","KNRT","Potassium Nitrogen ratio"]
["BCM","BCM","KTBA","alpha-ketobutyric acid"]
["BCM","BCM","KTNE","Ketone"]
["BCM","BCM","LA2S","L-Ascorbyl-2-sulfate"]
["BCM","BCM","LACT","Lactate"]
["BCM","BCM","LALN","Ratio of linoleic to linolenic fatty acids"]
["BCM","BCM","LAMT","Total lauric acid metabolites"]
["BCM","BCM","LASC","L-ascorbic acid"]
["BCM","BCM","LASS","L-ascorbyl-2-sulfate"]
["BCM","BCM","LAUA","Lauric acid"]
["BCM","BCM","LCAR","Lipid:Chlorophyll A ratio"]
["BCM","BCM","LCCT","Leucocrit"]
["BCM","BCM","LCPR","The ratio of lipid to chlorophyll to protein"]
["BCM","BCM","LCPY","Lactate Pyruvate Ratio"]
["BCM","BCM","LCTA","Lactic acid"]
["BCM","BCM","LCTS","Lactose"]
["BCM","BCM","LDLP","Low density lipoprotein"]
["BCM","BCM","LDNT","Lipids, neutral"]
["BCM","BCM","LDPL","Lipids, polar"]
["BCM","BCM","LDPO","Lipid peroxides"]
["BCM","BCM","LELA","Linoelaidic acid"]
["BCM","BCM","LEUC","Leucine"]
["BCM","BCM","LGHE","Leghemoglobin"]
["BCM","BCM","LIAC","Lignoceric acid"]
["BCM","BCM","LICO","Lithium content"]
["BCM","BCM","LIGN","Lignin"]
["BCM","BCM","LIMO","Limonene"]
["BCM","BCM","LINA","Linalool"]
["BCM","BCM","LINO","Linoleic acid"]
["BCM","BCM","LIPD","Lipid"]
["BCM","BCM","LIPT","Total lipids"]
["BCM","BCM","LNEI","Linolenic and eicosanoic acid"]
["BCM","BCM","LNLA","Linolenic acid, all cis"]
["BCM","BCM","LNLN","Linolenic acid"]
["BCM","BCM","LNLT","Linoleate"]
["BCM","BCM","LPFS","Lipofuscin"]
["BCM","BCM","LPPC","Lysophosphatidylcholine"]
["BCM","BCM","LPPE","Lysophosphatidylethanolamine"]
["BCM","BCM","LPPG","Lysophosphatidylglycerol"]
["BCM","BCM","LPPX","Lipoperoxide"]
["BCM","BCM","LPRR","The ratio of lipid to protein"]
["BCM","BCM","LPSA","Lipid soluble antioxidants"]
["BCM","BCM","LTB4","Leukotriene B4"]
["BCM","BCM","LUTE","Lutein"]
["BCM","BCM","LYSI","Lysine"]
["BCM","BCM","MARG","Margaric acid"]
["BCM","BCM","MCHC","Mean corpuscular (cell) hemoglobin concentration"]
["BCM","BCM","MCHG","Mean corpuscular hemoglobin"]
["BCM","BCM","MCON","Mineral content"]
["BCM","BCM","MCPR","Microsomal proteins"]
["BCM","BCM","MCPV","Mean corpuscular volume"]
["BCM","BCM","MCUR","Metallothionein to Copper ratio"]
["BCM","BCM","MCYS","Microcystin"]
["BCM","BCM","MDCH","Methyl-4,7,10,13,16,19- Docosahexanate"]
["BCM","BCM","MEAD","Mead Acid"]
["BCM","BCM","METH","Methionine"]
["BCM","BCM","MGAL","Magnesium to aluminum ratio"]
["BCM","BCM","MGCO","Magnesium (Mg) content"]
["BCM","BCM","MGCR","Monoglycerides"]
["BCM","BCM","MGDG","Monogalactosyl diglyceride\n(glycolipid) content"]
["BCM","BCM","MGLB","Methemoglobin"]
["BCM","BCM","MGNR","Magnesium to nitrogen ratio"]
["BCM","BCM","MGPN","Mg-2,4-divinyl pheophophyrin a5 monomethyl ester"]
["BCM","BCM","MHPS","3-methoxy-4- hydroxyphenylethyleneglycol sulfate"]
["BCM","BCM","MLAT","Malate"]
["BCM","BCM","MLDH","Malondialdehyde"]
["BCM","BCM","MLNN","Melanin"]
["BCM","BCM","MNAC","Menthyl acetate"]
["BCM","BCM","MNAI","Manganese accumulation index"]
["BCM","BCM","MNCO","Manganese (Mn) content"]
["BCM","BCM","MNFE","Manganese to iron ratio"]
["BCM","BCM","MNNR","Manganese Nitrogen ratio"]
["BCM","BCM","MNTH","Menthone"]
["BCM","BCM","MOCO","Molybdenum content"]
["BCM","BCM","MOTP","Monoterpenes"]
["BCM","BCM","MRNN","Marennine"]
["BCM","BCM","MRXC","Mirex concentration"]
["BCM","BCM","MTCD","Metallothionein to Cadmium ratio"]
["BCM","BCM","MTHL","Menthol"]
["BCM","BCM","MTLN","Metallothionein"]
["BCM","BCM","MTLT","Metal Content, Total"]
["BCM","BCM","MUFA","Monounsaturated Fatty Acids"]
["BCM","BCM","MYLN","Myelin"]
["BCM","BCM","MYRA","Myristic acid"]
["BCM","BCM","MYSL","Myristoleic acid"]
["BCM","BCM","NACO","Sodium content"]
["BCM","BCM","NADP","Nicatinamide-adenine dinucleotide phosphate, reduced"]
["BCM","BCM","NAKR","Sodium Potassium ratio"]
["BCM","BCM","NAZN","Sodium Zinc Ratio"]
["BCM","BCM","NBUA","N-butyric acid"]
["BCM","BCM","NCAR","Nitrogen calcium ratio"]
["BCM","BCM","NCLR","Sodium ion (Na+) to Chloride ion\n(Cl-) ratio"]
["BCM","BCM","NCON","Nitrogen (N) content"]
["BCM","BCM","NEAA","Amino acids, nonessential"]
["BCM","BCM","NH4I","Ammonium ion"]
["BCM","BCM","NHPN","Ammonium ion Nitrogen ratio"]
["BCM","BCM","NICO","Nickel content"]
["BCM","BCM","NICT","Nicotine"]
["BCM","BCM","NIFE","Nickel to nitrogen ratio"]
["BCM","BCM","NKPH","Enkephalin"]
["BCM","BCM","NKRT","Nitrogen potassium ratio"]
["BCM","BCM","NMGR","Nitrogen Magnesium ratio"]
["BCM","BCM","NO2C","Nitrite concentration (NO2-)"]
["BCM","BCM","NO3C","Nitrate concentration (NO3-)"]
["BCM","BCM","NOCO","Nitric Oxide concentration"]
["BCM","BCM","NODA","Nonadecanoic acid"]
["BCM","BCM","NPRT","Nitrogen Phosphorus Ratio"]
["BCM","BCM","NPSH","Nonprotein sulfhydryl"]
["BCM","BCM","NPSS","Ninhydrid-positive substances"]
["BCM","BCM","NRGC","Energy compound"]
["BCM","BCM","NRMA","Neuraminic acid"]
["BCM","BCM","NSRA","Nitrogen to sulfur ratio"]
["BCM","BCM","NSUG","Non-reducing sugars"]
["BCM","BCM","NTPH","Nucleotide triphophate (Total) to hemoglobin ratio"]
["BCM","BCM","NUAC","Nucleic acids"]
["BCM","BCM","NUTP","Nucleoside Triphosphate"]
["BCM","BCM","NUTR","Nutrient status"]
["BCM","BCM","NXNT","Neoxanthin"]
["BCM","BCM","O1LA","(omega -1)-Hydroxy lauric acid"]
["BCM","BCM","O2LA","(omega-2)-Hydroxy lauric acid"]
["BCM","BCM","O3FA","Omega 3 Fatty Acid"]
["BCM","BCM","O3LA","(omega-3)-Hydroxy lauric acid"]
["BCM","BCM","O3O6","Omega 3 Fatty Acids to Omega 6\nFatty Acids ratio"]
["BCM","BCM","O6FA","Omega 6 Fatty Acids"]
["BCM","BCM","O6LA","(omega-6)-Hydroxy lauric acid"]
["BCM","BCM","O6O3","Omega 6 Fatty Acids to Omega 3\nFatty Acids ratio"]
["BCM","BCM","OACD","Organic acids"]
["BCM","BCM","OCON","Oxygen content"]
["BCM","BCM","OCTA","Octadecenoic acid (C18:1n-7)"]
["BCM","BCM","OCTS","Octadecenoic acids"]
["BCM","BCM","ODCN","Octadecanoate"]
["BCM","BCM","OHCP","Oxyhemocyanin to protein ratio"]
["BCM","BCM","OHGL","O2 specific bond to hemoglobin"]
["BCM","BCM","OLCO","Oil content"]
["BCM","BCM","OLEC","Oleic acid"]
["BCM","BCM","OLYD","Oil yield"]
["BCM","BCM","ONRA","Oxygen to nitrogen ratio"]
["BCM","BCM","ORNI","Ornithine"]
["BCM","BCM","OSCN","Osteocalcin"]
["BCM","BCM","OSDB","Oestradiol breakdown products"]
["BCM","BCM","OTHN","Orthinine"]
["BCM","BCM","OXHC","Oxyhemocyanin"]
["BCM","BCM","PADH","Propionaldehyde"]
["BCM","BCM","PALL","Palmitoleic acid"]
["BCM","BCM","PALM","Palmitic acid"]
["BCM","BCM","PARG","Phosphoarginine"]
["BCM","BCM","PBAI","Lead accumulation index"]
["BCM","BCM","PBCO","Lead content"]
["BCM","BCM","PBHB","Poly-beta-hydroxybutyrate"]
["BCM","BCM","PBIC","Lead 131-Iodine content"]
["BCM","BCM","PBPR","Lead Phosphorus ratio"]
["BCM","BCM","PCAR","Protein carbonyls"]
["BCM","BCM","PCBC","PCB concentration"]
["BCM","BCM","PCCA","Protocatechuic acid"]
["BCM","BCM","PCLV","Packed cell volume"]
["BCM","BCM","PCON","Phosphorus content"]
["BCM","BCM","PCPA","procarboxypeptidase A"]
["BCM","BCM","PCPB","Procarboxypeptidase B"]
["BCM","BCM","PCRA","Phosphocreatine to creatine"]
["BCM","BCM","PCRE","Phosphocreatinine"]
["BCM","BCM","PDCA","Pentadecanoic acid"]
["BCM","BCM","PDCN","Pentadecanoate"]
["BCM","BCM","PDST","Phosphodiester"]
["BCM","BCM","PEGE","Polyethylene glycol (PEG) efflux"]
["BCM","BCM","PFER","Phosphorus to iron ratio"]
["BCM","BCM","PGE2","Prostaglandin E2"]
["BCM","BCM","PGF2","Dinoprost"]
["BCM","BCM","PHCB","Phycobiliproteins"]
["BCM","BCM","PHCN","Pseudohypericin"]
["BCM","BCM","PHCO","Phycoerythrin"]
["BCM","BCM","PHCR","Phosphocreatine"]
["BCM","BCM","PHEN","Phenylalanine"]
["BCM","BCM","PHPA","Phosphatidic acid"]
["BCM","BCM","PHPH","pH"]
["BCM","BCM","PHSC","Phosphatidyl choline (phospholipid)\ncontent"]
["BCM","BCM","PHSE","Phosphatidyl ethanolamine\n(phospholipid) content"]
["BCM","BCM","PHSG","Phosphatidyl glycerol (phospholipid)\ncontent"]
["BCM","BCM","PHSI","Phosphatidyl inositol (phospholipid)\ncontent"]
["BCM","BCM","PHSP","Phosphatide phosphorus"]
["BCM","BCM","PHSS","Phosphtidylserine"]
["BCM","BCM","PHST","Total phospholipid content"]
["BCM","BCM","PHTC","Phytochelatin"]
["BCM","BCM","PHTN","Phytoene"]
["BCM","BCM","PHYC","Phycocyanin"]
["BCM","BCM","PIAC","Pinolenic acid"]
["BCM","BCM","PINE","Alpha-pinene"]
["BCM","BCM","PLAC","Pulp:acid"]
["BCM","BCM","PLAM","Polyamine"]
["BCM","BCM","PLAT","Platelets"]
["BCM","BCM","PLSC","Polysaccharide"]
["BCM","BCM","PM29","Pro-matrix metaloproteinase 2 and\nPro-matrix metaloproteinase 9"]
["BCM","BCM","PMP2","proMMP2"]
["BCM","BCM","PMP9","proMMP9"]
["BCM","BCM","PMST","Phosphomonoester"]
["BCM","BCM","PNAS","p-Nitroanisol"]
["BCM","BCM","PNRT","Phosphorus Nitrogen ratio"]
["BCM","BCM","PNYL","Phenols concentration"]
["BCM","BCM","POLD","Peroxidizable lipids"]
["BCM","BCM","PORP","Porphyrin"]
["BCM","BCM","PORT","Phosphorus oxygen ratio"]
["BCM","BCM","PPEA","Phosphoethanolamine"]
["BCM","BCM","PPHT","Phosphate"]
["BCM","BCM","PPPT","Phosphorylation of proteins"]
["BCM","BCM","PPYT","Phaeophytin"]
["BCM","BCM","PRCO","Protein content"]
["BCM","BCM","PRLN","Proline"]
["BCM","BCM","PROB","Protein binding"]
["BCM","BCM","PROI","Protein, insoluble"]
["BCM","BCM","PRSH","Protein bound sulfhydryl"]
["BCM","BCM","PRSL","Soluble proteins"]
["BCM","BCM","PRST","Structure proteins"]
["BCM","BCM","PRTL","Protein, total"]
["BCM","BCM","PRTM","Prothrombin"]
["BCM","BCM","PRTO","Protoporphyrin"]
["BCM","BCM","PRUR","Protein to urea ratio"]
["BCM","BCM","PRXT","Paroxetine"]
["BCM","BCM","PSCY","Plastocyanin"]
["BCM","BCM","PSPH","Phosphagen"]
["BCM","BCM","PSPI","Phosphotidylserine and phosphotidylinosital"]
["BCM","BCM","PSPY","Phosphoenol pyruvate"]
["BCM","BCM","PTLN","Patulin"]
["BCM","BCM","PTNA","Pantothenic acid"]
["BCM","BCM","PTNN","Phlorotannin"]
["BCM","BCM","PTSM","Proteasome"]
["BCM","BCM","PUFA","Polyunsaturated Fatty Acids"]
["BCM","BCM","PUSF","Polyunsaturated fatty acid to\nSaturated fatty acid ratio"]
["BCM","BCM","PUTR","Putrescine"]
["BCM","BCM","PYAX","Phytoalexin"]
["BCM","BCM","PYRT","Pyrethrum"]
["BCM","BCM","PYRV","Pyruvate"]
["BCM","BCM","PZNR","Phosphorus to Zinc ratio"]
["BCM","BCM","QPHP","Non-photochemical quenching pigments to light harvesting pigments ratio"]
["BCM","BCM","QUIN","Quinone"]
["BCM","BCM","RBCO","Rubidium Concentration"]
["BCM","BCM","RBGD","Retinoyl beta-glucuronide"]
["BCM","BCM","RBSD","Riboside"]
["BCM","BCM","RBVL","Relative blood volume (volume/100g body weight)"]
["BCM","BCM","RHDP","Rhodopsin"]
["BCM","BCM","RIBO","Riboflavin content"]
["BCM","BCM","RIDX","Refractive index"]
["BCM","BCM","RNDP","Ratio NADPH to NADP"]
["BCM","BCM","ROXS","Reactive oxygen species"]
["BCM","BCM","RRRA","13-cis-Retinoic acid to 9,13-di-cis- Retinoic acid ratio"]
["BCM","BCM","RSUG","Reducing sugars"]
["BCM","BCM","RTES","Retinyl esters"]
["BCM","BCM","RTND","Retinoids"]
["BCM","BCM","RTRP","Retinol/Retinyl palmitate ratio"]
["BCM","BCM","RTST","Retinyl stearate"]
["BCM","BCM","SAHC","S-adenosyl-l-homocysteine"]
["BCM","BCM","SAME","S-adenosyl-l-methionine"]
["BCM","BCM","SATF","Saturated Fatty Acids"]
["BCM","BCM","SBCO","Antimony concentration"]
["BCM","BCM","SCCN","Succinate"]
["BCM","BCM","SCON","Sulfur content"]
["BCM","BCM","SCPN","Scopoletin"]
["BCM","BCM","SECO","Selenium content"]
["BCM","BCM","SERI","Serine"]
["BCM","BCM","SERP","Serpin"]
["BCM","BCM","SESR","Selenium to sulfur ratio"]
["BCM","BCM","SEWE","Steryl esters and wax esters"]
["BCM","BCM","SFTD","Sulfatides"]
["BCM","BCM","SGMP","Sugar monophosphates"]
["BCM","BCM","SGRV","Specific gravity"]
["BCM","BCM","SICO","Silicon content"]
["BCM","BCM","SILA","Sialic acid"]
["BCM","BCM","SLAC","Silicic acid"]
["BCM","BCM","SLFH","Sulfhydryl"]
["BCM","BCM","SLFT","Sulfate concentration"]
["BCM","BCM","SMET","Secondary metabolism"]
["BCM","BCM","SNCO","Tin concentration"]
["BCM","BCM","SOSO","Soluble solids"]
["BCM","BCM","SPER","Spermine"]
["BCM","BCM","SPHG","Sphingomyelin"]
["BCM","BCM","SPHS","Sugar phosphates"]
["BCM","BCM","SPIG","Spiggin"]
["BCM","BCM","SPMD","Spermidine"]
["BCM","BCM","SPTP","Synaptophysin"]
["BCM","BCM","SPXN","Siphonaxanthin"]
["BCM","BCM","SQVD","Sulfoquinovosyl diglyceride"]
["BCM","BCM","SRCO","Strontium content"]
["BCM","BCM","SRGA","Siringic acid"]
["BCM","BCM","SSER","Sulfur to selenium ratio"]
["BCM","BCM","SSUG","Soluble sugar content"]
["BCM","BCM","STER","Stearic acid"]
["BCM","BCM","STES","Sterol esters"]
["BCM","BCM","STLD","Saturated lipid or fat"]
["BCM","BCM","STOL","Sterols"]
["BCM","BCM","STRH","Starch content"]
["BCM","BCM","SUCR","Sucrose"]
["BCM","BCM","SUFA","Ratio of saturated to unsaturated fatty acids"]
["BCM","BCM","SUGA","Sugar content"]
["BCM","BCM","SVOL","Steviol"]
["BCM","BCM","T10O","trans-10-octadecenoic acid"]
["BCM","BCM","T12O","trans-12-octadecenoic acid"]
["BCM","BCM","T9HC","trans-9 Hexadecanoate"]
["BCM","BCM","TANN","Tannins"]
["BCM","BCM","TAUR","Taurine"]
["BCM","BCM","TBAR","Thiobarbituric acid reactive substances"]
["BCM","BCM","TCNT","Thiocyanate"]
["BCM","BCM","TCTP","translationally controlled tumor protein"]
["BCM","BCM","TDCN","Tetradecanoate"]
["BCM","BCM","TEAM","Tetraethyl ammonium"]
["BCM","BCM","TERP","T-terpinene"]
["BCM","BCM","TFAA","Amino acids, total free"]
["BCM","BCM","TGB1","Transforming growth factor beta 1"]
["BCM","BCM","TGRT","Taurine to Glycine ratio"]
["BCM","BCM","THBA","Thiobarbituric acid"]
["BCM","BCM","THCO","Thorium concentration"]
["BCM","BCM","THIA","Thiamin"]
["BCM","BCM","THLS","trehalose"]
["BCM","BCM","THRE","Threonine"]
["BCM","BCM","THSF","Thioether"]
["BCM","BCM","TICO","Titanium content"]
["BCM","BCM","TLBL","Bilirubin, total"]
["BCM","BCM","TLCO","Thallium content"]
["BCM","BCM","TMAO","Trimethylamine oxide"]
["BCM","BCM","TMFA","Tumour necrosis factor-alpha"]
["BCM","BCM","TNSC","Total non-structural carbohydrates"]
["BCM","BCM","TNZA","Tenuazonic acid"]
["BCM","BCM","TPNN","Troponin"]
["BCM","BCM","TPPH","Thiamin pyrophosphate"]
["BCM","BCM","TRIB","Tributyrin"]
["BCM","BCM","TRIG","Triglycerides"]
["BCM","BCM","TRTY","Trytophan to tyrosine ratio"]
["BCM","BCM","TRYP","Tryptophan"]
["BCM","BCM","TRYS","Trypsinogen"]
["BCM","BCM","TSFN","Transferrin"]
["BCM","BCM","TTAA","Amino acids, total"]
["BCM","BCM","TTRN","Transthyretin"]
["BCM","BCM","TTSL","Total Solids (in milk)"]
["BCM","BCM","TTTV","Thymol turbidity test"]
["BCM","BCM","TXB2","Thromboxane B2"]
["BCM","BCM","TYMD","Thymidine"]
["BCM","BCM","TYRO","Tyrosine"]
["BCM","BCM","UCON","Uranium concentration"]
["BCM","BCM","UCTR","Uroprophrin creatine ratio"]
["BCM","BCM","UDPA","Uridine diphosphate acetylglucosamine, UDP acetylglucosamine"]
["BCM","BCM","UFAS","Unsaturated fatty acids"]
["BCM","BCM","UNCR","Urea nitrogen to Creatinine ratio"]
["BCM","BCM","UPRP","Uroporphyrin"]
["BCM","BCM","UREA","Urea"]
["BCM","BCM","UREN","Urea nitrogen"]
["BCM","BCM","URIC","Uric acid"]
["BCM","BCM","USAR","Unsaturated fatty acid to saturated fatty acids ratio"]
["BCM","BCM","USFA","Total saturated to total unsaturated fatty acids ratio"]
["BCM","BCM","UTMR","Urea to Trimethylamine oxide ratio"]
["BCM","BCM","VACC","Vaccenic acid"]
["BCM","BCM","VALI","Valine"]
["BCM","BCM","VB12","Vitamin B12"]
["BCM","BCM","VCON","Vanadium content"]
["BCM","BCM","VCXN","Vaucheriaxanthin"]
["BCM","BCM","VEPO","Vitellogenin:protein ratio"]
["BCM","BCM","VERA","Versicolorin A"]
["BCM","BCM","VHAC","Versiconal Hemiacetal Acetate"]
["BCM","BCM","VIDD","Retinyl palmitate:Dhydroretinyl palmitate"]
["BCM","BCM","VITA","Vitamin A"]
["BCM","BCM","VITE","Vitellogenin"]
["BCM","BCM","VITN","Vitellin"]
["BCM","BCM","VIVT","Vitellogenin:Vitellin ratio"]
["BCM","BCM","VLDL","Very low density lipoprotein"]
["BCM","BCM","VLXN","Violaxanthine"]
["BCM","BCM","VMAC","Vanillylmandelic acid"]
["BCM","BCM","VNLA","Vanillic acid"]
["BCM","BCM","VPRO","Vimetin heat shock protein"]
["BCM","BCM","VTAE","Vitamin A ester (Retinyl ester)"]
["BCM","BCM","VTD3","Vitamin D3"]
["BCM","BCM","VTMD","Vitamin D"]
["BCM","BCM","VTME","Vitamin E"]
["BCM","BCM","VXCA","Violaxanthin to Chlorophyll A ratio"]
["BCM","BCM","WAXX","Wax"]
["BCM","BCM","WTCO","Water content"]
["BCM","BCM","XTRA","Xanthurenic acid"]
["BCM","BCM","ZEAR","Zearalenone"]
["BCM","BCM","ZNAI","Zinc accumulation index"]
["BCM","BCM","ZNCD","Zinc to cadmium ratio"]
["BCM","BCM","ZNCO","Zinc content"]
["BCM","BCM","ZNCU","Zinc to Copper ratio"]
["BCM","BCM","ZNFE","Zinc to iron ratio"]
["BCM","BCM","ZNNA","Zinc to sodium ratio"]
["BCM","BCM","ZNPP","Zinc protoporphyrin"]
["BCM","BCM","ZPP2","Zona pellucide protein 2"]
["BCM","BCM","ZPRO","Zona radiata protein"]
["BCM","BCM","ZXCH","Zeaxanthin to Chlorophyll A ratio"]
["BCM","BCM","ZXTN","Zeaxanthin"]
["BCM","BCM","ZXVX","Zeaxanthin to Violaxanthin ratio"]

{"sheet":"VLOOKUP","index":2,"n_rows":323,"n_cols":7,"rows_kept":323,"cut":false,"hidden":false,"merged":[]}
[null,null,null,"Effect Group","Effect","Measured Endpoint","Meas"]
[null,null,null,"BCM","ENZ",{"$f":"IFERROR(VLOOKUP(G2,'Effects Code'!$C:$D,2,FALSE), G2)","v":"Cholinesterase"},"CEST"]
[null,null,null,"BCM","ENZ",{"$f":"IFERROR(VLOOKUP(G3,'Effects Code'!$C:$D,2,FALSE), G3)","v":"Cholinesterase"},"CEST"]
[null,null,null,"BCM","ENZ",{"$f":"IFERROR(VLOOKUP(G4,'Effects Code'!$C:$D,2,FALSE), G4)","v":"Cholinesterase"},"CEST"]
[null,null,null,"BCM","ENZ",{"$f":"IFERROR(VLOOKUP(G5,'Effects Code'!$C:$D,2,FALSE), G5)","v":"Cholinesterase"},"CEST"]
[null,null,null,"BCM","ENZ",{"$f":"IFERROR(VLOOKUP(G6,'Effects Code'!$C:$D,2,FALSE), G6)","v":"Acetylcholinesterase"},"ACHE"]
[null,null,null,"BCM","ENZ",{"$f":"IFERROR(VLOOKUP(G7,'Effects Code'!$C:$D,2,FALSE), G7)","v":"Acetylcholinesterase"},"ACHE"]
[null,null,null,"BCM","ENZ",{"$f":"IFERROR(VLOOKUP(G8,'Effects Code'!$C:$D,2,FALSE), G8)","v":"Acetylcholinesterase"},"ACHE"]
[null,null,null,"BCM","ENZ",{"$f":"IFERROR(VLOOKUP(G9,'Effects Code'!$C:$D,2,FALSE), G9)","v":"Acetylcholinesterase"},"ACHE"]
[null,null,null,"BCM","ENZ",{"$f":"IFERROR(VLOOKUP(G10,'Effects Code'!$C:$D,2,FALSE), G10)","v":"Acetylcholinesterase"},"ACHE"]
[null,null,null,"GRO","MPH",{"$f":"IFERROR(VLOOKUP(G11,'Effects Code'!$C:$D,2,FALSE), G11)","v":"Weight"},"WGHT"]
[null,null,null,"BCM","ENZ",{"$f":"IFERROR(VLOOKUP(G12,'Effects Code'!$C:$D,2,FALSE), G12)","v":"Acetylcholinesterase"},"ACHE"]
[null,null,null,"GRO","MPH",{"$f":"IFERROR(VLOOKUP(G13,'Effects Code'!$C:$D,2,FALSE), G13)","v":"Organ weight in relationship to body weight"},"SMIX"]
[null,null,null,"GRO","MPH",{"$f":"IFERROR(VLOOKUP(G14,'Effects Code'!$C:$D,2,FALSE), G14)","v":"Weight"},"WGHT"]
[null,null,null,"GRO","MPH",{"$f":"IFERROR(VLOOKUP(G15,'Effects Code'!$C:$D,2,FALSE), G15)","v":"Organ weight in relationship to body weight"},"SMIX"]
[null,null,null,"BCM","ENZ",{"$f":"IFERROR(VLOOKUP(G16,'Effects Code'!$C:$D,2,FALSE), G16)","v":"Acetylcholinesterase"},"ACHE"]
[null,null,null,"GRO","GRO",{"$f":"IFERROR(VLOOKUP(G17,'Effects Code'!$C:$D,2,FALSE), G17)","v":"Weight"},"WGHT"]
[null,null,null,"MOR","MOR",{"$f":"IFERROR(VLOOKUP(G18,'Effects Code'!$C:$D,2,FALSE), G18)","v":"Mortality"},"MORT"]
[null,null,null,"BCM","ENZ",{"$f":"IFERROR(VLOOKUP(G19,'Effects Code'!$C:$D,2,FALSE), G19)","v":"Cholinesterase"},"CEST"]
[null,null,null,"BCM","ENZ",{"$f":"IFERROR(VLOOKUP(G20,'Effects Code'!$C:$D,2,FALSE), G20)","v":"Cholinesterase"},"CEST"]
[null,null,null,"BCM","ENZ",{"$f":"IFERROR(VLOOKUP(G21,'Effects Code'!$C:$D,2,FALSE), G21)","v":"Cholinesterase"},"CEST"]
[null,null,null,"BCM","ENZ",{"$f":"IFERROR(VLOOKUP(G22,'Effects Code'!$C:$D,2,FALSE), G22)","v":"Cholinesterase"},"CEST"]
[null,null,null,"BEH","BEH",{"$f":"IFERROR(VLOOKUP(G23,'Effects Code'!$C:$D,2,FALSE), G23)","v":"Distance moved, change in direct movement"},"LOCO"]
[null,null,null,"BEH","BEH",{"$f":"IFERROR(VLOOKUP(G24,'Effects Code'!$C:$D,2,FALSE), G24)","v":"Distance moved, change in direct movement"},"LOCO"]
[null,null,null,"BCM","ENZ",{"$f":"IFERROR(VLOOKUP(G25,'Effects Code'!$C:$D,2,FALSE), G25)","v":"Cholinesterase"},"CEST"]
[null,null,null,"GRO","MPH",{"$f":"IFERROR(VLOOKUP(G26,'Effects Code'!$C:$D,2,FALSE), G26)","v":"Length"},"LGTH"]
[null,null,null,"GRO","MPH",{"$f":"IFERROR(VLOOKUP(G27,'Effects Code'!$C:$D,2,FALSE), G27)","v":"Length"},"LGTH"]
[null,null,null,"GRO","MPH",{"$f":"IFERROR(VLOOKUP(G28,'Effects Code'!$C:$D,2,FALSE), G28)","v":"Length"},"LGTH"]
[null,null,null,"GRO","MPH",{"$f":"IFERROR(VLOOKUP(G29,'Effects Code'!$C:$D,2,FALSE), G29)","v":"Length"},"LGTH"]
[null,null,null,"GRO","MPH",{"$f":"IFERROR(VLOOKUP(G30,'Effects Code'!$C:$D,2,FALSE), G30)","v":"Length"},"LGTH"]
[null,null,null,"GRO","MPH",{"$f":"IFERROR(VLOOKUP(G31,'Effects Code'!$C:$D,2,FALSE), G31)","v":"Length"},"LGTH"]
[null,null,null,"GRO","GRO",{"$f":"IFERROR(VLOOKUP(G32,'Effects Code'!$C:$D,2,FALSE), G32)","v":"Weight"},"WGHT"]
[null,null,null,"GRO","MPH",{"$f":"IFERROR(VLOOKUP(G33,'Effects Code'!$C:$D,2,FALSE), G33)","v":"Length"},"LGTH"]
[null,null,null,"GRO","MPH",{"$f":"IFERROR(VLOOKUP(G34,'Effects Code'!$C:$D,2,FALSE), G34)","v":"Length"},"LGTH"]
[null,null,null,"GRO","MPH",{"$f":"IFERROR(VLOOKUP(G35,'Effects Code'!$C:$D,2,FALSE), G35)","v":"Length"},"LGTH"]
[null,null,null,"GRO","GRO",{"$f":"IFERROR(VLOOKUP(G36,'Effects Code'!$C:$D,2,FALSE), G36)","v":"Weight"},"WGHT"]
[null,null,null,"GRO","MPH",{"$f":"IFERROR(VLOOKUP(G37,'Effects Code'!$C:$D,2,FALSE), G37)","v":"Length"},"LGTH"]
[null,null,null,"GRO","MPH",{"$f":"IFERROR(VLOOKUP(G38,'Effects Code'!$C:$D,2,FALSE), G38)","v":"Length"},"LGTH"]
[null,null,null,"GRO","MPH",{"$f":"IFERROR(VLOOKUP(G39,'Effects Code'!$C:$D,2,FALSE), G39)","v":"Length"},"LGTH"]
[null,null,null,"GRO","GRO",{"$f":"IFERROR(VLOOKUP(G40,'Effects Code'!$C:$D,2,FALSE), G40)","v":"Weight"},"WGHT"]
[null,null,null,"GRO","MPH",{"$f":"IFERROR(VLOOKUP(G41,'Effects Code'!$C:$D,2,FALSE), G41)","v":"Length"},"LGTH"]
[null,null,null,"GRO","MPH",{"$f":"IFERROR(VLOOKUP(G42,'Effects Code'!$C:$D,2,FALSE), G42)","v":"Length"},"LGTH"]
[null,null,null,"GRO","MPH",{"$f":"IFERROR(VLOOKUP(G43,'Effects Code'!$C:$D,2,FALSE), G43)","v":"Length"},"LGTH"]
[null,null,null,"GRO","GRO",{"$f":"IFERROR(VLOOKUP(G44,'Effects Code'!$C:$D,2,FALSE), G44)","v":"Weight"},"WGHT"]
[null,null,null,"GRO","MPH",{"$f":"IFERROR(VLOOKUP(G45,'Effects Code'!$C:$D,2,FALSE), G45)","v":"Length"},"LGTH"]
[null,null,null,"GRO","MPH",{"$f":"IFERROR(VLOOKUP(G46,'Effects Code'!$C:$D,2,FALSE), G46)","v":"Length"},"LGTH"]
[null,null,null,"GRO","MPH",{"$f":"IFERROR(VLOOKUP(G47,'Effects Code'!$C:$D,2,FALSE), G47)","v":"Length"},"LGTH"]
[null,null,null,"GRO","GRO",{"$f":"IFERROR(VLOOKUP(G48,'Effects Code'!$C:$D,2,FALSE), G48)","v":"Weight"},"WGHT"]
[null,null,null,"GRO","MPH",{"$f":"IFERROR(VLOOKUP(G49,'Effects Code'!$C:$D,2,FALSE), G49)","v":"Length"},"LGTH"]
[null,null,null,"GRO","MPH",{"$f":"IFERROR(VLOOKUP(G50,'Effects Code'!$C:$D,2,FALSE), G50)","v":"Length"},"LGTH"]
[null,null,null,"GRO","MPH",{"$f":"IFERROR(VLOOKUP(G51,'Effects Code'!$C:$D,2,FALSE), G51)","v":"Length"},"LGTH"]
[null,null,null,"GRO","GRO",{"$f":"IFERROR(VLOOKUP(G52,'Effects Code'!$C:$D,2,FALSE), G52)","v":"Weight"},"WGHT"]
[null,null,null,"GRO","GRO",{"$f":"IFERROR(VLOOKUP(G53,'Effects Code'!$C:$D,2,FALSE), G53)","v":"Weight"},"WGHT"]
[null,null,null,"GRO","MPH",{"$f":"IFERROR(VLOOKUP(G54,'Effects Code'!$C:$D,2,FALSE), G54)","v":"Length"},"LGTH"]
[null,null,null,"GRO","MPH",{"$f":"IFERROR(VLOOKUP(G55,'Effects Code'!$C:$D,2,FALSE), G55)","v":"Length"},"LGTH"]
[null,null,null,"GRO","MPH",{"$f":"IFERROR(VLOOKUP(G56,'Effects Code'!$C:$D,2,FALSE), G56)","v":"Length"},"LGTH"]
[null,null,null,"GRO","MPH",{"$f":"IFERROR(VLOOKUP(G57,'Effects Code'!$C:$D,2,FALSE), G57)","v":"Length"},"LGTH"]
[null,null,null,"GRO","MPH",{"$f":"IFERROR(VLOOKUP(G58,'Effects Code'!$C:$D,2,FALSE), G58)","v":"Length"},"LGTH"]
[null,null,null,"GRO","MPH",{"$f":"IFERROR(VLOOKUP(G59,'Effects Code'!$C:$D,2,FALSE), G59)","v":"Length"},"LGTH"]
[null,null,null,"GRO","GRO",{"$f":"IFERROR(VLOOKUP(G60,'Effects Code'!$C:$D,2,FALSE), G60)","v":"Weight"},"WGHT"]
[null,null,null,"GRO","MPH",{"$f":"IFERROR(VLOOKUP(G61,'Effects Code'!$C:$D,2,FALSE), G61)","v":"Length"},"LGTH"]
[null,null,null,"GRO","MPH",{"$f":"IFERROR(VLOOKUP(G62,'Effects Code'!$C:$D,2,FALSE), G62)","v":"Length"},"LGTH"]
[null,null,null,"GRO","MPH",{"$f":"IFERROR(VLOOKUP(G63,'Effects Code'!$C:$D,2,FALSE), G63)","v":"Length"},"LGTH"]
[null,null,null,"GRO","MPH",{"$f":"IFERROR(VLOOKUP(G64,'Effects Code'!$C:$D,2,FALSE), G64)","v":"Length"},"LGTH"]
[null,null,null,"GRO","MPH",{"$f":"IFERROR(VLOOKUP(G65,'Effects Code'!$C:$D,2,FALSE), G65)","v":"Length"},"LGTH"]
[null,null,null,"GRO","MPH",{"$f":"IFERROR(VLOOKUP(G66,'Effects Code'!$C:$D,2,FALSE), G66)","v":"Length"},"LGTH"]
[null,null,null,"GRO","GRO",{"$f":"IFERROR(VLOOKUP(G67,'Effects Code'!$C:$D,2,FALSE), G67)","v":"Weight"},"WGHT"]
[null,null,null,"GRO","MPH",{"$f":"IFERROR(VLOOKUP(G68,'Effects Code'!$C:$D,2,FALSE), G68)","v":"Length"},"LGTH"]
[null,null,null,"GRO","MPH",{"$f":"IFERROR(VLOOKUP(G69,'Effects Code'!$C:$D,2,FALSE), G69)","v":"Length"},"LGTH"]
[null,null,null,"GRO","MPH",{"$f":"IFERROR(VLOOKUP(G70,'Effects Code'!$C:$D,2,FALSE), G70)","v":"Length"},"LGTH"]
[null,null,null,"GRO","GRO",{"$f":"IFERROR(VLOOKUP(G71,'Effects Code'!$C:$D,2,FALSE), G71)","v":"Weight"},"WGHT"]
[null,null,null,"GRO","GRO",{"$f":"IFERROR(VLOOKUP(G72,'Effects Code'!$C:$D,2,FALSE), G72)","v":"Weight"},"WGHT"]
[null,null,null,"GRO","GRO",{"$f":"IFERROR(VLOOKUP(G73,'Effects Code'!$C:$D,2,FALSE), G73)","v":"Weight"},"WGHT"]
[null,null,null,"GRO","GRO",{"$f":"IFERROR(VLOOKUP(G74,'Effects Code'!$C:$D,2,FALSE), G74)","v":"Weight"},"WGHT"]
[null,null,null,"GRO","GRO",{"$f":"IFERROR(VLOOKUP(G75,'Effects Code'!$C:$D,2,FALSE), G75)","v":"Weight"},"WGHT"]
[null,null,null,"GRO","GRO",{"$f":"IFERROR(VLOOKUP(G76,'Effects Code'!$C:$D,2,FALSE), G76)","v":"Weight"},"WGHT"]
[null,null,null,"GRO","GRO",{"$f":"IFERROR(VLOOKUP(G77,'Effects Code'!$C:$D,2,FALSE), G77)","v":"Weight"},"WGHT"]
[null,null,null,"BEH","BEH",{"$f":"IFERROR(VLOOKUP(G78,'Effects Code'!$C:$D,2,FALSE), G78)","v":"Flying behavior"},"FLYG"]
[null,null,null,"BCM","ENZ",{"$f":"IFERROR(VLOOKUP(G79,'Effects Code'!$C:$D,2,FALSE), G79)","v":"Cholinesterase"},"CEST"]
[null,null,null,"BCM","ENZ",{"$f":"IFERROR(VLOOKUP(G80,'Effects Code'!$C:$D,2,FALSE), G80)","v":"Cholinesterase"},"CEST"]
[null,null,null,"BCM","ENZ",{"$f":"IFERROR(VLOOKUP(G81,'Effects Code'!$C:$D,2,FALSE), G81)","v":"Cholinesterase"},"CEST"]
[null,null,null,"BCM","ENZ",{"$f":"IFERROR(VLOOKUP(G82,'Effects Code'!$C:$D,2,FALSE), G82)","v":"Cholinesterase"},"CEST"]
[null,null,null,"REP","REP",{"$f":"IFERROR(VLOOKUP(G83,'Effects Code'!$C:$D,2,FALSE), G83)","v":"Viability"},"VIAB"]
[null,null,null,"REP","AEG",{"$f":"IFERROR(VLOOKUP(G84,'Effects Code'!$C:$D,2,FALSE), G84)","v":"Thickness"},"THIK"]
[null,null,null,"REP","REP",{"$f":"IFERROR(VLOOKUP(G85,'Effects Code'!$C:$D,2,FALSE), G85)","v":"Progeny counts/numbers"},"PROG"]
[null,null,null,"BCM","ENZ",{"$f":"IFERROR(VLOOKUP(G86,'Effects Code'!$C:$D,2,FALSE), G86)","v":"Cholinesterase"},"CEST"]
[null,null,null,"BCM","ENZ",{"$f":"IFERROR(VLOOKUP(G87,'Effects Code'!$C:$D,2,FALSE), G87)","v":"Cholinesterase"},"CEST"]
[null,null,null,"BCM","ENZ",{"$f":"IFERROR(VLOOKUP(G88,'Effects Code'!$C:$D,2,FALSE), G88)","v":"Cholinesterase"},"CEST"]
[null,null,null,"MOR","MOR",{"$f":"IFERROR(VLOOKUP(G89,'Effects Code'!$C:$D,2,FALSE), G89)","v":"Mortality"},"MORT"]
[null,null,null,"MOR","MOR",{"$f":"IFERROR(VLOOKUP(G90,'Effects Code'!$C:$D,2,FALSE), G90)","v":"Mortality"},"MORT"]
[null,null,null,"BCM","ENZ",{"$f":"IFERROR(VLOOKUP(G91,'Effects Code'!$C:$D,2,FALSE), G91)","v":"Cholinesterase"},"CEST"]
[null,null,null,"BCM","ENZ",{"$f":"IFERROR(VLOOKUP(G92,'Effects Code'!$C:$D,2,FALSE), G92)","v":"Cholinesterase"},"CEST"]
[null,null,null,"BCM","ENZ",{"$f":"IFERROR(VLOOKUP(G93,'Effects Code'!$C:$D,2,FALSE), G93)","v":"Cholinesterase"},"CEST"]
[null,null,null,"MOR","MOR",{"$f":"IFERROR(VLOOKUP(G94,'Effects Code'!$C:$D,2,FALSE), G94)","v":"Mortality"},"MORT"]
[null,null,null,"BCM","ENZ",{"$f":"IFERROR(VLOOKUP(G95,'Effects Code'!$C:$D,2,FALSE), G95)","v":"Cholinesterase"},"CEST"]
[null,null,null,"BCM","ENZ",{"$f":"IFERROR(VLOOKUP(G96,'Effects Code'!$C:$D,2,FALSE), G96)","v":"Cholinesterase"},"CEST"]
[null,null,null,"BCM","ENZ",{"$f":"IFERROR(VLOOKUP(G97,'Effects Code'!$C:$D,2,FALSE), G97)","v":"Cholinesterase"},"CEST"]
[null,null,null,"GRO","GRO",{"$f":"IFERROR(VLOOKUP(G98,'Effects Code'!$C:$D,2,FALSE), G98)","v":"Weight gain"},"GAIN"]
[null,null,null,"BCM","ENZ",{"$f":"IFERROR(VLOOKUP(G99,'Effects Code'!$C:$D,2,FALSE), G99)","v":"Acetylcholinesterase"},"ACHE"]
[null,null,null,"MOR","MOR",{"$f":"IFERROR(VLOOKUP(G100,'Effects Code'!$C:$D,2,FALSE), G100)","v":"Mortality"},"MORT"]
[null,null,null,"MOR","MOR",{"$f":"IFERROR(VLOOKUP(G101,'Effects Code'!$C:$D,2,FALSE), G101)","v":"Mortality"},"MORT"]
[null,null,null,"BCM","ENZ",{"$f":"IFERROR(VLOOKUP(G102,'Effects Code'!$C:$D,2,FALSE), G102)","v":"A-naphthyl acetate esterase"},"ANAE"]
[null,null,null,"BCM","ENZ",{"$f":"IFERROR(VLOOKUP(G103,'Effects Code'!$C:$D,2,FALSE), G103)","v":"A-naphthyl acetate esterase"},"ANAE"]
[null,null,null,"BCM","ENZ",{"$f":"IFERROR(VLOOKUP(G104,'Effects Code'!$C:$D,2,FALSE), G104)","v":"A-naphthyl acetate esterase"},"ANAE"]
[null,null,null,"BCM","ENZ",{"$f":"IFERROR(VLOOKUP(G105,'Effects Code'!$C:$D,2,FALSE), G105)","v":"Cholinesterase"},"CEST"]
[null,null,null,"BCM","ENZ",{"$f":"IFERROR(VLOOKUP(G106,'Effects Code'!$C:$D,2,FALSE), G106)","v":"Acetylcholinesterase"},"ACHE"]
[null,null,null,"MOR","MOR",{"$f":"IFERROR(VLOOKUP(G107,'Effects Code'!$C:$D,2,FALSE), G107)","v":"Mortality"},"MORT"]
[null,null,null,"MOR","MOR",{"$f":"IFERROR(VLOOKUP(G108,'Effects Code'!$C:$D,2,FALSE), G108)","v":"Mortality"},"MORT"]
[null,null,null,"MOR","MOR",{"$f":"IFERROR(VLOOKUP(G109,'Effects Code'!$C:$D,2,FALSE), G109)","v":"Mortality"},"MORT"]
[null,null,null,"MOR","MOR",{"$f":"IFERROR(VLOOKUP(G110,'Effects Code'!$C:$D,2,FALSE), G110)","v":"Mortality"},"MORT"]
[null,null,null,"MOR","MOR",{"$f":"IFERROR(VLOOKUP(G111,'Effects Code'!$C:$D,2,FALSE), G111)","v":"Mortality"},"MORT"]
[null,null,null,"BCM","ENZ",{"$f":"IFERROR(VLOOKUP(G112,'Effects Code'!$C:$D,2,FALSE), G112)","v":"Acetylcholinesterase"},"ACHE"]
[null,null,null,"BCM","ENZ",{"$f":"IFERROR(VLOOKUP(G113,'Effects Code'!$C:$D,2,FALSE), G113)","v":"Acetylcholinesterase"},"ACHE"]
[null,null,null,"BCM","ENZ",{"$f":"IFERROR(VLOOKUP(G114,'Effects Code'!$C:$D,2,FALSE), G114)","v":"Acetylcholinesterase"},"ACHE"]
[null,null,null,"MOR","MOR",{"$f":"IFERROR(VLOOKUP(G115,'Effects Code'!$C:$D,2,FALSE), G115)","v":"Mortality"},"MORT"]
[null,null,null,"MOR","MOR",{"$f":"IFERROR(VLOOKUP(G116,'Effects Code'!$C:$D,2,FALSE), G116)","v":"Mortality"},"MORT"]
[null,null,null,"MOR","MOR",{"$f":"IFERROR(VLOOKUP(G117,'Effects Code'!$C:$D,2,FALSE), G117)","v":"Mortality"},"MORT"]
[null,null,null,"MOR","MOR",{"$f":"IFERROR(VLOOKUP(G118,'Effects Code'!$C:$D,2,FALSE), G118)","v":"Mortality"},"MORT"]
[null,null,null,"MOR","MOR",{"$f":"IFERROR(VLOOKUP(G119,'Effects Code'!$C:$D,2,FALSE), G119)","v":"Mortality"},"MORT"]
[null,null,null,"MOR","MOR",{"$f":"IFERROR(VLOOKUP(G120,'Effects Code'!$C:$D,2,FALSE), G120)","v":"Mortality"},"MORT"]
[null,null,null,"MOR","MOR",{"$f":"IFERROR(VLOOKUP(G121,'Effects Code'!$C:$D,2,FALSE), G121)","v":"Mortality"},"MORT"]
[null,null,null,"MOR","MOR",{"$f":"IFERROR(VLOOKUP(G122,'Effects Code'!$C:$D,2,FALSE), G122)","v":"Mortality"},"MORT"]
[null,null,null,"BEH","FDB",{"$f":"IFERROR(VLOOKUP(G123,'Effects Code'!$C:$D,2,FALSE), G123)","v":"Food consumption"},"FCNS"]
[null,null,null,"MOR","MOR",{"$f":"IFERROR(VLOOKUP(G124,'Effects Code'!$C:$D,2,FALSE), G124)","v":"Mortality"},"MORT"]
[null,null,null,"MOR","MOR",{"$f":"IFERROR(VLOOKUP(G125,'Effects Code'!$C:$D,2,FALSE), G125)","v":"Mortality"},"MORT"]
[null,null,null,"MOR","MOR",{"$f":"IFERROR(VLOOKUP(G126,'Effects Code'!$C:$D,2,FALSE), G126)","v":"Mortality"},"MORT"]
[null,null,null,"MOR","MOR",{"$f":"IFERROR(VLOOKUP(G127,'Effects Code'!$C:$D,2,FALSE), G127)","v":"Mortality"},"MORT"]
[null,null,null,"MOR","MOR",{"$f":"IFERROR(VLOOKUP(G128,'Effects Code'!$C:$D,2,FALSE), G128)","v":"Mortality"},"MORT"]
[null,null,null,"MOR","MOR",{"$f":"IFERROR(VLOOKUP(G129,'Effects Code'!$C:$D,2,FALSE), G129)","v":"Mortality"},"MORT"]
[null,null,null,"BCM","ENZ",{"$f":"IFERROR(VLOOKUP(G130,'Effects Code'!$C:$D,2,FALSE), G130)","v":"Acetylcholinesterase"},"ACHE"]
[null,null,null,"BCM","ENZ",{"$f":"IFERROR(VLOOKUP(G131,'Effects Code'!$C:$D,2,FALSE), G131)","v":"Acetylcholinesterase"},"ACHE"]
[null,null,null,"BCM","ENZ",{"$f":"IFERROR(VLOOKUP(G132,'Effects Code'!$C:$D,2,FALSE), G132)","v":"Acetylcholinesterase"},"ACHE"]
[null,null,null,"BCM","BCM",{"$f":"IFERROR(VLOOKUP(G133,'Effects Code'!$C:$D,2,FALSE), G133)","v":"Protein content"},"PRCO"]
[null,null,null,"BCM","ENZ",{"$f":"IFERROR(VLOOKUP(G134,'Effects Code'!$C:$D,2,FALSE), G134)","v":"Cholinesterase"},"CEST"]
[null,null,null,"GRO","MPH",{"$f":"IFERROR(VLOOKUP(G135,'Effects Code'!$C:$D,2,FALSE), G135)","v":"Organ weight in relationship to body weight"},"SMIX"]
[null,null,null,"MOR","MOR",{"$f":"IFERROR(VLOOKUP(G136,'Effects Code'!$C:$D,2,FALSE), G136)","v":"Mortality"},"MORT"]
[null,null,null,"MOR","MOR",{"$f":"IFERROR(VLOOKUP(G137,'Effects Code'!$C:$D,2,FALSE), G137)","v":"Mortality"},"MORT"]
[null,null,null,"MOR","MOR",{"$f":"IFERROR(VLOOKUP(G138,'Effects Code'!$C:$D,2,FALSE), G138)","v":"Mortality"},"MORT"]
[null,null,null,"MOR","MOR",{"$f":"IFERROR(VLOOKUP(G139,'Effects Code'!$C:$D,2,FALSE), G139)","v":"Mortality"},"MORT"]
[null,null,null,"BEH","FDB",{"$f":"IFERROR(VLOOKUP(G140,'Effects Code'!$C:$D,2,FALSE), G140)","v":"Food consumption"},"FCNS"]
[null,null,null,"BCM","ENZ",{"$f":"IFERROR(VLOOKUP(G141,'Effects Code'!$C:$D,2,FALSE), G141)","v":"Acetylcholinesterase"},"ACHE"]
[null,null,null,"BCM","ENZ",{"$f":"IFERROR(VLOOKUP(G142,'Effects Code'!$C:$D,2,FALSE), G142)","v":"Acetylcholinesterase"},"ACHE"]
[null,null,null,"MOR","MOR",{"$f":"IFERROR(VLOOKUP(G143,'Effects Code'!$C:$D,2,FALSE), G143)","v":"Mortality"},"MORT"]
[null,null,null,"MOR","MOR",{"$f":"IFERROR(VLOOKUP(G144,'Effects Code'!$C:$D,2,FALSE), G144)","v":"Mortality"},"MORT"]
[null,null,null,"MOR","MOR",{"$f":"IFERROR(VLOOKUP(G145,'Effects Code'!$C:$D,2,FALSE), G145)","v":"Mortality"},"MORT"]
[null,null,null,"MOR","MOR",{"$f":"IFERROR(VLOOKUP(G146,'Effects Code'!$C:$D,2,FALSE), G146)","v":"Mortality"},"MORT"]
[null,null,null,"MOR","MOR",{"$f":"IFERROR(VLOOKUP(G147,'Effects Code'!$C:$D,2,FALSE), G147)","v":"Mortality"},"MORT"]
[null,null,null,"GRO","GRO",{"$f":"IFERROR(VLOOKUP(G148,'Effects Code'!$C:$D,2,FALSE), G148)","v":"Weight"},"WGHT"]
[null,null,null,"MOR","MOR",{"$f":"IFERROR(VLOOKUP(G149,'Effects Code'!$C:$D,2,FALSE), G149)","v":"Mortality"},"MORT"]
[null,null,null,"MOR","MOR",{"$f":"IFERROR(VLOOKUP(G150,'Effects Code'!$C:$D,2,FALSE), G150)","v":"Mortality"},"MORT"]
[null,null,null,"MOR","MOR",{"$f":"IFERROR(VLOOKUP(G151,'Effects Code'!$C:$D,2,FALSE), G151)","v":"Mortality"},"MORT"]
[null,null,null,"MOR","MOR",{"$f":"IFERROR(VLOOKUP(G152,'Effects Code'!$C:$D,2,FALSE), G152)","v":"Mortality"},"MORT"]
[null,null,null,"MOR","MOR",{"$f":"IFERROR(VLOOKUP(G153,'Effects Code'!$C:$D,2,FALSE), G153)","v":"Mortality"},"MORT"]
[null,null,null,"BCM","ENZ",{"$f":"IFERROR(VLOOKUP(G154,'Effects Code'!$C:$D,2,FALSE), G154)","v":"Neurotoxic esterase"},"NEES"]
[null,null,null,"MOR","MOR",{"$f":"IFERROR(VLOOKUP(G155,'Effects Code'!$C:$D,2,FALSE), G155)","v":"Mortality"},"MORT"]
[null,null,null,"MOR","MOR",{"$f":"IFERROR(VLOOKUP(G156,'Effects Code'!$C:$D,2,FALSE), G156)","v":"Mortality"},"MORT"]
[null,null,null,"MOR","MOR",{"$f":"IFERROR(VLOOKUP(G157,'Effects Code'!$C:$D,2,FALSE), G157)","v":"Mortality"},"MORT"]
[null,null,null,"MOR","MOR",{"$f":"IFERROR(VLOOKUP(G158,'Effects Code'!$C:$D,2,FALSE), G158)","v":"Mortality"},"MORT"]
[null,null,null,"MOR","MOR",{"$f":"IFERROR(VLOOKUP(G159,'Effects Code'!$C:$D,2,FALSE), G159)","v":"Mortality"},"MORT"]
[null,null,null,"MOR","MOR",{"$f":"IFERROR(VLOOKUP(G160,'Effects Code'!$C:$D,2,FALSE), G160)","v":"Mortality"},"MORT"]
[null,null,null,"MOR","MOR",{"$f":"IFERROR(VLOOKUP(G161,'Effects Code'!$C:$D,2,FALSE), G161)","v":"Mortality"},"MORT"]
[null,null,null,"GRO","GRO",{"$f":"IFERROR(VLOOKUP(G162,'Effects Code'!$C:$D,2,FALSE), G162)","v":"Weight"},"WGHT"]
[null,null,null,"GRO","GRO",{"$f":"IFERROR(VLOOKUP(G163,'Effects Code'!$C:$D,2,FALSE), G163)","v":"Weight"},"WGHT"]
[null,null,null,"GRO","GRO",{"$f":"IFERROR(VLOOKUP(G164,'Effects Code'!$C:$D,2,FALSE), G164)","v":"Weight"},"WGHT"]
[null,null,null,"GRO","GRO",{"$f":"IFERROR(VLOOKUP(G165,'Effects Code'!$C:$D,2,FALSE), G165)","v":"Weight"},"WGHT"]
[null,null,null,"GRO","GRO",{"$f":"IFERROR(VLOOKUP(G166,'Effects Code'!$C:$D,2,FALSE), G166)","v":"Weight"},"WGHT"]
[null,null,null,"BCM","ENZ",{"$f":"IFERROR(VLOOKUP(G167,'Effects Code'!$C:$D,2,FALSE), G167)","v":"Cholinesterase"},"CEST"]
[null,null,null,"BCM","ENZ",{"$f":"IFERROR(VLOOKUP(G168,'Effects Code'!$C:$D,2,FALSE), G168)","v":"Cholinesterase"},"CEST"]
[null,null,null,"BCM","ENZ",{"$f":"IFERROR(VLOOKUP(G169,'Effects Code'!$C:$D,2,FALSE), G169)","v":"Cholinesterase"},"CEST"]
[null,null,null,"BCM","ENZ",{"$f":"IFERROR(VLOOKUP(G170,'Effects Code'!$C:$D,2,FALSE), G170)","v":"Acetylcholinesterase"},"ACHE"]
[null,null,null,"GRO","GRO",{"$f":"IFERROR(VLOOKUP(G171,'Effects Code'!$C:$D,2,FALSE), G171)","v":"Weight"},"WGHT"]
[null,null,null,"BCM","ENZ",{"$f":"IFERROR(VLOOKUP(G172,'Effects Code'!$C:$D,2,FALSE), G172)","v":"Cholinesterase"},"CEST"]
[null,null,null,"GRO","GRO",{"$f":"IFERROR(VLOOKUP(G173,'Effects Code'!$C:$D,2,FALSE), G173)","v":"Weight"},"WGHT"]
[null,null,null,"GRO","GRO",{"$f":"IFERROR(VLOOKUP(G174,'Effects Code'!$C:$D,2,FALSE), G174)","v":"Weight"},"WGHT"]
[null,null,null,"BCM","ENZ",{"$f":"IFERROR(VLOOKUP(G175,'Effects Code'!$C:$D,2,FALSE), G175)","v":"Cholinesterase"},"CEST"]
[null,null,null,"GRO","GRO",{"$f":"IFERROR(VLOOKUP(G176,'Effects Code'!$C:$D,2,FALSE), G176)","v":"Weight"},"WGHT"]
[null,null,null,"MOR","MOR",{"$f":"IFERROR(VLOOKUP(G177,'Effects Code'!$C:$D,2,FALSE), G177)","v":"Mortality"},"MORT"]
[null,null,null,"BEH","FDB",{"$f":"IFERROR(VLOOKUP(G178,'Effects Code'!$C:$D,2,FALSE), G178)","v":"Food consumption"},"FCNS"]
[null,null,null,"NOC","NOC",{"$f":"IFERROR(VLOOKUP(G179,'Effects Code'!$C:$D,2,FALSE), G179)","v":"Endpoint reported without a specific effect"},"NRNR"]
[null,null,null,"MOR","MOR",{"$f":"IFERROR(VLOOKUP(G180,'Effects Code'!$C:$D,2,FALSE), G180)","v":"Mortality"},"MORT"]
[null,null,null,"REP","AEG",{"$f":"IFERROR(VLOOKUP(G181,'Effects Code'!$C:$D,2,FALSE), G181)","v":"Eggs per nest"},"EGPN"]
[null,null,null,"REP","AEG",{"$f":"IFERROR(VLOOKUP(G182,'Effects Code'!$C:$D,2,FALSE), G182)","v":"Eggs per nest"},"EGPN"]
[null,null,null,"REP","AEG",{"$f":"IFERROR(VLOOKUP(G183,'Effects Code'!$C:$D,2,FALSE), G183)","v":"Eggs lost"},"LSTE"]
[null,null,null,"REP","REP",{"$f":"IFERROR(VLOOKUP(G184,'Effects Code'!$C:$D,2,FALSE), G184)","v":"Fecundity"},"FCND"]
[null,null,null,"REP","REP",{"$f":"IFERROR(VLOOKUP(G185,'Effects Code'!$C:$D,2,FALSE), G185)","v":"Viability"},"VIAB"]
[null,null,null,"REP","AEG",{"$f":"IFERROR(VLOOKUP(G186,'Effects Code'!$C:$D,2,FALSE), G186)","v":"Thickness"},"THIK"]
[null,null,null,"REP","AEG",{"$f":"IFERROR(VLOOKUP(G187,'Effects Code'!$C:$D,2,FALSE), G187)","v":"Weight"},"WGHT"]
[null,null,null,"GRO","GRO",{"$f":"IFERROR(VLOOKUP(G188,'Effects Code'!$C:$D,2,FALSE), G188)","v":"Weight"},"WGHT"]
[null,null,null,"REP","AEG",{"$f":"IFERROR(VLOOKUP(G189,'Effects Code'!$C:$D,2,FALSE), G189)","v":"Eggs lost"},"LSTE"]
[null,null,null,"BEH","FDB",{"$f":"IFERROR(VLOOKUP(G190,'Effects Code'!$C:$D,2,FALSE), G190)","v":"Food consumption"},"FCNS"]
[null,null,null,"REP","AEG",{"$f":"IFERROR(VLOOKUP(G191,'Effects Code'!$C:$D,2,FALSE), G191)","v":"Eggs per nest"},"EGPN"]
[null,null,null,"REP","AEG",{"$f":"IFERROR(VLOOKUP(G192,'Effects Code'!$C:$D,2,FALSE), G192)","v":"Eggs lost"},"LSTE"]
[null,null,null,"BCM","ENZ",{"$f":"IFERROR(VLOOKUP(G193,'Effects Code'!$C:$D,2,FALSE), G193)","v":"Cholinesterase"},"CEST"]
[null,null,null,"GRO","GRO",{"$f":"IFERROR(VLOOKUP(G194,'Effects Code'!$C:$D,2,FALSE), G194)","v":"Weight"},"WGHT"]
[null,null,null,"REP","AEG",{"$f":"IFERROR(VLOOKUP(G195,'Effects Code'!$C:$D,2,FALSE), G195)","v":"Eggs lost"},"LSTE"]
[null,null,null,"GRO","GRO",{"$f":"IFERROR(VLOOKUP(G196,'Effects Code'!$C:$D,2,FALSE), G196)","v":"Weight"},"WGHT"]
[null,null,null,"GRO","GRO",{"$f":"IFERROR(VLOOKUP(G197,'Effects Code'!$C:$D,2,FALSE), G197)","v":"Weight"},"WGHT"]
[null,null,null,"GRO","GRO",{"$f":"IFERROR(VLOOKUP(G198,'Effects Code'!$C:$D,2,FALSE), G198)","v":"Weight gain"},"GAIN"]
[null,null,null,"GRO","GRO",{"$f":"IFERROR(VLOOKUP(G199,'Effects Code'!$C:$D,2,FALSE), G199)","v":"Weight gain"},"GAIN"]
[null,null,null,"GRO","GRO",{"$f":"IFERROR(VLOOKUP(G200,'Effects Code'!$C:$D,2,FALSE), G200)","v":"Weight gain"},"GAIN"]
[null,null,null,"GRO","GRO",{"$f":"IFERROR(VLOOKUP(G201,'Effects Code'!$C:$D,2,FALSE), G201)","v":"Weight gain"},"GAIN"]
[null,null,null,"BCM","ENZ",{"$f":"IFERROR(VLOOKUP(G202,'Effects Code'!$C:$D,2,FALSE), G202)","v":"Acetylcholinesterase"},"ACHE"]
[null,null,null,"BCM","ENZ",{"$f":"IFERROR(VLOOKUP(G203,'Effects Code'!$C:$D,2,FALSE), G203)","v":"Acetylcholinesterase"},"ACHE"]
[null,null,null,"BEH","FDB",{"$f":"IFERROR(VLOOKUP(G204,'Effects Code'!$C:$D,2,FALSE), G204)","v":"Food consumption"},"FCNS"]
[null,null,null,"MOR","MOR",{"$f":"IFERROR(VLOOKUP(G205,'Effects Code'!$C:$D,2,FALSE), G205)","v":"Hatch"},"HTCH"]
[null,null,null,"BCM","ENZ",{"$f":"IFERROR(VLOOKUP(G206,'Effects Code'!$C:$D,2,FALSE), G206)","v":"Acetylcholinesterase"},"ACHE"]
[null,null,null,"BCM","ENZ",{"$f":"IFERROR(VLOOKUP(G207,'Effects Code'!$C:$D,2,FALSE), G207)","v":"Acetylcholinesterase"},"ACHE"]
[null,null,null,"BCM","ENZ",{"$f":"IFERROR(VLOOKUP(G208,'Effects Code'!$C:$D,2,FALSE), G208)","v":"Acetylcholinesterase"},"ACHE"]
[null,null,null,"REP","REP",{"$f":"IFERROR(VLOOKUP(G209,'Effects Code'!$C:$D,2,FALSE), G209)","v":"Hen-day egg production"},"HDEP"]
[null,null,null,"REP","AEG",{"$f":"IFERROR(VLOOKUP(G210,'Effects Code'!$C:$D,2,FALSE), G210)","v":"Thickness"},"THIK"]
[null,null,null,"BCM","ENZ",{"$f":"IFERROR(VLOOKUP(G211,'Effects Code'!$C:$D,2,FALSE), G211)","v":"Acetylcholinesterase"},"ACHE"]
[null,null,null,"MOR","MOR",{"$f":"IFERROR(VLOOKUP(G212,'Effects Code'!$C:$D,2,FALSE), G212)","v":"Hatch"},"HTCH"]
[null,null,null,"MOR","MOR",{"$f":"IFERROR(VLOOKUP(G213,'Effects Code'!$C:$D,2,FALSE), G213)","v":"Hatch"},"HTCH"]
[null,null,null,"REP","REP",{"$f":"IFERROR(VLOOKUP(G214,'Effects Code'!$C:$D,2,FALSE), G214)","v":"Hen-day egg production"},"HDEP"]
[null,null,null,"REP","AEG",{"$f":"IFERROR(VLOOKUP(G215,'Effects Code'!$C:$D,2,FALSE), G215)","v":"Thickness"},"THIK"]
[null,null,null,"MOR","MOR",{"$f":"IFERROR(VLOOKUP(G216,'Effects Code'!$C:$D,2,FALSE), G216)","v":"Hatch"},"HTCH"]
[null,null,null,"BEH","FDB",{"$f":"IFERROR(VLOOKUP(G217,'Effects Code'!$C:$D,2,FALSE), G217)","v":"Food consumption"},"FCNS"]
[null,null,null,"BEH","FDB",{"$f":"IFERROR(VLOOKUP(G218,'Effects Code'!$C:$D,2,FALSE), G218)","v":"Food consumption"},"FCNS"]
[null,null,null,"REP","REP",{"$f":"IFERROR(VLOOKUP(G219,'Effects Code'!$C:$D,2,FALSE), G219)","v":"Clutch production"},"CLPD"]
[null,null,null,"REP","REP",{"$f":"IFERROR(VLOOKUP(G220,'Effects Code'!$C:$D,2,FALSE), G220)","v":"Clutch production"},"CLPD"]
[null,null,null,"BCM","ENZ",{"$f":"IFERROR(VLOOKUP(G221,'Effects Code'!$C:$D,2,FALSE), G221)","v":"Superoxide dismutase (SOD) enzyme activity"},"SODA"]
[null,null,null,"BCM","ENZ",{"$f":"IFERROR(VLOOKUP(G222,'Effects Code'!$C:$D,2,FALSE), G222)","v":"Superoxide dismutase (SOD) enzyme activity"},"SODA"]
[null,null,null,"BCM","ENZ",{"$f":"IFERROR(VLOOKUP(G223,'Effects Code'!$C:$D,2,FALSE), G223)","v":"Catalase"},"CTLS"]
[null,null,null,"BCM","ENZ",{"$f":"IFERROR(VLOOKUP(G224,'Effects Code'!$C:$D,2,FALSE), G224)","v":"Catalase"},"CTLS"]
[null,null,null,"BCM","BCM",{"$f":"IFERROR(VLOOKUP(G225,'Effects Code'!$C:$D,2,FALSE), G225)","v":"Thiobarbituric acid reactive substances"},"TBAR"]
[null,null,null,"BCM","BCM",{"$f":"IFERROR(VLOOKUP(G226,'Effects Code'!$C:$D,2,FALSE), G226)","v":"Protein, total"},"PRTL"]
[null,null,null,"BCM","BCM",{"$f":"IFERROR(VLOOKUP(G227,'Effects Code'!$C:$D,2,FALSE), G227)","v":"Protein, total"},"PRTL"]
[null,null,null,"BCM","BCM",{"$f":"IFERROR(VLOOKUP(G228,'Effects Code'!$C:$D,2,FALSE), G228)","v":"Creatinine"},"CREA"]
[null,null,null,"BCM","BCM",{"$f":"IFERROR(VLOOKUP(G229,'Effects Code'!$C:$D,2,FALSE), G229)","v":"Creatinine"},"CREA"]
[null,null,null,"BCM","BCM",{"$f":"IFERROR(VLOOKUP(G230,'Effects Code'!$C:$D,2,FALSE), G230)","v":"Glutathione (reduced glutathione)"},"GLTH"]
[null,null,null,"BCM","ENZ",{"$f":"IFERROR(VLOOKUP(G231,'Effects Code'!$C:$D,2,FALSE), G231)","v":"Alanine transaminase (ALT)"},"AATT"]
[null,null,null,"BCM","BCM",{"$f":"IFERROR(VLOOKUP(G232,'Effects Code'!$C:$D,2,FALSE), G232)","v":"Thiobarbituric acid reactive substances"},"TBAR"]
[null,null,null,"BCM","BCM",{"$f":"IFERROR(VLOOKUP(G233,'Effects Code'!$C:$D,2,FALSE), G233)","v":"Glutathione (reduced glutathione)"},"GLTH"]
[null,null,null,"BCM","ENZ",{"$f":"IFERROR(VLOOKUP(G234,'Effects Code'!$C:$D,2,FALSE), G234)","v":"Alanine transaminase (ALT)"},"AATT"]
[null,null,null,"BCM","ENZ",{"$f":"IFERROR(VLOOKUP(G235,'Effects Code'!$C:$D,2,FALSE), G235)","v":"Cholinesterase"},"CEST"]
[null,null,null,"BCM","ENZ",{"$f":"IFERROR(VLOOKUP(G236,'Effects Code'!$C:$D,2,FALSE), G236)","v":"Cholinesterase"},"CEST"]
[null,null,null,"BCM","ENZ",{"$f":"IFERROR(VLOOKUP(G237,'Effects Code'!$C:$D,2,FALSE), G237)","v":"Cholinesterase"},"CEST"]
[null,null,null,"BCM","ENZ",{"$f":"IFERROR(VLOOKUP(G238,'Effects Code'!$C:$D,2,FALSE), G238)","v":"Cholinesterase"},"CEST"]
[null,null,null,"BCM","ENZ",{"$f":"IFERROR(VLOOKUP(G239,'Effects Code'!$C:$D,2,FALSE), G239)","v":"Cholinesterase"},"CEST"]
[null,null,null,"BCM","ENZ",{"$f":"IFERROR(VLOOKUP(G240,'Effects Code'!$C:$D,2,FALSE), G240)","v":"Cholinesterase"},"CEST"]
[null,null,null,"BCM","ENZ",{"$f":"IFERROR(VLOOKUP(G241,'Effects Code'!$C:$D,2,FALSE), G241)","v":"Cholinesterase"},"CEST"]
[null,null,null,"REP","AEG",{"$f":"IFERROR(VLOOKUP(G242,'Effects Code'!$C:$D,2,FALSE), G242)","v":"Eggs lost"},"LSTE"]
[null,null,null,"MOR","MOR",{"$f":"IFERROR(VLOOKUP(G243,'Effects Code'!$C:$D,2,FALSE), G243)","v":"Mortality"},"MORT"]
[null,null,null,"REP","AEG",{"$f":"IFERROR(VLOOKUP(G244,'Effects Code'!$C:$D,2,FALSE), G244)","v":"Eggs per nest"},"EGPN"]
[null,null,null,"REP","AEG",{"$f":"IFERROR(VLOOKUP(G245,'Effects Code'!$C:$D,2,FALSE), G245)","v":"Eggs lost"},"LSTE"]
[null,null,null,"REP","REP",{"$f":"IFERROR(VLOOKUP(G246,'Effects Code'!$C:$D,2,FALSE), G246)","v":"Fecundity"},"FCND"]
[null,null,null,"REP","REP",{"$f":"IFERROR(VLOOKUP(G247,'Effects Code'!$C:$D,2,FALSE), G247)","v":"Viability"},"VIAB"]
[null,null,null,"REP","AEG",{"$f":"IFERROR(VLOOKUP(G248,'Effects Code'!$C:$D,2,FALSE), G248)","v":"Thickness"},"THIK"]
[null,null,null,"REP","AEG",{"$f":"IFERROR(VLOOKUP(G249,'Effects Code'!$C:$D,2,FALSE), G249)","v":"Weight"},"WGHT"]
[null,null,null,"BEH","FDB",{"$f":"IFERROR(VLOOKUP(G250,'Effects Code'!$C:$D,2,FALSE), G250)","v":"Food consumption"},"FCNS"]
[null,null,null,"REP","AEG",{"$f":"IFERROR(VLOOKUP(G251,'Effects Code'!$C:$D,2,FALSE), G251)","v":"Eggs per nest"},"EGPN"]
[null,null,null,"MOR","MOR",{"$f":"IFERROR(VLOOKUP(G252,'Effects Code'!$C:$D,2,FALSE), G252)","v":"Mortality"},"MORT"]
[null,null,null,"MOR","MOR",{"$f":"IFERROR(VLOOKUP(G253,'Effects Code'!$C:$D,2,FALSE), G253)","v":"Mortality"},"MORT"]
[null,null,null,"MOR","MOR",{"$f":"IFERROR(VLOOKUP(G254,'Effects Code'!$C:$D,2,FALSE), G254)","v":"Mortality"},"MORT"]
[null,null,null,"MOR","MOR",{"$f":"IFERROR(VLOOKUP(G255,'Effects Code'!$C:$D,2,FALSE), G255)","v":"Mortality"},"MORT"]
[null,null,null,"MOR","MOR",{"$f":"IFERROR(VLOOKUP(G256,'Effects Code'!$C:$D,2,FALSE), G256)","v":"Mortality"},"MORT"]
[null,null,null,"MOR","MOR",{"$f":"IFERROR(VLOOKUP(G257,'Effects Code'!$C:$D,2,FALSE), G257)","v":"Mortality"},"MORT"]
[null,null,null,"GRO","GRO",{"$f":"IFERROR(VLOOKUP(G258,'Effects Code'!$C:$D,2,FALSE), G258)","v":"Weight"},"WGHT"]
[null,null,null,"GRO","GRO",{"$f":"IFERROR(VLOOKUP(G259,'Effects Code'!$C:$D,2,FALSE), G259)","v":"Weight gain"},"GAIN"]
[null,null,null,"REP","AEG",{"$f":"IFERROR(VLOOKUP(G260,'Effects Code'!$C:$D,2,FALSE), G260)","v":"Albumen:Eggshell Quality\n(Haugh Units)"},"ALEG"]
[null,null,null,"REP","AEG",{"$f":"IFERROR(VLOOKUP(G261,'Effects Code'!$C:$D,2,FALSE), G261)","v":"Weight"},"WGHT"]
[null,null,null,"BEH","FDB",{"$f":"IFERROR(VLOOKUP(G262,'Effects Code'!$C:$D,2,FALSE), G262)","v":"Feeding efficiency"},"FEFF"]
[null,null,null,"REP","AEG",{"$f":"IFERROR(VLOOKUP(G263,'Effects Code'!$C:$D,2,FALSE), G263)","v":"Thickness"},"THIK"]
[null,null,null,"BEH","FDB",{"$f":"IFERROR(VLOOKUP(G264,'Effects Code'!$C:$D,2,FALSE), G264)","v":"Food consumption"},"FCNS"]
[null,null,null,"REP","REP",{"$f":"IFERROR(VLOOKUP(G265,'Effects Code'!$C:$D,2,FALSE), G265)","v":"Bird day egg production"},"BDEP"]
[null,null,null,"MOR","MOR",{"$f":"IFERROR(VLOOKUP(G266,'Effects Code'!$C:$D,2,FALSE), G266)","v":"Mortality"},"MORT"]
[null,null,null,"MOR","MOR",{"$f":"IFERROR(VLOOKUP(G267,'Effects Code'!$C:$D,2,FALSE), G267)","v":"Mortality"},"MORT"]
[null,null,null,"MOR","MOR",{"$f":"IFERROR(VLOOKUP(G268,'Effects Code'!$C:$D,2,FALSE), G268)","v":"Mortality"},"MORT"]
[null,null,null,"BCM","BCM",{"$f":"IFERROR(VLOOKUP(G269,'Effects Code'!$C:$D,2,FALSE), G269)","v":"Protein, total"},"PRTL"]
[null,null,null,"BCM","ENZ",{"$f":"IFERROR(VLOOKUP(G270,'Effects Code'!$C:$D,2,FALSE), G270)","v":"Acetylcholinesterase"},"ACHE"]
[null,null,null,"MOR","MOR",{"$f":"IFERROR(VLOOKUP(G271,'Effects Code'!$C:$D,2,FALSE), G271)","v":"Mortality"},"MORT"]
[null,null,null,"MOR","MOR",{"$f":"IFERROR(VLOOKUP(G272,'Effects Code'!$C:$D,2,FALSE), G272)","v":"Mortality"},"MORT"]
[null,null,null,"MOR","MOR",{"$f":"IFERROR(VLOOKUP(G273,'Effects Code'!$C:$D,2,FALSE), G273)","v":"Mortality"},"MORT"]
[null,null,null,"MOR","MOR",{"$f":"IFERROR(VLOOKUP(G274,'Effects Code'!$C:$D,2,FALSE), G274)","v":"Mortality"},"MORT"]
[null,null,null,"MOR","MOR",{"$f":"IFERROR(VLOOKUP(G275,'Effects Code'!$C:$D,2,FALSE), G275)","v":"Mortality"},"MORT"]
[null,null,null,"MOR","MOR",{"$f":"IFERROR(VLOOKUP(G276,'Effects Code'!$C:$D,2,FALSE), G276)","v":"Mortality"},"MORT"]
[null,null,null,"MOR","MOR",{"$f":"IFERROR(VLOOKUP(G277,'Effects Code'!$C:$D,2,FALSE), G277)","v":"Mortality"},"MORT"]
[null,null,null,"MOR","MOR",{"$f":"IFERROR(VLOOKUP(G278,'Effects Code'!$C:$D,2,FALSE), G278)","v":"Mortality"},"MORT"]
[null,null,null,"MOR","MOR",{"$f":"IFERROR(VLOOKUP(G279,'Effects Code'!$C:$D,2,FALSE), G279)","v":"Mortality"},"MORT"]
[null,null,null,"MOR","MOR",{"$f":"IFERROR(VLOOKUP(G280,'Effects Code'!$C:$D,2,FALSE), G280)","v":"Mortality"},"MORT"]
[null,null,null,"MOR","MOR",{"$f":"IFERROR(VLOOKUP(G281,'Effects Code'!$C:$D,2,FALSE), G281)","v":"Mortality"},"MORT"]
[null,null,null,"MOR","MOR",{"$f":"IFERROR(VLOOKUP(G282,'Effects Code'!$C:$D,2,FALSE), G282)","v":"Mortality"},"MORT"]
[null,null,null,"MOR","MOR",{"$f":"IFERROR(VLOOKUP(G283,'Effects Code'!$C:$D,2,FALSE), G283)","v":"Mortality"},"MORT"]
[null,null,null,"MOR","MOR",{"$f":"IFERROR(VLOOKUP(G284,'Effects Code'!$C:$D,2,FALSE), G284)","v":"Mortality"},"MORT"]
[null,null,null,"MOR","MOR",{"$f":"IFERROR(VLOOKUP(G285,'Effects Code'!$C:$D,2,FALSE), G285)","v":"Mortality"},"MORT"]
[null,null,null,"MOR","MOR",{"$f":"IFERROR(VLOOKUP(G286,'Effects Code'!$C:$D,2,FALSE), G286)","v":"Mortality"},"MORT"]
[null,null,null,"MOR","MOR",{"$f":"IFERROR(VLOOKUP(G287,'Effects Code'!$C:$D,2,FALSE), G287)","v":"Mortality"},"MORT"]
[null,null,null,"MOR","MOR",{"$f":"IFERROR(VLOOKUP(G288,'Effects Code'!$C:$D,2,FALSE), G288)","v":"Mortality"},"MORT"]
[null,null,null,"MOR","MOR",{"$f":"IFERROR(VLOOKUP(G289,'Effects Code'!$C:$D,2,FALSE), G289)","v":"Mortality"},"MORT"]
[null,null,null,"MOR","MOR",{"$f":"IFERROR(VLOOKUP(G290,'Effects Code'!$C:$D,2,FALSE), G290)","v":"Mortality"},"MORT"]
[null,null,null,"MOR","MOR",{"$f":"IFERROR(VLOOKUP(G291,'Effects Code'!$C:$D,2,FALSE), G291)","v":"Mortality"},"MORT"]
[null,null,null,"MOR","MOR",{"$f":"IFERROR(VLOOKUP(G292,'Effects Code'!$C:$D,2,FALSE), G292)","v":"Mortality"},"MORT"]
[null,null,null,"MOR","MOR",{"$f":"IFERROR(VLOOKUP(G293,'Effects Code'!$C:$D,2,FALSE), G293)","v":"Mortality"},"MORT"]
[null,null,null,"MOR","MOR",{"$f":"IFERROR(VLOOKUP(G294,'Effects Code'!$C:$D,2,FALSE), G294)","v":"Mortality"},"MORT"]
[null,null,null,"MOR","MOR",{"$f":"IFERROR(VLOOKUP(G295,'Effects Code'!$C:$D,2,FALSE), G295)","v":"Mortality"},"MORT"]
[null,null,null,"MOR","MOR",{"$f":"IFERROR(VLOOKUP(G296,'Effects Code'!$C:$D,2,FALSE), G296)","v":"Mortality"},"MORT"]
[null,null,null,"MOR","MOR",{"$f":"IFERROR(VLOOKUP(G297,'Effects Code'!$C:$D,2,FALSE), G297)","v":"Mortality"},"MORT"]
[null,null,null,"MOR","MOR",{"$f":"IFERROR(VLOOKUP(G298,'Effects Code'!$C:$D,2,FALSE), G298)","v":"Mortality"},"MORT"]
[null,null,null,"MOR","MOR",{"$f":"IFERROR(VLOOKUP(G299,'Effects Code'!$C:$D,2,FALSE), G299)","v":"Mortality"},"MORT"]
[null,null,null,"BEH","FDB",{"$f":"IFERROR(VLOOKUP(G300,'Effects Code'!$C:$D,2,FALSE), G300)","v":"Food consumption"},"FCNS"]
[null,null,null,"BEH","FDB",{"$f":"IFERROR(VLOOKUP(G301,'Effects Code'!$C:$D,2,FALSE), G301)","v":"Food consumption"},"FCNS"]
[null,null,null,"MOR","MOR",{"$f":"IFERROR(VLOOKUP(G302,'Effects Code'!$C:$D,2,FALSE), G302)","v":"Mortality"},"MORT"]
[null,null,null,"MOR","MOR",{"$f":"IFERROR(VLOOKUP(G303,'Effects Code'!$C:$D,2,FALSE), G303)","v":"Mortality"},"MORT"]
[null,null,null,"MOR","MOR",{"$f":"IFERROR(VLOOKUP(G304,'Effects Code'!$C:$D,2,FALSE), G304)","v":"Mortality"},"MORT"]
[null,null,null,"MOR","MOR",{"$f":"IFERROR(VLOOKUP(G305,'Effects Code'!$C:$D,2,FALSE), G305)","v":"Mortality"},"MORT"]
[null,null,null,"MOR","MOR",{"$f":"IFERROR(VLOOKUP(G306,'Effects Code'!$C:$D,2,FALSE), G306)","v":"Mortality"},"MORT"]
[null,null,null,"BCM","ENZ",{"$f":"IFERROR(VLOOKUP(G307,'Effects Code'!$C:$D,2,FALSE), G307)","v":"Cholinesterase"},"CEST"]
[null,null,null,"MOR","MOR",{"$f":"IFERROR(VLOOKUP(G308,'Effects Code'!$C:$D,2,FALSE), G308)","v":"Mortality"},"MORT"]
[null,null,null,"MOR","MOR",{"$f":"IFERROR(VLOOKUP(G309,'Effects Code'!$C:$D,2,FALSE), G309)","v":"Mortality"},"MORT"]
[null,null,null,"MOR","MOR",{"$f":"IFERROR(VLOOKUP(G310,'Effects Code'!$C:$D,2,FALSE), G310)","v":"Mortality"},"MORT"]
[null,null,null,"MOR","MOR",{"$f":"IFERROR(VLOOKUP(G311,'Effects Code'!$C:$D,2,FALSE), G311)","v":"Mortality"},"MORT"]
[null,null,null,"MOR","MOR",{"$f":"IFERROR(VLOOKUP(G312,'Effects Code'!$C:$D,2,FALSE), G312)","v":"Mortality"},"MORT"]
[null,null,null,"MOR","MOR",{"$f":"IFERROR(VLOOKUP(G313,'Effects Code'!$C:$D,2,FALSE), G313)","v":"Mortality"},"MORT"]
[null,null,null,"MOR","MOR",{"$f":"IFERROR(VLOOKUP(G314,'Effects Code'!$C:$D,2,FALSE), G314)","v":"Mortality"},"MORT"]
[null,null,null,"MOR","MOR",{"$f":"IFERROR(VLOOKUP(G315,'Effects Code'!$C:$D,2,FALSE), G315)","v":"Mortality"},"MORT"]
[null,null,null,"MOR","MOR",{"$f":"IFERROR(VLOOKUP(G316,'Effects Code'!$C:$D,2,FALSE), G316)","v":"Mortality"},"MORT"]
[null,null,null,"MOR","MOR",{"$f":"IFERROR(VLOOKUP(G317,'Effects Code'!$C:$D,2,FALSE), G317)","v":"Mortality"},"MORT"]
[null,null,null,"MOR","MOR",{"$f":"IFERROR(VLOOKUP(G318,'Effects Code'!$C:$D,2,FALSE), G318)","v":"Mortality"},"MORT"]
[null,null,null,"MOR","MOR",{"$f":"IFERROR(VLOOKUP(G319,'Effects Code'!$C:$D,2,FALSE), G319)","v":"Mortality"},"MORT"]
[null,null,null,"MOR","MOR",{"$f":"IFERROR(VLOOKUP(G320,'Effects Code'!$C:$D,2,FALSE), G320)","v":"Mortality"},"MORT"]
[null,null,null,"MOR","MOR",{"$f":"IFERROR(VLOOKUP(G321,'Effects Code'!$C:$D,2,FALSE), G321)","v":"Mortality"},"MORT"]
[null,null,null,"MOR","MOR",{"$f":"IFERROR(VLOOKUP(G322,'Effects Code'!$C:$D,2,FALSE), G322)","v":"Mortality"},"MORT"]
[null,null,null,"MOR","MOR",{"$f":"IFERROR(VLOOKUP(G323,'Effects Code'!$C:$D,2,FALSE), G323)","v":"Mortality"},"MORT"]

{"sheet":"Effects Code Array Order","index":3,"n_rows":29,"n_cols":8,"rows_kept":29,"cut":false,"hidden":true,"merged":[]}
["Major Effect Group","Major Effect Group Definition","Minor Effect Group","Minor Effect Group Definition","Rank","Singular","Combined",{"$f":"A1","v":"Major Effect Group"}]
["BCM","Biochemical","BCM","Biochemical Effects ",1,{"$f":"B2","v":"Biochemical"},{"$f":"B2&\", \"&D2","v":"Biochemical, Biochemical Effects "},{"$f":"A2","v":"BCM"}]
["BCM","Biochemical","ENZ","Enzyme Effects",2,{"$f":"B3","v":"Biochemical"},{"$f":"B3&\", \"&D3","v":"Biochemical, Enzyme Effects"},{"$f":"A3","v":"BCM"}]
["BCM","Biochemical","HRM","Hormone Effects",3,{"$f":"B4","v":"Biochemical"},{"$f":"B4&\", \"&D4","v":"Biochemical, Hormone Effects"},{"$f":"A4","v":"BCM"}]
["CEL","Cellular","CEL","Cellular",4,{"$f":"B5","v":"Cellular"},{"$f":"B5&\", \"&D5","v":"Cellular, Cellular"},{"$f":"A5","v":"CEL"}]
["CEL","Cellular","GEN","Genetic",5,{"$f":"B6","v":"Cellular"},{"$f":"B6&\", \"&D6","v":"Cellular, Genetic"},"CEL"]
["CEL","Cellular","HIS","Histological",6,"Cellular","Cellular, Histological","CEL"]
["PHY","Physiological","IMM","Immunity",7,"Physiological","Physiological, Immunity","PHY"]
["PHY","Physiological","INJ","Injury",8,"Physiological","Physiological, Injury","PHY"]
["PHY","Physiological","ITX","Intoxication",9,"Physiological","Physiological, Intoxication","PHY"]
["PHY","Physiological","PHY","General Physiological",10,"Physiological","Physiological, General Physiological","PHY"]
["BEH","Behavioral","AVO","Avoidance",11,"Behavioral","Behavioral, Avoidance","BEH"]
["BEH","Behavioral","BEH","General Behavior",12,"Behavioral","Behavioral, General Behavior","BEH"]
["BEH","Behavioral","FDB","Feeding Behavior",13,"Behavioral","Behavioral, Feeding Behavior","BEH"]
["REP","Reproduction","AEG","Avian or Reptilian Egg",14,"Reproduction","Reproduction, Avian or Reptilian Egg","REP"]
["REP","Reproduction","REP","Reproduction",15,"Reproduction","Reproduction, Reproduction","REP"]
["GRO","Growth","DVP","Development",16,"Growth","Growth, Development","GRO"]
["GRO","Growth","GRO","Growth",17,"Growth","Growth, Growth","GRO"]
["GRO","Growth","MPH","Morphology",18,"Growth","Growth, Morphology","GRO"]
["ACC","Accumulation","ACC","Accumulation",19,"Accumulation","Accumulation, Accumulation","ACC"]
["MOR","Mortality","MOR","Mortality",20,"Mortality","Mortality, Mortality","MOR"]
["POP","Population","POP","Population",21,"Population","Population, Population","POP"]
["SYS","Ecosystem Processes","PRS","Ecosystem Processes",22,"Ecosystem Processes","Ecosystem Processes, Ecosystem Processes","SYS"]
["NOC","No Code","NOC","No code",23,"No Code","No Code, No code","NOC"]
[]
[]
[]
["Major Effects groups listed in order from cellular to population level"]
["Minor Effects just sorted alphabetically within it's major group (not critical as long as they stay together)"]